Ref,Fund Type,Dept,Cost Centre Description    ,Description    ,Creditor Name    ,GL Code Net Amount,Payment date        
2,Revenue,CCHD,Bed purchasing - Under 65s PWLD - North,Residential Homes,.,6873.04, 22-Jan-2013
3,Revenue,CCHD,Frenchay Hospital Purchasing,Residential Homes,.,1932, 22-Jan-2013
4,Revenue,CCHD,Supporting People Programme,Grants to Voluntary Bodies,1625 Independent People,17214.75, 02-Jan-2013
5,Revenue,CCHD,Home Care - Elderly - North,Other Small Contracts,3 Trees Community Support Ltd,1670.56, 14-Jan-2013
6,Revenue,CCHD,Day Care - North,Private & Voluntary Day Care,3 Trees Community Support Ltd,90.62, 14-Jan-2013
7,Revenue,CCHD,Home Care - LD Under 65 - South,Private & Voluntary Home Care,3 Trees Community Support Ltd,110.32, 14-Jan-2013
8,Revenue,CCHD,PWLD Home Care - Under 65 - KH,Private & Voluntary Home Care,3 Trees Community Support Ltd,271.86, 14-Jan-2013
9,Revenue,CCHD,Home Care - Elderly - South,Other Small Contracts,3 Trees Community Support Ltd,94.56, 14-Jan-2013
10,Revenue,CCHD,Home Care - Elderly - North,Other Small Contracts,3 Trees Community Support Ltd,1544.48, 14-Jan-2013
11,Revenue,CCHD,Day Care - North,Private & Voluntary Day Care,3 Trees Community Support Ltd,78.8, 14-Jan-2013
12,Revenue,CCHD,Home Care - LD Under 65 - South,Private & Voluntary Home Care,3 Trees Community Support Ltd,106.38, 14-Jan-2013
13,Revenue,CCHD,PWLD Home Care - Under 65 - KH,Private & Voluntary Home Care,3 Trees Community Support Ltd,271.86, 14-Jan-2013
14,Revenue,CCHD,Home Care - Elderly - South,Other Small Contracts,3 Trees Community Support Ltd,94.56, 28-Jan-2013
15,Revenue,CCHD,Home Care - Elderly - North,Other Small Contracts,3 Trees Community Support Ltd,851.04, 28-Jan-2013
16,Revenue,CCHD,Day Care - North,Private & Voluntary Day Care,3 Trees Community Support Ltd,47.28, 28-Jan-2013
17,Revenue,CCHD,PWLD Home Care - Under 65 - KH,Private & Voluntary Home Care,3 Trees Community Support Ltd,133.96, 28-Jan-2013
18,Revenue,CCHD,Home Care - Elderly - South,Other Small Contracts,3 Trees Community Support Ltd,94.56, 22-Jan-2013
19,Revenue,CCHD,Home Care - Elderly - North,Other Small Contracts,3 Trees Community Support Ltd,1607.52, 22-Jan-2013
20,Revenue,CCHD,Day Care - North,Private & Voluntary Day Care,3 Trees Community Support Ltd,78.8, 22-Jan-2013
21,Revenue,CCHD,Home Care - Elderly - North,Other Small Contracts,3 Trees Community Support Ltd,1339.6, 30-Jan-2013
22,Revenue,CCHD,Day Care - North,Private & Voluntary Day Care,3 Trees Community Support Ltd,51.22, 30-Jan-2013
23,Revenue,CCHD,Supported Living - PS,Private & Voluntary Home Care,3 Trees Community Support Ltd,594.15, 14-Jan-2013
24,Revenue,CCHD,Purchase of Non-Res Care - PS,Private & Voluntary Day Care,3 Trees Community Support Ltd,3127.08, 15-Jan-2013
25,Revenue,CCHD,Purchase of Non-Res Care - KD,Private & Voluntary Day Care,3 Trees Community Support Ltd,5632.54, 07-Jan-2013
26,Revenue,CCHD,Supported Living - PS,Private & Voluntary Home Care,3 Trees Community Support Ltd,2473.5, 07-Jan-2013
27,Revenue,CCHD,Purchase of Non-Res Care - KD,Private & Voluntary Day Care,3 Trees Community Support Ltd,2126.6, 08-Jan-2013
28,Revenue,CCHD,Purchase of Non-Res Care - KD,Private & Voluntary Day Care,3 Trees Community Support Ltd,2111.7, 07-Jan-2013
29,Revenue,CCHD,Supported Living - KD,Private & Voluntary Home Care,3 Trees Community Support Ltd,7560.24, 07-Jan-2013
30,Revenue,CCHD,Purchase of Non-Res Care - KD,Private & Voluntary Day Care,3 Trees Community Support Ltd,1713.45, 07-Jan-2013
31,Revenue,CCHD,Supported Living - KD,Private & Voluntary Home Care,3 Trees Community Support Ltd,8266.51, 07-Jan-2013
32,Revenue,CCHD,Purchase of Non-Res Care - KD,Private & Voluntary Day Care,3 Trees Community Support Ltd,7841.37, 17-Jan-2013
33,Revenue,CCHD,Supported Living - PS,Private & Voluntary Home Care,3 Trees Community Support Ltd,613.38, 18-Jan-2013
34,Revenue,CCHD,Supported Living - PS,Private & Voluntary Home Care,3 Trees Community Support Ltd,1473.16, 18-Jan-2013
35,Revenue,CCHD,Purchase of Non-Res Care - KD,Private & Voluntary Day Care,3 Trees Community Support Ltd,3884.39, 17-Jan-2013
36,Revenue,CCHD,Supported Living - KD,Private & Voluntary Home Care,3 Trees Community Support Ltd,2463.88, 15-Jan-2013
37,Revenue,CCHD,Purchase of Non-Res Care - KD,Private & Voluntary Day Care,3 Trees Community Support Ltd,1814.52, 17-Jan-2013
38,Revenue,CCHD,Purchase of Non-Res Care - PS,Private & Voluntary Day Care,3 Trees Community Support Ltd,796.29, 14-Jan-2013
39,Revenue,CCHD,Purchase of Non-Res Care - KD,Private & Voluntary Day Care,3 Trees Community Support Ltd,1594.95, 17-Jan-2013
40,Revenue,CCHD,Purchase of Non-Res Care - KD,Private & Voluntary Day Care,3 Trees Community Support Ltd,1267.02, 17-Jan-2013
41,Revenue,CCHD,Supported Living - KD,Private & Voluntary Home Care,3 Trees Community Support Ltd,9450.3, 15-Jan-2013
42,Revenue,CCHD,Purchase of Non-Res Care - KD,Private & Voluntary Day Care,3 Trees Community Support Ltd,1204.41, 17-Jan-2013
43,Revenue,CCHD,Purchase of Non-Res Care - KD,Private & Voluntary Day Care,3 Trees Community Support Ltd,4896.48, 17-Jan-2013
44,Revenue,CCHD,Purchase of Non-Res Care - PS,Private & Voluntary Day Care,3 Trees Community Support Ltd,2786.74, 15-Jan-2013
45,Revenue,CCHD,Supported Living - KD,Private & Voluntary Home Care,3 Trees Community Support Ltd,9733, 21-Jan-2013
46,Revenue,CCHD,Bed Purchasing - Under 65s PWLD - South,Residential Homes,5Th Floor Harlech Court,15679.72, 22-Jan-2013
47,Revenue,CCHD,Bed purchasing - Under 65s PWLD - North,Residential Homes,5Th Floor Harlech Court,16197.04, 22-Jan-2013
48,Revenue,CCHD,Direct Payments - Phys Dis - North,Grants to Voluntary Bodies,A4E Management Limited,22857.93, 14-Jan-2013
49,Revenue,CCHD,Frenchay Hospital Purchasing,Nursing Homes,Aabletone Nursing Home,1295.2, 22-Jan-2013
50,Revenue,CCHD,Frenchay Hospital Purchasing,Residential Homes,Abbey Grange,2516.09, 22-Jan-2013
51,Revenue,CCHD,Day Care - South,Private & Voluntary Day Care,About Me Care and Support Limited,2034.03, 15-Jan-2013
52,Revenue,CCHD,Day Care - North,Private & Voluntary Day Care,About Me Care and Support Limited,1099.44, 18-Jan-2013
53,Revenue,CCHD,Day Care - South,Private & Voluntary Day Care,About Me Care and Support Limited,946.84, 15-Jan-2013
54,Revenue,CCHD,Training - Adult Services,Training Expenses,Acorn Health & Safety Limited,736, 25-Jan-2013
55,Revenue,CCHD,Day Care - North,Private & Voluntary Day Care,Action on Hearing Loss,736.47, 10-Jan-2013
56,Revenue,CCHD,Day Care - North,Private & Voluntary Day Care,Action on Hearing Loss,628.13, 08-Jan-2013
57,Revenue,CCHD,Home Care - Elderly - South,Other Small Contracts,Agincare Chippenham,1095.21, 02-Jan-2013
58,Revenue,CCHD,Home Care - Elderly - South,Other Small Contracts,Agincare Chippenham,1157.13, 14-Jan-2013
59,Revenue,CCHD,Home Care - Elderly - South,Other Small Contracts,Agincare Chippenham,1010.07, 21-Jan-2013
60,Revenue,CCHD,Home Care - Elderly - South,Other Small Contracts,Agincare Chippenham,1126.17, 31-Jan-2013
61,Revenue,CCHD,Home Care - Elderly - South,Other Small Contracts,Agincare Chippenham,1439.64, 24-Jan-2013
62,Revenue,CCHD,Home Care - Elderly - South,Other Small Contracts,Agincare Chippenham,1176.48, 29-Jan-2013
63,Revenue,CCHD,Home Care - Elderly - South,Other Small Contracts,Agincare UK Limited,808.83, 02-Jan-2013
64,Revenue,CCHD,Home Care - Elderly - North,Other Small Contracts,Agincare UK Limited,81.27, 02-Jan-2013
65,Revenue,CCHD,Day Care - South,Private & Voluntary Day Care,Agincare UK Limited,174.15, 02-Jan-2013
66,Revenue,CCHD,Elderly MH Day Care North,Private & Voluntary Day Care,Agincare UK Limited,112.23, 02-Jan-2013
67,Revenue,CCHD,Home Care - Elderly - South,Other Small Contracts,Agincare UK Limited,812.7, 21-Jan-2013
68,Revenue,CCHD,Home Care - Elderly - North,Other Small Contracts,Agincare UK Limited,85.14, 21-Jan-2013
69,Revenue,CCHD,Day Care - South,Private & Voluntary Day Care,Agincare UK Limited,170.28, 21-Jan-2013
70,Revenue,CCHD,Elderly MH Day Care North,Private & Voluntary Day Care,Agincare UK Limited,112.23, 21-Jan-2013
71,Revenue,CCHD,Home Care - Elderly - South,Other Small Contracts,Agincare UK Limited,820.44, 21-Jan-2013
72,Revenue,CCHD,Home Care - Elderly - North,Other Small Contracts,Agincare UK Limited,58.05, 21-Jan-2013
73,Revenue,CCHD,Day Care - South,Private & Voluntary Day Care,Agincare UK Limited,170.28, 21-Jan-2013
74,Revenue,CCHD,Elderly MH Day Care North,Private & Voluntary Day Care,Agincare UK Limited,85.14, 21-Jan-2013
75,Revenue,CCHD,Home Care - Elderly - South,Other Small Contracts,Agincare UK Limited,433.44, 21-Jan-2013
76,Revenue,CCHD,Home Care - Elderly - North,Other Small Contracts,Agincare UK Limited,34.83, 21-Jan-2013
77,Revenue,CCHD,Day Care - South,Private & Voluntary Day Care,Agincare UK Limited,108.36, 21-Jan-2013
78,Revenue,CCHD,Elderly MH Day Care North,Private & Voluntary Day Care,Agincare UK Limited,46.44, 21-Jan-2013
79,Revenue,CCHD,Home Care - Elderly - South,Other Small Contracts,Agincare UK Limited,619.2, 21-Jan-2013
80,Revenue,CCHD,Home Care - Elderly - North,Other Small Contracts,Agincare UK Limited,50.31, 21-Jan-2013
81,Revenue,CCHD,Day Care - South,Private & Voluntary Day Care,Agincare UK Limited,170.28, 21-Jan-2013
82,Revenue,CCHD,Elderly MH Day Care North,Private & Voluntary Day Care,Agincare UK Limited,77.4, 21-Jan-2013
83,Revenue,CCHD,Home Care - Elderly - South,Other Small Contracts,Agincare UK Limited,863.01, 29-Jan-2013
84,Revenue,CCHD,Home Care - Elderly - North,Other Small Contracts,Agincare UK Limited,85.14, 29-Jan-2013
85,Revenue,CCHD,Day Care - South,Private & Voluntary Day Care,Agincare UK Limited,170.28, 29-Jan-2013
86,Revenue,CCHD,Elderly MH Day Care North,Private & Voluntary Day Care,Agincare UK Limited,108.36, 29-Jan-2013
87,Revenue,CCHD,Home Care - Elderly - South,Other Small Contracts,Agincare UK Limited,785.61, 29-Jan-2013
88,Revenue,CCHD,Home Care - Elderly - North,Other Small Contracts,Agincare UK Limited,73.53, 29-Jan-2013
89,Revenue,CCHD,Day Care - South,Private & Voluntary Day Care,Agincare UK Limited,123.84, 29-Jan-2013
90,Revenue,CCHD,Elderly MH Day Care North,Private & Voluntary Day Care,Agincare UK Limited,108.36, 29-Jan-2013
91,Revenue,CCHD,S117 Placements PCT,Residential Homes,Alexandra House,6810.28, 22-Jan-2013
92,Revenue,CCHD,Section 117 Placements MH Younger,Residential Homes,Alexandra House,6340, 22-Jan-2013
93,Revenue,CCHD,Home Care - Elderly - South,Other Small Contracts,Allied Healthcare Group,495.3, 07-Jan-2013
94,Revenue,CCHD,Home Care - Elderly - North,Other Small Contracts,Allied Healthcare Group,1667.43, 07-Jan-2013
95,Revenue,CCHD,Day Care - North,Private & Voluntary Day Care,Allied Healthcare Group,19.05, 07-Jan-2013
96,Revenue,CCHD,Elderly MH Day Care North,Private & Voluntary Day Care,Alzheimer`s Society Bristol,643.68, 30-Jan-2013
97,Revenue,CCHD,Elderly MH Day Care North,Private & Voluntary Day Care,Alzheimer`s Society Bristol,858.24, 30-Jan-2013
98,Revenue,CCHD,Day Care - South,Private & Voluntary Day Care,Alzheimer`s Society Bristol,572.16, 30-Jan-2013
99,Revenue,CCHD,Elderly MH Day Care South,Private & Voluntary Day Care,Alzheimer`s Society Bristol,500.64, 30-Jan-2013
100,Revenue,CCHD,Bed Purchasing - Elderly S117- North,Private & Voluntary Day Care,Alzheimer`s Society Bristol,500.64, 30-Jan-2013
101,Revenue,CCHD,User Involvement,Other Supplies & Services,Alzheimers Society,1495, 17-Jan-2013
102,Revenue,CCHD,Frenchay Hospital Purchasing,Residential Homes,Amber Care Ltd,1290.2, 22-Jan-2013
103,Revenue,CCHD,Southmead Hospital Purchasing,Nursing Homes,Ambleside Nusing Ho!,1416.4, 22-Jan-2013
104,Revenue,CCHD,Frenchay Hospital Purchasing,Residential Homes,Anbridge Care Home,828.88, 22-Jan-2013
105,Revenue,CCHD,Alexandra Way,Premises Maintenance by Contractor,Aquarius Waste Management Ltd,4900, 23-Jan-2013
106,Revenue,CCHD,Bed purchasing - Under 65s PWLD - North,Residential Homes,Ark Care Homes Ltd,10067.92, 22-Jan-2013
107,Revenue,CCHD,Bed Purchasing - Elderly - South,Residential Homes,Ashbourne House Care Home Limited,1102.96, 22-Jan-2013
108,Revenue,CCHD,Bed and Breakfast,Bed & Breakfast,Ashley Guest Houses Limited,840, 04-Jan-2013
109,Revenue,CCHD,Bed Purchasing - S28A - Over 65- North,Residential Homes,Aspects &  Milestones Trust,3882.32, 22-Jan-2013
110,Revenue,CCHD,Bed Purchasing - Elderly - South,Residential Homes,Aspects &  Milestones Trust,1398.4, 22-Jan-2013
111,Revenue,CCHD,Bed Purchasing - Under 65s PWLD - South,Residential Homes,Aspects &  Milestones Trust,5909.2, 22-Jan-2013
112,Revenue,CCHD,Bed Purchasing - Elderly S117- North,Residential Homes,Aspects &  Milestones Trust,1325.92, 22-Jan-2013
113,Revenue,CCHD,Bed Purchasing - Elderly S117- North,Nursing Homes,Aspects &  Milestones Trust,1944.08, 22-Jan-2013
114,Revenue,CCHD,Bed purchasing - Elderly PWLD - North,Residential Homes,Aspects &  Milestones Trust,3554.88, 22-Jan-2013
115,Revenue,CCHD,Bed Purchasing - Under 65s PWLD - South,Residential Homes,Aspects &  Milestones Trust,5227.12, 22-Jan-2013
116,Revenue,CCHD,Bed Purchasing - Under 65s PWLD - South,Residential Homes,Aspects &  Milestones Trust,5683.72, 22-Jan-2013
117,Revenue,CCHD,Bed Purchasing - Under 65s PWLD - South,Nursing Homes,Aspects &  Milestones Trust,2766.32, 22-Jan-2013
118,Revenue,CCHD,Bed Purchasing - Elderly S117- North,Nursing Homes,Aspects &  Milestones Trust,1944, 22-Jan-2013
119,Revenue,CCHD,Bed purchasing - Elderly MH - North,Nursing Homes,Aspects &  Milestones Trust,1430.08, 22-Jan-2013
120,Revenue,CCHD,Section 117 Placements MH Younger,Nursing Homes,Aspects &  Milestones Trust,1600, 22-Jan-2013
121,Revenue,CCHD,Bed purchasing - Elderly PWLD - South,Residential Homes,Aspects &  Milestones Trust,3199.56, 22-Jan-2013
122,Revenue,CCHD,Bed purchasing - Elderly PWLD - South,Residential Homes,Aspects &  Milestones Trust,4357.8, 22-Jan-2013
123,Revenue,CCHD,Bed purchasing -S28A  Under 65 - North,Nursing Homes,Aspects &  Milestones Trust,5800.72, 22-Jan-2013
124,Revenue,CCHD,Bed purchasing -S28A  Under 65 - North,Residential Homes,Aspects &  Milestones Trust,5183.96, 22-Jan-2013
125,Revenue,CCHD,Bed Purchasing - Under 65s PWLD - South,Residential Homes,Aspects &  Milestones Trust,3495.32, 22-Jan-2013
126,Revenue,CCHD,Bed purchasing - S28A Under 65 - South,Residential Homes,Aspects &  Milestones Trust,5327.8, 22-Jan-2013
127,Revenue,CCHD,Bed Purchasing - Elderly MH - South,Residential Homes,Aspects &  Milestones Trust,1283.2, 22-Jan-2013
128,Revenue,CCHD,Bed Purchasing - Under 65s PWLD - South,Residential Homes,Aspects &  Milestones Trust,5721.6, 22-Jan-2013
129,Revenue,CCHD,Bed purchasing - S28A Under 65 - South,Nursing Homes,Aspects &  Milestones Trust,7576.08, 22-Jan-2013
130,Revenue,CCHD,MH Purchasing - Younger,Residential Homes,Aspects &  Milestones Trust,847.2, 22-Jan-2013
131,Revenue,CCHD,Bed purchasing - Elderly PWLD - South,Residential Homes,Aspects &  Milestones Trust,5276.32, 22-Jan-2013
132,Revenue,CCHD,Bed purchasing - Elderly PWLD - South,Residential Homes,Aspects &  Milestones Trust,3791.92, 22-Jan-2013
133,Revenue,CCHD,Bed purchasing - Elderly PWLD - North,Residential Homes,Aspects &  Milestones Trust,4732.52, 22-Jan-2013
134,Revenue,CCHD,Bed purchasing -S28A  Under 65 - North,Residential Homes,Aspects &  Milestones Trust,5268.68, 22-Jan-2013
135,Revenue,CCHD,Bed purchasing -S28A  Under 65 - North,Residential Homes,Aspects &  Milestones Trust,6125.96, 22-Jan-2013
136,Revenue,CCHD,Bed purchasing -S28A  Under 65 - North,Nursing Homes,Aspects &  Milestones Trust,6213.88, 22-Jan-2013
137,Revenue,CCHD,Bed Purchasing - Under 65s PWLD - South,Residential Homes,Aspects &  Milestones Trust,3699.6, 22-Jan-2013
138,Revenue,CCHD,Bed purchasing -S28A  Under 65 - North,Residential Homes,Aspects &  Milestones Trust,6125.96, 22-Jan-2013
139,Revenue,CCHD,Bed purchasing - S28A Under 65 - South,Residential Homes,Aspects &  Milestones Trust,4856.92, 22-Jan-2013
140,Revenue,CCHD,Bed Purchasing - S28A - Over 65- North,Residential Homes,Aspects &  Milestones Trust,6453.44, 22-Jan-2013
141,Revenue,CCHD,Bed Purchasing - LD S28A- Over 65- South,Residential Homes,Aspects &  Milestones Trust,4015.52, 22-Jan-2013
142,Revenue,CCHD,Bed purchasing -S28A  Under 65 - North,Residential Homes,Aspects &  Milestones Trust,6125.96, 22-Jan-2013
143,Revenue,CCHD,Bed purchasing -S28A  Under 65 - North,Residential Homes,Aspects &  Milestones Trust,6125.96, 22-Jan-2013
144,Revenue,CCHD,Bed Purchasing - LD S28A- Over 65- South,Residential Homes,Aspects &  Milestones Trust,3905.44, 22-Jan-2013
145,Revenue,CCHD,Bed purchasing - S28A Under 65 - South,Residential Homes,Aspects &  Milestones Trust,5052.2, 22-Jan-2013
146,Revenue,CCHD,Bed purchasing - S28A Under 65 - South,Residential Homes,Aspects &  Milestones Trust,6626.28, 22-Jan-2013
147,Revenue,CCHD,Bed purchasing - S28A Under 65 - South,Residential Homes,Aspects &  Milestones Trust,4047.8, 22-Jan-2013
148,Revenue,CCHD,Bed Purchasing - LD S28A- Over 65- South,Residential Homes,Aspects &  Milestones Trust,5824.28, 22-Jan-2013
149,Revenue,CCHD,Bed Purchasing - S28A - Over 65- North,Residential Homes,Aspects &  Milestones Trust,3397.72, 22-Jan-2013
150,Revenue,CCHD,Bed Purchasing - LD S28A- Over 65- South,Residential Homes,Aspects &  Milestones Trust,4760.52, 22-Jan-2013
151,Revenue,CCHD,Bed Purchasing - LD S28A- Over 65- South,Residential Homes,Aspects &  Milestones Trust,4908.2, 22-Jan-2013
152,Revenue,CCHD,Bed Purchasing - LD S28A- Over 65- South,Residential Homes,Aspects &  Milestones Trust,4622.6, 22-Jan-2013
153,Revenue,CCHD,Bed Purchasing - LD S28A- Over 65- South,Residential Homes,Aspects &  Milestones Trust,5383.48, 22-Jan-2013
154,Revenue,CCHD,Bed purchasing -S28A  Under 65 - North,Residential Homes,Aspects &  Milestones Trust,7309.52, 22-Jan-2013
155,Revenue,CCHD,Bed purchasing -S28A  Under 65 - North,Nursing Homes,Aspects &  Milestones Trust,6296.44, 22-Jan-2013
156,Revenue,CCHD,Bed Purchasing - LD S28A- Over 65- South,Residential Homes,Aspects &  Milestones Trust,3492.92, 22-Jan-2013
157,Revenue,CCHD,Bed Purchasing - LD S28A- Over 65- South,Residential Homes,Aspects &  Milestones Trust,3251.48, 22-Jan-2013
158,Revenue,CCHD,Bed Purchasing - S28A - Over 65- North,Residential Homes,Aspects &  Milestones Trust,3308.72, 22-Jan-2013
159,Revenue,CCHD,Bed Purchasing - LD S28A- Over 65- South,Residential Homes,Aspects &  Milestones Trust,4720.44, 22-Jan-2013
160,Revenue,CCHD,Section 117 Placements MH Younger,Residential Homes,Aspects &  Milestones Trust,1324, 22-Jan-2013
161,Revenue,CCHD,Bed purchasing - Elderly MH - North,Residential Homes,Aspects &  Milestones Trust,849.48, 22-Jan-2013
162,Revenue,CCHD,Bed purchasing - S28A Under 65 - South,Residential Homes,Aspects &  Milestones Trust,4790.96, 22-Jan-2013
163,Revenue,CCHD,Bed purchasing - Elderly PWLD - North,Residential Homes,Aspects &  Milestones Trust,5424.04, 22-Jan-2013
164,Revenue,CCHD,Bed purchasing - Under 65s PWLD - North,Residential Homes,Aspects &  Milestones Trust,5511.12, 22-Jan-2013
165,Revenue,CCHD,Bed purchasing - Elderly MH - North,Nursing Homes,Aspects &  Milestones Trust,1096.68, 22-Jan-2013
166,Revenue,CCHD,Bed Purchasing - Under 65s PWLD - South,Residential Homes,Aspects &  Milestones Trust,3849.4, 22-Jan-2013
167,Revenue,CCHD,Bed purchasing -S28A  Under 65 - North,Residential Homes,Aspects &  Milestones Trust,5771.6, 22-Jan-2013
168,Revenue,CCHD,Bed Purchasing - S28A - Over 65- North,Residential Homes,Aspects &  Milestones Trust,3271.48, 22-Jan-2013
169,Revenue,CCHD,Section 117 Placements MH Younger,Residential Homes,Aspects &  Milestones Trust,1716, 22-Jan-2013
170,Revenue,CCHD,MH Purchasing - Younger,Residential Homes,Aspects &  Milestones Trust,1012.6, 22-Jan-2013
171,Revenue,CCHD,Bed Purchasing - S28A - Over 65- North,Residential Homes,Aspects &  Milestones Trust,3511.28, 22-Jan-2013
172,Revenue,CCHD,Bed purchasing - S28A Under 65 - South,Residential Homes,Aspects &  Milestones Trust,3563.92, 22-Jan-2013
173,Revenue,CCHD,Bed purchasing - S28A Under 65 - South,Residential Homes,Aspects &  Milestones Trust,5052.2, 22-Jan-2013
174,Revenue,CCHD,Bed purchasing - S28A Under 65 - South,Residential Homes,Aspects &  Milestones Trust,6024.64, 22-Jan-2013
175,Revenue,CCHD,Bed Purchasing - LD S28A- Over 65- South,Residential Homes,Aspects &  Milestones Trust,5898.16, 22-Jan-2013
176,Revenue,CCHD,Bed Purchasing - LD S28A- Over 65- South,Residential Homes,Aspects &  Milestones Trust,4164.96, 22-Jan-2013
177,Revenue,CCHD,Bed Purchasing - LD S28A- Over 65- South,Residential Homes,Aspects &  Milestones Trust,4720.44, 22-Jan-2013
178,Revenue,CCHD,Bed Purchasing - LD S28A- Over 65- South,Residential Homes,Aspects &  Milestones Trust,5607.6, 22-Jan-2013
179,Revenue,CCHD,Bed purchasing - S28A Under 65 - South,Residential Homes,Aspects &  Milestones Trust,7572.92, 22-Jan-2013
180,Revenue,CCHD,Bed Purchasing - LD S28A- Over 65- South,Residential Homes,Aspects &  Milestones Trust,4902.32, 22-Jan-2013
181,Revenue,CCHD,Bed purchasing -S28A  Under 65 - North,Residential Homes,Aspects &  Milestones Trust,4743.92, 22-Jan-2013
182,Revenue,CCHD,Bed Purchasing - S28A - Over 65- North,Residential Homes,Aspects &  Milestones Trust,4885.4, 22-Jan-2013
183,Revenue,CCHD,Bed Purchasing - S28A - Over 65- North,Residential Homes,Aspects &  Milestones Trust,5473.64, 22-Jan-2013
184,Revenue,CCHD,Bed purchasing - S28A Under 65 - South,Residential Homes,Aspects &  Milestones Trust,4611.44, 22-Jan-2013
185,Revenue,CCHD,Bed Purchasing - S28A - Over 65- North,Residential Homes,Aspects &  Milestones Trust,4885.4, 22-Jan-2013
186,Revenue,CCHD,Bed Purchasing - S28A - Over 65- North,Residential Homes,Aspects &  Milestones Trust,5277.28, 22-Jan-2013
187,Revenue,CCHD,Bed purchasing - S28A Under 65 - South,Residential Homes,Aspects &  Milestones Trust,4569, 22-Jan-2013
188,Revenue,CCHD,Bed purchasing -S28A  Under 65 - North,Residential Homes,Aspects &  Milestones Trust,6125.96, 22-Jan-2013
189,Revenue,CCHD,Bed Purchasing - S28A - Over 65- North,Residential Homes,Aspects &  Milestones Trust,5621.68, 22-Jan-2013
190,Revenue,CCHD,Bed purchasing -S28A  Under 65 - North,Residential Homes,Aspects &  Milestones Trust,3468.84, 22-Jan-2013
191,Revenue,CCHD,Bed Purchasing - S28A - Over 65- North,Residential Homes,Aspects &  Milestones Trust,3275.16, 22-Jan-2013
192,Revenue,CCHD,Bed Purchasing - S28A - Over 65- North,Residential Homes,Aspects &  Milestones Trust,3412.88, 22-Jan-2013
193,Revenue,CCHD,Bed Purchasing - LD S28A- Over 65- South,Residential Homes,Aspects &  Milestones Trust,3204.2, 22-Jan-2013
194,Revenue,CCHD,Bed purchasing - Elderly S117 - South,Nursing Homes,Aspects &  Milestones Trust,1945.16, 22-Jan-2013
195,Revenue,CCHD,Bed Purchasing - Elderly - South,Nursing Homes,Aspects &  Milestones Trust,1456.88, 22-Jan-2013
196,Revenue,CCHD,Bed purchasing - Under 65s PWLD - North,Residential Homes,Aspects &  Milestones Trust,6125.96, 22-Jan-2013
197,Revenue,CCHD,MH Purchasing - Younger,Nursing Homes,Aspects &  Milestones Trust,920.56, 22-Jan-2013
198,Revenue,CCHD,MH Purchasing - Younger,Nursing Homes,Aspects &  Milestones Trust,939.2, 22-Jan-2013
199,Revenue,CCHD,MH Purchasing - Younger,Residential Homes,Aspects &  Milestones Trust,1012.6, 22-Jan-2013
200,Revenue,CCHD,Bed purchasing - Elderly PWLD - South,Residential Homes,Aspects &  Milestones Trust,3399.76, 22-Jan-2013
201,Revenue,CCHD,Bed purchasing - S28A Under 65 - South,Residential Homes,Aspects &  Milestones Trust,7168.2, 22-Jan-2013
202,Revenue,CCHD,Bed purchasing - S28A Under 65 - South,Residential Homes,Aspects &  Milestones Trust,4866.72, 22-Jan-2013
203,Revenue,CCHD,Bed Purchasing - LD S28A- Over 65- South,Residential Homes,Aspects &  Milestones Trust,4628.68, 22-Jan-2013
204,Revenue,CCHD,Bed Purchasing - Under 65s PWLD - South,Residential Homes,Aspects &  Milestones Trust,4173.08, 22-Jan-2013
205,Revenue,CCHD,Bed Purchasing - LD S28A- Over 65- South,Nursing Homes,Aspects &  Milestones Trust,4196.4, 22-Jan-2013
206,Revenue,CCHD,Bed Purchasing - LD S28A- Over 65- South,Residential Homes,Aspects &  Milestones Trust,5898.16, 22-Jan-2013
207,Revenue,CCHD,Bed Purchasing - LD S28A- Over 65- South,Residential Homes,Aspects &  Milestones Trust,3973.08, 22-Jan-2013
208,Revenue,CCHD,Bed Purchasing - LD S28A- Over 65- South,Residential Homes,Aspects &  Milestones Trust,4406.8, 22-Jan-2013
209,Revenue,CCHD,Bed Purchasing - LD S28A- Over 65- South,Residential Homes,Aspects &  Milestones Trust,5155.88, 22-Jan-2013
210,Revenue,CCHD,Bed Purchasing - Elderly MH - South,Residential Homes,Aspects &  Milestones Trust,1206.56, 22-Jan-2013
211,Revenue,CCHD,Bed Purchasing - Elderly S117- North,Nursing Homes,Aspects &  Milestones Trust,1944, 22-Jan-2013
212,Revenue,CCHD,Bed Purchasing - Elderly S117- North,Nursing Homes,Aspects &  Milestones Trust,1944, 22-Jan-2013
213,Revenue,CCHD,Bed Purchasing - Elderly S117- North,Residential Homes,Aspects &  Milestones Trust,1324, 22-Jan-2013
214,Revenue,CCHD,Bed purchasing - Under 65s PWLD - North,Residential Homes,Aspects & Milestones Trust,8841.64, 22-Jan-2013
215,Revenue,CCHD,Supporting People Programme,Grants to Voluntary Bodies,Aspects and Milestones Trust,2391.34, 02-Jan-2013
216,Revenue,CCHD,Supporting People Programme,Grants to Voluntary Bodies,Aspects and Milestones Trust,1575.46, 02-Jan-2013
217,Revenue,CCHD,Supporting People Programme,Grants to Voluntary Bodies,Aspects and Milestones Trust,3142.43, 02-Jan-2013
218,Revenue,CCHD,Supporting People Programme,Grants to Voluntary Bodies,Aspects and Milestones Trust,1918.88, 02-Jan-2013
219,Revenue,CCHD,Supported Living - PS,Private & Voluntary Home Care,Aspirations Support Bristol Limited,4063.11, 11-Jan-2013
220,Revenue,CCHD,Supported Living - KD,Private & Voluntary Home Care,Aspirations Support Bristol Limited,6212.02, 17-Jan-2013
221,Revenue,CCHD,Supported Living - PS,Private & Voluntary Home Care,Aspirations Support Bristol Limited,4877.68, 11-Jan-2013
222,Revenue,CCHD,Purchase of Non-Res Care - PS,Private & Voluntary Day Care,Aspirations Support Bristol Limited,2475.72, 11-Jan-2013
223,Revenue,CCHD,Supported Living - KD,Private & Voluntary Home Care,Aspirations Support Bristol Limited,8213.14, 17-Jan-2013
224,Revenue,CCHD,Bed Purchasing - Under 65s PWLD - South,Residential Homes,Autism Specialised Care Homes,5515.04, 22-Jan-2013
225,Revenue,CCHD,Woodleaze,Premises Maintenance by Contractor,Avon Armour Ltd,858, 18-Jan-2013
226,Revenue,CCHD,Purchase of Non-Res Care - KD,Private & Voluntary Day Care,Avon Autistic Foundation Limited,1709.82, 14-Jan-2013
227,Revenue,CCHD,Purchase of Non-Res Care - KD,Private & Voluntary Day Care,Avon Autistic Foundation Limited,2509.44, 14-Jan-2013
228,Revenue,CCHD,Purchase of RAC places,Other L.A.'s - General,Bath & North East Somerset Dist Council,1902.4, 15-Jan-2013
229,Revenue,CCHD,Purchase of RAC places,Other L.A.'s - General,Bath & North East Somerset Dist Council,9057, 15-Jan-2013
230,Revenue,CCHD,Purchase of RAC places,Other L.A.'s - General,Bath & North East Somerset Dist Council,18987.92, 29-Jan-2013
231,Revenue,CCHD,Purchase of RAC places,Other L.A.'s - General,Bath & North East Somerset Dist Council,3695.99, 25-Jan-2013
232,Revenue,CCHD,Bed purchasing - Elderly MH - North,Residential Homes,Beaufort House,1418.36, 22-Jan-2013
233,Revenue,CCHD,Frenchay Hospital Purchasing,Residential Homes,Beaufort House,1276.24, 22-Jan-2013
234,Revenue,CCHD,Bed Purchasing - Elderly - North,Residential Homes,Beaufort House,1697.4, 22-Jan-2013
235,Revenue,CCHD,Bed purchasing - Elderly MH - North,Residential Homes,Beaufort House,875.84, 22-Jan-2013
236,Revenue,CCHD,Bed purchasing - Elderly MH - North,Residential Homes,Beaufort House,1011.32, 22-Jan-2013
237,Revenue,CCHD,Bed purchasing - Elderly MH - North,Residential Homes,Beaufort House,1672.68, 22-Jan-2013
238,Revenue,CCHD,Bed Purchasing - Elderly - North,Residential Homes,Beaufort House,1509.12, 22-Jan-2013
239,Revenue,CCHD,Bed purchasing - Elderly PWLD - South,Residential Homes,Bedrock Lodge,2858.6, 22-Jan-2013
240,Revenue,CCHD,Section 117 Placements MH Younger,Residential Homes,Bedrock Lodge,1820.2, 22-Jan-2013
241,Revenue,CCHD,Frenchay Hospital Purchasing,Nursing Homes,Beech House,701.44, 22-Jan-2013
242,Revenue,CCHD,Bed Purchasing - Elderly - North,Nursing Homes,Beech House,693.44, 22-Jan-2013
243,Revenue,CCHD,Frenchay Hospital Purchasing,Nursing Homes,Beech House,975.89, 22-Jan-2013
244,Revenue,CCHD,Southmead Hospital Purchasing,Residential Homes,Beech House,2800, 22-Jan-2013
245,Revenue,CCHD,Southmead Hospital Purchasing,Residential Homes,Beech House,1300, 22-Jan-2013
246,Revenue,CCHD,Bed Purchasing - Elderly - North,Nursing Homes,Beech House,1231, 22-Jan-2013
247,Revenue,CCHD,Bed Purchasing - Elderly - North,Nursing Homes,Beech House,2202.92, 22-Jan-2013
248,Revenue,CCHD,Bed Purchasing - Elderly - North,Residential Homes,Blossom Field,2176.77, 22-Jan-2013
249,Revenue,CCHD,Bed purchasing - Elderly MH - North,Nursing Homes,Blossom Field,1391.16, 22-Jan-2013
250,Revenue,CCHD,Bed Purchasing - Elderly - South,Nursing Homes,Blossom Field,1867.2, 22-Jan-2013
251,Revenue,CCHD,Bed Purchasing - Elderly - South,Nursing Homes,Blossom Fields,2251.7, 17-Jan-2013
252,Revenue,CCHD,Bed Purchasing - Elderly - North,Nursing Homes,Blossom Fields,5358.28, 17-Jan-2013
253,Revenue,CCHD,South Glos Users in South Glos Homes,Nursing Homes,Blossom Fields,2298.23, 17-Jan-2013
254,Revenue,CCHD,Bed purchasing - Elderly MH - North,Nursing Homes,Blossom Fields,1536.24, 17-Jan-2013
255,Revenue,CCHD,Training - Adult Services,Training Expenses,Bob Dawson,1775, 18-Jan-2013
256,Revenue,CCHD,Training - Adult Services,Training Expenses,Bournemouth University,600, 11-Jan-2013
257,Revenue,CCHD,Frenchay Hospital Purchasing,Nursing Homes,Bradbury House,1366.76, 22-Jan-2013
258,Revenue,CCHD,Bed purchasing - Under 65s PWLD - North,Residential Homes,Bradbury House,8685.6, 22-Jan-2013
259,Revenue,CCHD,Bed Purchasing - Elderly - North,Nursing Homes,Bradbury House,557.63, 22-Jan-2013
260,Revenue,CCHD,Bed Purchasing - Elderly - North,Residential Homes,Bradley House,1239.2, 22-Jan-2013
261,Revenue,CCHD,Home Care - Elderly - South,Other Small Contracts,Bradley House Home Care Services,62.55, 11-Jan-2013
262,Revenue,CCHD,Home Care - Elderly - North,Other Small Contracts,Bradley House Home Care Services,1017.48, 11-Jan-2013
263,Revenue,CCHD,Day Care - North,Private & Voluntary Day Care,Bradley House Home Care Services,133.44, 11-Jan-2013
264,Revenue,CCHD,Home Care - Elderly - South,Other Small Contracts,Bradley House Home Care Services,70.89, 24-Jan-2013
265,Revenue,CCHD,Home Care - Elderly - North,Other Small Contracts,Bradley House Home Care Services,1205.13, 24-Jan-2013
266,Revenue,CCHD,Day Care - North,Private & Voluntary Day Care,Bradley House Home Care Services,83.4, 24-Jan-2013
267,Revenue,CCHD,Home Care - Elderly - South,Other Small Contracts,Bradley House Home Care Services,75.06, 24-Jan-2013
268,Revenue,CCHD,Home Care - Elderly - North,Other Small Contracts,Bradley House Home Care Services,1188.45, 24-Jan-2013
269,Revenue,CCHD,Day Care - North,Private & Voluntary Day Care,Bradley House Home Care Services,129.27, 24-Jan-2013
270,Revenue,CCHD,Home Care - Elderly - South,Other Small Contracts,Bradley House Home Care Services,75.06, 11-Jan-2013
271,Revenue,CCHD,Home Care - Elderly - North,Other Small Contracts,Bradley House Home Care Services,1330.23, 11-Jan-2013
272,Revenue,CCHD,Day Care - North,Private & Voluntary Day Care,Bradley House Home Care Services,116.76, 11-Jan-2013
273,Revenue,CCHD,Home Care - Elderly - South,Other Small Contracts,Bradley House Home Care Services,75.06, 11-Jan-2013
274,Revenue,CCHD,Home Care - Elderly - North,Other Small Contracts,Bradley House Home Care Services,1221.81, 11-Jan-2013
275,Revenue,CCHD,Day Care - North,Private & Voluntary Day Care,Bradley House Home Care Services,112.59, 11-Jan-2013
276,Revenue,CCHD,Woodleaze,"Provisions (Food, etc)",Brake Bros,568.81, 17-Jan-2013
277,Revenue,CCHD,Woodleaze,"Provisions (Food, etc)",Brake Bros,570.76, 17-Jan-2013
278,Revenue,CCHD,Woodleaze,"Provisions (Food, etc)",Brake Bros,775.77, 08-Jan-2013
279,Revenue,CCHD,Woodleaze,"Provisions (Food, etc)",Brake Bros,661.68, 08-Jan-2013
280,Revenue,CCHD,Alexandra Way,"Provisions (Food, etc)",Brake Bros,834.42, 11-Jan-2013
281,Revenue,CCHD,Woodleaze,"Provisions (Food, etc)",Brake Bros,688.49, 28-Jan-2013
282,Revenue,CCHD,Bed Purchasing - Elderly - North,Residential Homes,Bridge House Care Home,1227.08, 22-Jan-2013
283,Revenue,CCHD,Bed Purchasing - Elderly - North,Residential Homes,Bridge House Care Home,1503.04, 22-Jan-2013
284,Revenue,CCHD,Bed purchasing - Elderly MH - North,Residential Homes,Bridge House Care Home,1257.14, 22-Jan-2013
285,Revenue,CCHD,Bed Purchasing - Elderly - North,Residential Homes,Bridge House Care Home,1074, 22-Jan-2013
286,Revenue,CCHD,Bed Purchasing - Elderly - North,Residential Homes,Bridge House Care Home,1322.96, 22-Jan-2013
287,Revenue,CCHD,Bed Purchasing - Elderly MH - South,Residential Homes,Brightbow,2529, 22-Jan-2013
288,Revenue,CCHD,MH Purchasing - Younger,Residential Homes,Brightbow,922.36, 22-Jan-2013
289,Revenue,CCHD,Purchase of RAC places,Other L.A.'s - General,Bristol City Council,7424.3, 15-Jan-2013
290,Revenue,CCHD,Purchase of RAC places,Other L.A.'s - General,Bristol City Council,6952.73, 15-Jan-2013
291,Revenue,CCHD,Purchase of RAC places,Other L.A.'s - General,Bristol City Council,9753.29, 15-Jan-2013
292,Revenue,CCHD,Purchase of RAC places,Other L.A.'s - General,Bristol City Council,5228.64, 15-Jan-2013
293,Revenue,CCHD,Supported Living - KD,Private & Voluntary Home Care,Bristol Houses UK Limited,1290.56, 07-Jan-2013
294,Revenue,CCHD,Supported Living - KD,Private & Voluntary Home Care,Bristol Houses UK Limited,1046.4, 07-Jan-2013
295,Revenue,CCHD,Supported Living - KD,Private & Voluntary Home Care,Bristol Houses UK Limited,906.88, 07-Jan-2013
296,Revenue,CCHD,Supported Living - KD,Private & Voluntary Home Care,Bristol Houses UK Limited,930, 07-Jan-2013
297,Revenue,CCHD,Younger MH non-res purchasing,Private & Voluntary Day Care,Bristol Houses UK Limited,1080, 02-Jan-2013
298,Revenue,CCHD,Supported Living - KD,Private & Voluntary Home Care,Bristol Houses UK Limited,570, 07-Jan-2013
299,Revenue,CCHD,Bed Purchasing - Elderly S117- North,Residential Homes,Brockley Court Care Home,1818.04, 22-Jan-2013
300,Revenue,CCHD,Supporting People Programme,Grants to Voluntary Bodies,Bromford Housing Group,13916.67, 02-Jan-2013
301,Revenue,CCHD,Bed Purchasing - Elderly - North,Residential Homes,Brook Lane Residential Home,877.36, 22-Jan-2013
302,Revenue,CCHD,South Glos Users in South Glos Homes,Nursing Homes,Brunel Care,2562.21, 22-Jan-2013
303,Revenue,CCHD,South Glos Users in South Glos Homes,Nursing Homes,Brunel Care,714.31, 22-Jan-2013
304,Revenue,CCHD,Bed Purchasing - Elderly - South,Nursing Homes,Brunel Care,1955.84, 22-Jan-2013
305,Revenue,CCHD,Bed Purchasing - Elderly - South,Nursing Homes,Brunel Care,908.24, 22-Jan-2013
306,Revenue,CCHD,South Glos Users in South Glos Homes,Nursing Homes,Brunel Care,3152.3, 22-Jan-2013
307,Revenue,CCHD,South Glos Users in South Glos Homes,Nursing Homes,Brunel Care,1568.39, 22-Jan-2013
308,Revenue,CCHD,Southmead Hospital Purchasing,Nursing Homes,Brunel Care,700.52, 22-Jan-2013
309,Revenue,CCHD,Southmead Hospital Purchasing,Residential Homes,Brunel Care,1239.36, 22-Jan-2013
310,Revenue,CCHD,Bed Purchasing - Elderly MH - South,Nursing Homes,Brunel Care,2029.8, 22-Jan-2013
311,Revenue,CCHD,Bed Purchasing - Elderly - North,Nursing Homes,Brunel Care,1371, 22-Jan-2013
312,Revenue,CCHD,Bed Purchasing - Elderly - South,Residential Homes,Brunel Care,1269.4, 22-Jan-2013
313,Revenue,CCHD,Home Care - Elderly - North,Private & Voluntary Home Care,Brunelcare,6720, 07-Jan-2013
314,Revenue,CCHD,Home Care - Elderly - North,Private & Voluntary Home Care,Brunelcare,6720, 14-Jan-2013
315,Revenue,CCHD,Home Care - Elderly - North,Private & Voluntary Home Care,Brunelcare,6720, 21-Jan-2013
316,Revenue,CCHD,Home Care - Elderly - North,Private & Voluntary Home Care,Brunelcare,6720, 28-Jan-2013
317,Revenue,CCHD,Bed Purchasing - Elderly - South,Nursing Homes,Brunelcare,10358.05, 25-Jan-2013
318,Revenue,CCHD,Bed Purchasing - Elderly - North,Nursing Homes,Brunelcare,4123.15, 25-Jan-2013
319,Revenue,CCHD,Frenchay Hospital Purchasing,Nursing Homes,Brunelcare,6473.91, 25-Jan-2013
320,Revenue,CCHD,Southmead Hospital Purchasing,Nursing Homes,Brunelcare,9850.66, 25-Jan-2013
321,Revenue,CCHD,South Glos Users in South Glos Homes,Nursing Homes,Brunelcare,12671.31, 25-Jan-2013
322,Revenue,CCHD,Bed Purchasing - Elderly MH - South,Nursing Homes,Brunelcare,7880.53, 25-Jan-2013
323,Revenue,CCHD,Bed purchasing - Elderly S117 - South,Nursing Homes,Brunelcare,4531.63, 25-Jan-2013
324,Revenue,CCHD,Bed purchasing - Elderly MH - North,Nursing Homes,Brunelcare,1076.7, 25-Jan-2013
325,Revenue,CCHD,Bed Purchasing - Elderly S117- North,Nursing Homes,Brunelcare,2265.81, 25-Jan-2013
326,Revenue,CCHD,Bed Purchasing - Elderly - South,Nursing Homes,Brunelcare,11331.91, 25-Jan-2013
327,Revenue,CCHD,Bed Purchasing - Elderly - North,Nursing Homes,Brunelcare,2817.87, 25-Jan-2013
328,Revenue,CCHD,Frenchay Hospital Purchasing,Nursing Homes,Brunelcare,6008.23, 25-Jan-2013
329,Revenue,CCHD,Southmead Hospital Purchasing,Nursing Homes,Brunelcare,10610.49, 25-Jan-2013
330,Revenue,CCHD,South Glos Users in South Glos Homes,Nursing Homes,Brunelcare,10109.1, 25-Jan-2013
331,Revenue,CCHD,Bed Purchasing - Elderly MH - South,Nursing Homes,Brunelcare,8143.13, 25-Jan-2013
332,Revenue,CCHD,Bed purchasing - Elderly S117 - South,Nursing Homes,Brunelcare,3205.28, 25-Jan-2013
333,Revenue,CCHD,Bed purchasing - Elderly MH - North,Nursing Homes,Brunelcare,1508.91, 25-Jan-2013
334,Revenue,CCHD,Bed Purchasing - Elderly S117- North,Nursing Homes,Brunelcare,2341.32, 25-Jan-2013
335,Revenue,CCHD,Elderly MH Day Care South,Private & Voluntary Day Care,Brunelcare,501.48, 09-Jan-2013
336,Revenue,CCHD,Home Care - Elderly - South,Other Small Contracts,Brunelcare,2666.4, 17-Jan-2013
337,Revenue,CCHD,Home Care - Elderly - North,Other Small Contracts,Brunelcare,3838, 17-Jan-2013
338,Revenue,CCHD,Day Care - South,Private & Voluntary Day Care,Brunelcare,117.16, 17-Jan-2013
339,Revenue,CCHD,Day Care - North,Private & Voluntary Day Care,Brunelcare,197.96, 17-Jan-2013
340,Revenue,CCHD,Under 65s -MH  Home Care Purch,Other Small Contracts,Brunelcare,214.12, 17-Jan-2013
341,Revenue,CCHD,Home care - Elderly MH - North,Other Small Contracts,Brunelcare,210.08, 17-Jan-2013
342,Revenue,CCHD,Elderly MH Day Care North,Private & Voluntary Day Care,Brunelcare,125.24, 17-Jan-2013
343,Revenue,CCHD,Home Care - Elderly - South,Other Small Contracts,Brunelcare,2197.8, 28-Jan-2013
344,Revenue,CCHD,Home Care - Elderly - North,Other Small Contracts,Brunelcare,3866.28, 28-Jan-2013
345,Revenue,CCHD,Day Care - South,Private & Voluntary Day Care,Brunelcare,137.36, 28-Jan-2013
346,Revenue,CCHD,Day Care - North,Private & Voluntary Day Care,Brunelcare,76.76, 28-Jan-2013
347,Revenue,CCHD,Home care - Elderly MH - North,Other Small Contracts,Brunelcare,230.28, 28-Jan-2013
348,Revenue,CCHD,Elderly MH Day Care North,Private & Voluntary Day Care,Brunelcare,80.8, 28-Jan-2013
349,Revenue,CCHD,Home Care - Elderly - South,Other Small Contracts,Brunelcare,2601.76, 17-Jan-2013
350,Revenue,CCHD,Home Care - Elderly - North,Other Small Contracts,Brunelcare,3890.52, 17-Jan-2013
351,Revenue,CCHD,Day Care - South,Private & Voluntary Day Care,Brunelcare,141.4, 17-Jan-2013
352,Revenue,CCHD,Day Care - North,Private & Voluntary Day Care,Brunelcare,210.08, 17-Jan-2013
353,Revenue,CCHD,Under 65s -MH  Home Care Purch,Other Small Contracts,Brunelcare,202, 17-Jan-2013
354,Revenue,CCHD,Home care - Elderly MH - North,Other Small Contracts,Brunelcare,218.16, 17-Jan-2013
355,Revenue,CCHD,Elderly MH Day Care North,Private & Voluntary Day Care,Brunelcare,238.36, 17-Jan-2013
356,Revenue,CCHD,Home Care - Elderly - South,Other Small Contracts,Brunelcare,2638.12, 17-Jan-2013
357,Revenue,CCHD,Home Care - Elderly - North,Other Small Contracts,Brunelcare,3757.2, 17-Jan-2013
358,Revenue,CCHD,Day Care - South,Private & Voluntary Day Care,Brunelcare,145.44, 17-Jan-2013
359,Revenue,CCHD,Day Care - North,Private & Voluntary Day Care,Brunelcare,161.6, 17-Jan-2013
360,Revenue,CCHD,Under 65s -MH  Home Care Purch,Other Small Contracts,Brunelcare,210.08, 17-Jan-2013
361,Revenue,CCHD,Home care - Elderly MH - North,Other Small Contracts,Brunelcare,185.84, 17-Jan-2013
362,Revenue,CCHD,Elderly MH Day Care North,Private & Voluntary Day Care,Brunelcare,40.4, 17-Jan-2013
363,Revenue,CCHD,Home Care - Elderly - South,Other Small Contracts,Brunelcare,1858.4, 17-Jan-2013
364,Revenue,CCHD,Home Care - Elderly - North,Other Small Contracts,Brunelcare,2864.36, 17-Jan-2013
365,Revenue,CCHD,Day Care - South,Private & Voluntary Day Care,Brunelcare,137.36, 17-Jan-2013
366,Revenue,CCHD,Day Care - North,Private & Voluntary Day Care,Brunelcare,48.48, 17-Jan-2013
367,Revenue,CCHD,Under 65s -MH  Home Care Purch,Other Small Contracts,Brunelcare,165.64, 17-Jan-2013
368,Revenue,CCHD,Home care - Elderly MH - North,Other Small Contracts,Brunelcare,141.4, 17-Jan-2013
369,Revenue,CCHD,Home Care - Elderly - South,Other Small Contracts,Brunelcare,2642.44, 17-Jan-2013
370,Revenue,CCHD,Home Care - Elderly - North,Other Small Contracts,Brunelcare,3894.56, 17-Jan-2013
371,Revenue,CCHD,Day Care - South,Private & Voluntary Day Care,Brunelcare,149.48, 17-Jan-2013
372,Revenue,CCHD,Day Care - North,Private & Voluntary Day Care,Brunelcare,193.92, 17-Jan-2013
373,Revenue,CCHD,Under 65s -MH  Home Care Purch,Other Small Contracts,Brunelcare,222.2, 17-Jan-2013
374,Revenue,CCHD,Home care - Elderly MH - North,Other Small Contracts,Brunelcare,189.88, 17-Jan-2013
375,Revenue,CCHD,Elderly MH Day Care North,Private & Voluntary Day Care,Brunelcare,84.84, 17-Jan-2013
376,Revenue,CCHD,Home Care - Elderly - South,Other Small Contracts,Brunelcare,2129.08, 28-Jan-2013
377,Revenue,CCHD,Home Care - Elderly - North,Other Small Contracts,Brunelcare,3482.48, 28-Jan-2013
378,Revenue,CCHD,Day Care - South,Private & Voluntary Day Care,Brunelcare,145.44, 28-Jan-2013
379,Revenue,CCHD,Day Care - North,Private & Voluntary Day Care,Brunelcare,48.48, 28-Jan-2013
380,Revenue,CCHD,Home care - Elderly MH - North,Other Small Contracts,Brunelcare,218.16, 28-Jan-2013
381,Revenue,CCHD,Elderly MH Day Care North,Private & Voluntary Day Care,Brunelcare,113.12, 28-Jan-2013
382,Revenue,CCHD,Woodleaze,Agency Staff (Admin/Support Staff) Pay,BS Project Services Limited,461.13, 02-Jan-2013
383,Revenue,CCHD,Information Systems - Software,Computer Equipment - Purchase,BT Global Services Solutions,1457.17, 28-Jan-2013
384,Revenue,CCHD,Woodleaze,Cleaning & Domestic Services,Bunzl Cleaning & Hygiene Supplies,988.63, 03-Jan-2013
385,Revenue,CCHD,Frenchay Hospital Purchasing,Nursing Homes,BUPA Care Service,1295.2, 28-Jan-2013
386,Revenue,CCHD,Bed purchasing - Phys Dis - North,Nursing Homes,Bupa Care Services  Bridge House,5795.92, 22-Jan-2013
387,Revenue,CCHD,South Glos Users in all other LA Homes,Nursing Homes,Bupa Care Services  Bridge House,598.4, 22-Jan-2013
388,Revenue,CCHD,Bed purchasing - Elderly MH - North,Residential Homes,Bupa Care Services  Bridge House,1880, 22-Jan-2013
389,Revenue,CCHD,Charlton,Other Supplies & Services,BWS Security Systems Limited,4197.14, 14-Jan-2013
390,Revenue,CCHD,Woodleaze,Premises Maintenance by Contractor,C & R Fencing Limited,1100, 04-Jan-2013
391,Revenue,CCHD,Supported Living - KD,Private & Voluntary Home Care,Camphill Communities Thornbury Limited,1775.92, 07-Jan-2013
392,Revenue,CCHD,Supported Living - KD,Private & Voluntary Home Care,Camphill Communities Thornbury Limited,2086.8, 07-Jan-2013
393,Revenue,CCHD,Supported Living - PS,Private & Voluntary Home Care,Camphill Communities Thornbury Limited,1736.4, 07-Jan-2013
394,Revenue,CCHD,Supported Living - KD,Private & Voluntary Home Care,Camphill Communities Thornbury Limited,2475, 07-Jan-2013
395,Revenue,CCHD,Supported Living - KD,Private & Voluntary Home Care,Camphill Communities Thornbury Limited,2572.8, 07-Jan-2013
396,Revenue,CCHD,Supported Living - KD,Private & Voluntary Home Care,Camphill Communities Thornbury Limited,1804.92, 07-Jan-2013
397,Revenue,CCHD,Supported Living - KD,Private & Voluntary Home Care,Camphill Communities Thornbury Limited,2269.12, 08-Jan-2013
398,Revenue,CCHD,Supported Living - KD,Private & Voluntary Home Care,Camphill Communities Thornbury Limited,2030.28, 08-Jan-2013
399,Revenue,CCHD,Supported Living - KD,Private & Voluntary Home Care,Camphill Communities Thornbury Limited,1997.32, 08-Jan-2013
400,Revenue,CCHD,Supported Living - KD,Private & Voluntary Home Care,Camphill Communities Thornbury Limited,2112.64, 24-Jan-2013
401,Revenue,CCHD,Supported Living - KD,Private & Voluntary Home Care,Camphill Communities Thornbury Limited,2216.04, 24-Jan-2013
402,Revenue,CCHD,Supported Living - KD,Private & Voluntary Home Care,Camphill Communities Thornbury Limited,1775.92, 24-Jan-2013
403,Revenue,CCHD,Supported Living - KD,Private & Voluntary Home Care,Camphill Communities Thornbury Limited,2086.8, 24-Jan-2013
404,Revenue,CCHD,Supported Living - KD,Private & Voluntary Home Care,Camphill Communities Thornbury Limited,1997.32, 24-Jan-2013
405,Revenue,CCHD,Bed purchasing - Under 65s PWLD - North,Residential Homes,Camphill Devon Community,3185.24, 22-Jan-2013
406,Revenue,CCHD,Bed purchasing - Under 65s PWLD - North,Residential Homes,Camphill Devon Community,2234.08, 22-Jan-2013
407,Revenue,CCHD,Home Care - Elderly - South,Other Small Contracts,Care 1st Homecare,3244.05, 02-Jan-2013
408,Revenue,CCHD,Home Care - Elderly - North,Other Small Contracts,Care 1st Homecare,5888.49, 02-Jan-2013
409,Revenue,CCHD,Day Care - South,Private & Voluntary Day Care,Care 1st Homecare,113.4, 02-Jan-2013
410,Revenue,CCHD,Day Care - North,Private & Voluntary Day Care,Care 1st Homecare,162, 02-Jan-2013
411,Revenue,CCHD,Home Care - LD Under 65 - South,Private & Voluntary Home Care,Care 1st Homecare,52.65, 02-Jan-2013
412,Revenue,CCHD,Home Care - Elderly - South,Other Small Contracts,Care 1st Homecare,3163.05, 02-Jan-2013
413,Revenue,CCHD,Home Care - Elderly - North,Other Small Contracts,Care 1st Homecare,5775.09, 02-Jan-2013
414,Revenue,CCHD,Day Care - South,Private & Voluntary Day Care,Care 1st Homecare,113.4, 02-Jan-2013
415,Revenue,CCHD,Day Care - North,Private & Voluntary Day Care,Care 1st Homecare,56.7, 02-Jan-2013
416,Revenue,CCHD,Home Care - LD Under 65 - South,Private & Voluntary Home Care,Care 1st Homecare,129.6, 02-Jan-2013
417,Revenue,CCHD,Home Care - Elderly - South,Other Small Contracts,Care 1st Homecare,3122.55, 02-Jan-2013
418,Revenue,CCHD,Home Care - Elderly - North,Other Small Contracts,Care 1st Homecare,5840.58, 02-Jan-2013
419,Revenue,CCHD,Day Care - South,Private & Voluntary Day Care,Care 1st Homecare,117.45, 02-Jan-2013
420,Revenue,CCHD,Day Care - North,Private & Voluntary Day Care,Care 1st Homecare,105.3, 02-Jan-2013
421,Revenue,CCHD,Home Care - LD Under 65 - South,Private & Voluntary Home Care,Care 1st Homecare,60.75, 02-Jan-2013
422,Revenue,CCHD,Home Care - Elderly - South,Other Small Contracts,Care 1st Homecare,3005.1, 21-Jan-2013
423,Revenue,CCHD,Home Care - Elderly - North,Other Small Contracts,Care 1st Homecare,5868.24, 21-Jan-2013
424,Revenue,CCHD,Day Care - South,Private & Voluntary Day Care,Care 1st Homecare,113.4, 21-Jan-2013
425,Revenue,CCHD,Day Care - North,Private & Voluntary Day Care,Care 1st Homecare,101.25, 21-Jan-2013
426,Revenue,CCHD,Home Care - LD Under 65 - South,Private & Voluntary Home Care,Care 1st Homecare,133.65, 21-Jan-2013
427,Revenue,CCHD,Bed Purchasing - PWLD S 117 Placements,Residential Homes,Care Community Ltd,7464.72, 22-Jan-2013
428,Revenue,CCHD,Purchase of Non-Res Care - KD,Private & Voluntary Day Care,Care Horizons Limited,1736.73, 08-Jan-2013
429,Revenue,CCHD,Purchase of Non-Res Care - KD,Private & Voluntary Day Care,Care Horizons Limited,5402.76, 07-Jan-2013
430,Revenue,CCHD,Supported Living - KD,Private & Voluntary Home Care,Care Horizons Limited,5322.68, 07-Jan-2013
431,Revenue,CCHD,Supported Living - PS,Private & Voluntary Home Care,Care Horizons Limited,1660.44, 15-Jan-2013
432,Revenue,CCHD,Purchase of Non-Res Care - KD,Private & Voluntary Day Care,Care Horizons Limited,1212.47, 17-Jan-2013
433,Revenue,CCHD,Purchase of Non-Res Care - KD,Private & Voluntary Day Care,Care Horizons Limited,901.4, 17-Jan-2013
434,Revenue,CCHD,Purchase of Non-Res Care - KD,Private & Voluntary Day Care,Care Horizons Limited,1364.83, 17-Jan-2013
435,Revenue,CCHD,Purchase of Non-Res Care - KD,Private & Voluntary Day Care,Care Horizons Limited,1036.73, 17-Jan-2013
436,Revenue,CCHD,Electronic Home Care Monitoring,Other Supplies & Services,Care Monitoring 2000 Limited,1340, 21-Jan-2013
437,Revenue,CCHD,Electronic Home Care Monitoring,Other Supplies & Services,Care Monitoring 2000 Limited,4972.6, 08-Jan-2013
438,Revenue,CCHD,Home Care - General,Other Supplies & Services,Care Monitoring 2000 Limited,7163.4, 08-Jan-2013
439,Revenue,CCHD,Electronic Home Care Monitoring,Other Supplies & Services,Care Monitoring 2000 Limited,1820, 08-Jan-2013
440,Revenue,CCHD,Home Care - Elderly - South,Other Small Contracts,Care UK,8205.36, 24-Jan-2013
441,Revenue,CCHD,Home Care - Elderly - North,Other Small Contracts,Care UK,3319.58, 24-Jan-2013
442,Revenue,CCHD,Day Care - South,Private & Voluntary Day Care,Care UK,347.62, 24-Jan-2013
443,Revenue,CCHD,Day Care - North,Private & Voluntary Day Care,Care UK,756.36, 24-Jan-2013
444,Revenue,CCHD,Home care - Elderly MH - North,Other Small Contracts,Care UK,615.02, 24-Jan-2013
445,Revenue,CCHD,Elderly MH Day Care North,Private & Voluntary Day Care,Care UK,137.52, 24-Jan-2013
446,Revenue,CCHD,Home Care - Elderly - South,Other Small Contracts,Care UK,8293.22, 02-Jan-2013
447,Revenue,CCHD,Home Care - Elderly - North,Other Small Contracts,Care UK,3743.6, 02-Jan-2013
448,Revenue,CCHD,Day Care - South,Private & Voluntary Day Care,Care UK,347.62, 02-Jan-2013
449,Revenue,CCHD,Day Care - North,Private & Voluntary Day Care,Care UK,783.1, 02-Jan-2013
450,Revenue,CCHD,Home care - Elderly MH - North,Other Small Contracts,Care UK,710.52, 02-Jan-2013
451,Revenue,CCHD,Elderly MH Day Care North,Private & Voluntary Day Care,Care UK,191, 02-Jan-2013
452,Revenue,CCHD,Home Care - Elderly - South,Other Small Contracts,Care UK,8472.76, 21-Jan-2013
453,Revenue,CCHD,Home Care - Elderly - North,Other Small Contracts,Care UK,3953.7, 21-Jan-2013
454,Revenue,CCHD,Day Care - South,Private & Voluntary Day Care,Care UK,347.62, 21-Jan-2013
455,Revenue,CCHD,Day Care - North,Private & Voluntary Day Care,Care UK,744.9, 21-Jan-2013
456,Revenue,CCHD,Home care - Elderly MH - North,Other Small Contracts,Care UK,699.06, 21-Jan-2013
457,Revenue,CCHD,Elderly MH Day Care North,Private & Voluntary Day Care,Care UK,183.36, 21-Jan-2013
458,Revenue,CCHD,Home Care - Elderly - South,Other Small Contracts,Care UK,8148.06, 21-Jan-2013
459,Revenue,CCHD,Home Care - Elderly - North,Other Small Contracts,Care UK,3651.92, 21-Jan-2013
460,Revenue,CCHD,Day Care - South,Private & Voluntary Day Care,Care UK,271.22, 21-Jan-2013
461,Revenue,CCHD,Day Care - North,Private & Voluntary Day Care,Care UK,779.28, 21-Jan-2013
462,Revenue,CCHD,Home care - Elderly MH - North,Other Small Contracts,Care UK,699.06, 21-Jan-2013
463,Revenue,CCHD,Elderly MH Day Care North,Private & Voluntary Day Care,Care UK,171.9, 21-Jan-2013
464,Revenue,CCHD,Home Care - Elderly - South,Other Small Contracts,Care UK,8151.88, 23-Jan-2013
465,Revenue,CCHD,Home Care - Elderly - North,Other Small Contracts,Care UK,3411.26, 23-Jan-2013
466,Revenue,CCHD,Day Care - South,Private & Voluntary Day Care,Care UK,309.42, 23-Jan-2013
467,Revenue,CCHD,Day Care - North,Private & Voluntary Day Care,Care UK,592.1, 23-Jan-2013
468,Revenue,CCHD,Home care - Elderly MH - North,Other Small Contracts,Care UK,718.16, 23-Jan-2013
469,Revenue,CCHD,Elderly MH Day Care North,Private & Voluntary Day Care,Care UK,191, 23-Jan-2013
470,Revenue,CCHD,Home Care - Elderly - South,Other Small Contracts,Care UK,6608.6, 29-Jan-2013
471,Revenue,CCHD,Home Care - Elderly - North,Other Small Contracts,Care UK,2536.48, 29-Jan-2013
472,Revenue,CCHD,Day Care - South,Private & Voluntary Day Care,Care UK,309.42, 29-Jan-2013
473,Revenue,CCHD,Day Care - North,Private & Voluntary Day Care,Care UK,141.34, 29-Jan-2013
474,Revenue,CCHD,Home care - Elderly MH - North,Other Small Contracts,Care UK,523.34, 29-Jan-2013
475,Revenue,CCHD,Elderly MH Day Care North,Private & Voluntary Day Care,Care UK,95.5, 29-Jan-2013
476,Revenue,CCHD,Home Care - Elderly - South,Other Small Contracts,Care UK,7395.52, 29-Jan-2013
477,Revenue,CCHD,Home Care - Elderly - North,Other Small Contracts,Care UK,3071.28, 29-Jan-2013
478,Revenue,CCHD,Day Care - South,Private & Voluntary Day Care,Care UK,168.08, 29-Jan-2013
479,Revenue,CCHD,Day Care - North,Private & Voluntary Day Care,Care UK,355.26, 29-Jan-2013
480,Revenue,CCHD,Home care - Elderly MH - North,Other Small Contracts,Care UK,565.36, 29-Jan-2013
481,Revenue,CCHD,Elderly MH Day Care North,Private & Voluntary Day Care,Care UK,141.34, 29-Jan-2013
482,Revenue,CCHD,Home Care - Elderly - North,Other Small Contracts,Carers R Us (Bristol) Limited,504.24, 14-Jan-2013
483,Revenue,CCHD,Home Care - Elderly - South,Other Small Contracts,Carewatch (Bristol),863.05, 17-Jan-2013
484,Revenue,CCHD,Home Care - Elderly - North,Other Small Contracts,Carewatch (Bristol),2003.96, 17-Jan-2013
485,Revenue,CCHD,Home Care - Elderly - South,Other Small Contracts,Carewatch (Bristol),795.69, 17-Jan-2013
486,Revenue,CCHD,Home Care - Elderly - North,Other Small Contracts,Carewatch (Bristol),1700.84, 17-Jan-2013
487,Revenue,CCHD,Home Care - Elderly - South,Other Small Contracts,Carewatch (Bristol),833.58, 17-Jan-2013
488,Revenue,CCHD,Home Care - Elderly - North,Other Small Contracts,Carewatch (Bristol),1970.28, 17-Jan-2013
489,Revenue,CCHD,Home Care - Elderly - South,Other Small Contracts,Carewatch (Bristol),896.73, 17-Jan-2013
490,Revenue,CCHD,Home Care - Elderly - North,Other Small Contracts,Carewatch (Bristol),1477.71, 17-Jan-2013
491,Revenue,CCHD,Home Care - Elderly - South,Other Small Contracts,Cash Friday at Lloyds TSB,96.5, 08-Jan-2013
492,Revenue,CCHD,Home Care - Elderly - North,Other Small Contracts,Cash Friday at Lloyds TSB,965, 08-Jan-2013
493,Revenue,CCHD,Day Care - North,Private & Voluntary Day Care,Cash Friday at Lloyds TSB,27.02, 08-Jan-2013
494,Revenue,CCHD,Home Care - Elderly - South,Other Small Contracts,Cash Friday at Lloyds TSB,100.36, 24-Jan-2013
495,Revenue,CCHD,Home Care - Elderly - North,Other Small Contracts,Cash Friday at Lloyds TSB,984.3, 24-Jan-2013
496,Revenue,CCHD,Day Care - North,Private & Voluntary Day Care,Cash Friday at Lloyds TSB,27.02, 24-Jan-2013
497,Revenue,CCHD,Home Care - Elderly - South,Other Small Contracts,Cash Friday at Lloyds TSB,100.36, 15-Jan-2013
498,Revenue,CCHD,Home Care - Elderly - North,Other Small Contracts,Cash Friday at Lloyds TSB,992.02, 15-Jan-2013
499,Revenue,CCHD,Day Care - North,Private & Voluntary Day Care,Cash Friday at Lloyds TSB,27.02, 15-Jan-2013
500,Revenue,CCHD,Home Care - Elderly - South,Other Small Contracts,Cash Friday at Lloyds TSB,100.36, 15-Jan-2013
501,Revenue,CCHD,Home Care - Elderly - North,Other Small Contracts,Cash Friday at Lloyds TSB,949.56, 15-Jan-2013
502,Revenue,CCHD,Day Care - North,Private & Voluntary Day Care,Cash Friday at Lloyds TSB,27.02, 15-Jan-2013
503,Revenue,CCHD,Home Care - Elderly - South,Other Small Contracts,Cash Friday at Lloyds TSB,100.36, 24-Jan-2013
504,Revenue,CCHD,Home Care - Elderly - North,Other Small Contracts,Cash Friday at Lloyds TSB,953.42, 24-Jan-2013
505,Revenue,CCHD,Day Care - North,Private & Voluntary Day Care,Cash Friday at Lloyds TSB,27.02, 24-Jan-2013
506,Revenue,CCHD,Home Care - Elderly - South,Other Small Contracts,Cash Friday at Lloyds TSB,96.5, 24-Jan-2013
507,Revenue,CCHD,Home Care - Elderly - North,Other Small Contracts,Cash Friday at Lloyds TSB,988.16, 24-Jan-2013
508,Revenue,CCHD,Day Care - North,Private & Voluntary Day Care,Cash Friday at Lloyds TSB,11.58, 24-Jan-2013
509,Revenue,CCHD,Home Care - Elderly - South,Other Small Contracts,Cash Friday at Lloyds TSB,100.36, 25-Jan-2013
510,Revenue,CCHD,Home Care - Elderly - North,Other Small Contracts,Cash Friday at Lloyds TSB,980.44, 25-Jan-2013
511,Revenue,CCHD,Day Care - North,Private & Voluntary Day Care,Cash Friday at Lloyds TSB,27.02, 25-Jan-2013
512,Revenue,CCHD,Frenchay Hospital Purchasing,Nursing Homes,Cedar Care Homes Ltd,1041.52, 22-Jan-2013
513,Revenue,CCHD,Frenchay Hospital Purchasing,Residential Homes,Centenary Care Homes Ltd,1239.2, 22-Jan-2013
514,Revenue,CCHD,Bed Purchasing - Elderly - South,Residential Homes,Cepen Lodge Care Home,2155.6, 22-Jan-2013
515,Revenue,CCHD,Southmead Hospital Purchasing,Residential Homes,Charlton House Residential Home,1372.96, 22-Jan-2013
516,Revenue,CCHD,Home Care - Elderly - South,Other Small Contracts,Cherish Able Care Limited,3003.48, 04-Jan-2013
517,Revenue,CCHD,Home care - Elderly MH - North,Other Small Contracts,Cherish Able Care Limited,57.68, 04-Jan-2013
518,Revenue,CCHD,Home Care - Elderly - South,Other Small Contracts,Cherish Able Care Limited,3165.32, 09-Jan-2013
519,Revenue,CCHD,Home care - Elderly MH - North,Other Small Contracts,Cherish Able Care Limited,57.68, 09-Jan-2013
520,Revenue,CCHD,Home Care - Elderly - South,Other Small Contracts,Cherish Able Care Limited,3139.44, 18-Jan-2013
521,Revenue,CCHD,Home Care - Elderly - North,Other Small Contracts,Cherish Able Care Limited,263.68, 18-Jan-2013
522,Revenue,CCHD,Home care - Elderly MH - North,Other Small Contracts,Cherish Able Care Limited,57.68, 18-Jan-2013
523,Revenue,CCHD,Home Care - Elderly - South,Other Small Contracts,Cherish Able Care Limited,3199.4, 18-Jan-2013
524,Revenue,CCHD,Home Care - Elderly - North,Other Small Contracts,Cherish Able Care Limited,259.56, 18-Jan-2013
525,Revenue,CCHD,Home care - Elderly MH - North,Other Small Contracts,Cherish Able Care Limited,61.8, 18-Jan-2013
526,Revenue,CCHD,Bed purchasing -S28A  Under 65 - North,Residential Homes,Chescombe Lodge,8489.04, 22-Jan-2013
527,Revenue,CCHD,Bed Purchasing - Under 65s PWLD - South,Residential Homes,Chosen Court,6846.32, 22-Jan-2013
528,Revenue,CCHD,Bed Purchasing - PWLD S 117 Placements,Residential Homes,Chosen Court,10082.4, 22-Jan-2013
529,Revenue,CCHD,Bed Purchasing - Under 65s PWLD - South,Residential Homes,Chosen Court,5495.84, 22-Jan-2013
530,Revenue,CCHD,Training - Adult Services,Training Expenses,Chris Garnier,725, 21-Jan-2013
531,Revenue,CCHD,Bed purchasing - Under 65s PWLD - North,Residential Homes,Church House,10256, 22-Jan-2013
532,Revenue,CCHD,Bed purchasing - Under 65s PWLD - North,Residential Homes,Church House,5761.36, 22-Jan-2013
533,Revenue,CCHD,Supported Living - PS,Private & Voluntary Home Care,Cintre Community,506.7, 07-Jan-2013
534,Revenue,CCHD,Supported Living - PS,Private & Voluntary Home Care,Cintre Community,506.7, 31-Jan-2013
535,Revenue,CCHD,Bed Purchasing - Elderly - South,Residential Homes,Clarence Park Nursing Home,1371.43, 22-Jan-2013
536,Revenue,CCHD,Bed Purchasing - Under 65s PWLD - South,Fees & Charges Income - General,Clearwater Care ( Hackney) Limited,3524.58, 28-Jan-2013
537,Revenue,CCHD,Bed Purchasing - Elderly - South,Residential Homes,Cleeve Lodge,1597.04, 22-Jan-2013
538,Revenue,CCHD,Bed Purchasing - Elderly - North,Residential Homes,Cleeve Lodge,1009.44, 22-Jan-2013
539,Revenue,CCHD,Southmead Hospital Purchasing,Residential Homes,Cleeve Lodge,1425.36, 22-Jan-2013
540,Revenue,CCHD,Bed Purchasing - Elderly - South,Residential Homes,Cleeve Lodge,1750.68, 22-Jan-2013
541,Revenue,CCHD,Bed Purchasing - Elderly - South,Residential Homes,Cleeve Lodge,1449.08, 22-Jan-2013
542,Revenue,CCHD,Bed Purchasing - Elderly - South,Residential Homes,Cleeve Lodge,2236.96, 22-Jan-2013
543,Revenue,CCHD,Bed Purchasing - Elderly - South,Residential Homes,Cleeve Lodge,1767.96, 22-Jan-2013
544,Revenue,CCHD,Bed Purchasing - Elderly - South,Residential Homes,Cleeve Lodge,2665.6, 22-Jan-2013
545,Revenue,CCHD,Bed Purchasing - Elderly - South,Residential Homes,Cleeve Lodge,2000, 22-Jan-2013
546,Revenue,CCHD,Bed Purchasing - Elderly - South,Residential Homes,Cleeve Lodge,1523.2, 22-Jan-2013
547,Revenue,CCHD,Frenchay Hospital Purchasing,Residential Homes,Collingwood Residential Home,1027.68, 22-Jan-2013
548,Revenue,CCHD,Bed Purchasing - Elderly - South,Residential Homes,Collingwood Residential Home,1284.12, 22-Jan-2013
549,Revenue,CCHD,Bed Purchasing - Elderly - South,Residential Homes,Collingwood Residential Home,1417.96, 22-Jan-2013
550,Revenue,CCHD,Bed Purchasing - Elderly - South,Residential Homes,Collingwood Residential Home,1063.47, 22-Jan-2013
551,Revenue,CCHD,Bed Purchasing - Elderly - South,Residential Homes,Collingwood Residential Home,1058.6, 22-Jan-2013
552,Revenue,CCHD,Bed Purchasing - Elderly - South,Residential Homes,Collingwood Residential Home,1543.2, 22-Jan-2013
553,Revenue,CCHD,Bed Purchasing - Elderly - South,Residential Homes,Collingwood Residential Home,1323.64, 22-Jan-2013
554,Revenue,CCHD,Bed Purchasing - Elderly MH - South,Residential Homes,Collingwood Residential Home,1298.4, 22-Jan-2013
555,Revenue,CCHD,Bed Purchasing - Elderly - South,Residential Homes,Collingwood Residential Home,1247.92, 22-Jan-2013
556,Revenue,CCHD,Bed Purchasing - Elderly - South,Residential Homes,Collingwood Residential Home,1373.76, 22-Jan-2013
557,Revenue,CCHD,Bed Purchasing - Elderly - South,Residential Homes,Collingwood Residential Home,1245.88, 22-Jan-2013
558,Revenue,CCHD,Bed Purchasing - Elderly - South,Residential Homes,Collingwood Residential Home,1396.72, 22-Jan-2013
559,Revenue,CCHD,Training - Adult Services,Training Expenses,ComputerWorld Training Limited,550, 18-Jan-2013
560,Revenue,CCHD,Training - Adult Services,Training Expenses,ComputerWorld Training Limited,550, 25-Jan-2013
561,Revenue,CCHD,Bed and Breakfast,Bed & Breakfast,Connolly & Callaghan Limited,441, 30-Jan-2013
562,Revenue,CCHD,Bed and Breakfast,Bed & Breakfast,Connolly & Callaghan Limited,441, 30-Jan-2013
563,Revenue,CCHD,Bed and Breakfast,Bed & Breakfast,Connolly & Callaghan Limited,441, 30-Jan-2013
564,Revenue,CCHD,Bed and Breakfast,Bed & Breakfast,Connolly & Callaghan Limited,441, 30-Jan-2013
565,Revenue,CCHD,Bed and Breakfast,Bed & Breakfast,Connolly & Callaghan Limited,441, 30-Jan-2013
566,Revenue,CCHD,Bed and Breakfast,Bed & Breakfast,Connolly & Callaghan Limited,441, 31-Jan-2013
567,Revenue,CCHD,Bed and Breakfast,Bed & Breakfast,Connolly & Callaghan Limited,441, 31-Jan-2013
568,Revenue,CCHD,Bed and Breakfast,Bed & Breakfast,Connolly & Callaghan Limited,441, 31-Jan-2013
569,Revenue,CCHD,Bed and Breakfast,Bed & Breakfast,Connolly & Callaghan Limited,441, 31-Jan-2013
570,Revenue,CCHD,Bed purchasing -S28A  Under 65 - North,Residential Homes,Cream Ii Ltd  Longrun House,7845.84, 22-Jan-2013
571,Revenue,CCHD,Bed Purchasing - Under 65s PWLD - South,Residential Homes,Cream Ii Ltd  Longrun House,5493.72, 22-Jan-2013
572,Revenue,CCHD,Bed purchasing -S28A  Under 65 - North,Residential Homes,Creedy Court,9074.84, 22-Jan-2013
573,Revenue,CCHD,Bed Purchasing - S28A - Over 65- North,Residential Homes,Creedy Court,7548.92, 22-Jan-2013
574,Revenue,CCHD,Brokerage and Information Service,Grants to Voluntary Bodies,D H I,9210.08, 25-Jan-2013
575,Revenue,CCHD,Alexandra Way,"Provisions (Food, etc)",Dairy Crest Limited,789.12, 10-Jan-2013
576,Revenue,CCHD,Purchase of Non-Res Care - PS,Private & Voluntary Day Care,Daneswood,5525.3, 15-Jan-2013
577,Revenue,CCHD,Purchase of Non-Res Care - PS,Private & Voluntary Day Care,Daneswood,4771.85, 31-Jan-2013
578,Revenue,CCHD,Bed Purchasing - Under 65s PWLD - South,Residential Homes,Daneswood,10754.88, 22-Jan-2013
579,Revenue,CCHD,Bed purchasing - Under 65s PWLD - North,Residential Homes,Daneswood,8901.24, 22-Jan-2013
580,Revenue,CCHD,Learning Difficulties PSL,Other Supplies & Services,Individual,2016.44, 22-Jan-2013
581,Revenue,CCHD,Training - Adult Services,Training Expenses,Denise Hope,1875, 02-Jan-2013
582,Revenue,CCHD,Purchase of Non-Res Care - KD,Private & Voluntary Day Care,Design 4 Life Ltd,1472.08, 18-Jan-2013
583,Revenue,CCHD,Purchase of Non-Res Care - KD,Private & Voluntary Day Care,Design 4 Life Ltd,1024.8, 31-Jan-2013
584,Revenue,CCHD,Purchase of Non-Res Care - KD,Private & Voluntary Day Care,Design 4 Life Ltd,1390.68, 21-Jan-2013
585,Revenue,CCHD,Bed Purchasing - Under 65s PWLD - South,Residential Homes,Devon & Cornwall Autistic Community Trus,8588.04, 22-Jan-2013
586,Revenue,CCHD,Day Care - South,Private & Voluntary Day Care,Dhek Bhal,919.16, 10-Jan-2013
587,Revenue,CCHD,Day Care - South,Private & Voluntary Day Care,Dhek Bhal,731.15, 10-Jan-2013
588,Revenue,CCHD,Information Systems - Software,Other Supplies & Services,Dilys Jones Associates Ltd,1100, 08-Jan-2013
589,Revenue,CCHD,Bed Purchasing - Under 65s PWLD - South,Residential Homes,Dimensions (Uk),4763.44, 22-Jan-2013
590,Revenue,CCHD,Supported Living - PS,Private & Voluntary Home Care,Dimensions (UK) Ltd,8006.68, 08-Jan-2013
591,Revenue,CCHD,Supported Living - PS,Private & Voluntary Home Care,Dimensions (UK) Ltd,8006.68, 28-Jan-2013
592,Revenue,CCHD,Supported Living - PS,Private & Voluntary Home Care,Dimensions (UK) Ltd,8006.68, 11-Jan-2013
593,Revenue,CCHD,Supported Living - PS,Private & Voluntary Home Care,Dimensions (UK) Ltd,8006.68, 11-Jan-2013
594,Revenue,CCHD,Home Care - Elderly - South,Other Small Contracts,DoCare Ltd,3344.88, 02-Jan-2013
595,Revenue,CCHD,Home Care - Elderly - North,Other Small Contracts,DoCare Ltd,5257.56, 02-Jan-2013
596,Revenue,CCHD,Day Care - South,Private & Voluntary Day Care,DoCare Ltd,115.5, 02-Jan-2013
597,Revenue,CCHD,Day Care - North,Private & Voluntary Day Care,DoCare Ltd,258.72, 02-Jan-2013
598,Revenue,CCHD,Home Care - Elderly - South,Other Small Contracts,DoCare Ltd,3321.78, 29-Jan-2013
599,Revenue,CCHD,Home Care - Elderly - North,Other Small Contracts,DoCare Ltd,5040.42, 29-Jan-2013
600,Revenue,CCHD,Day Care - South,Private & Voluntary Day Care,DoCare Ltd,97.02, 29-Jan-2013
601,Revenue,CCHD,Day Care - North,Private & Voluntary Day Care,DoCare Ltd,189.42, 29-Jan-2013
602,Revenue,CCHD,Home Care - Elderly - South,Other Small Contracts,DoCare Ltd,3294.06, 29-Jan-2013
603,Revenue,CCHD,Home Care - Elderly - North,Other Small Contracts,DoCare Ltd,5594.82, 29-Jan-2013
604,Revenue,CCHD,Day Care - South,Private & Voluntary Day Care,DoCare Ltd,110.88, 29-Jan-2013
605,Revenue,CCHD,Day Care - North,Private & Voluntary Day Care,DoCare Ltd,277.2, 29-Jan-2013
606,Revenue,CCHD,Home Care - Elderly - South,Other Small Contracts,DoCare Ltd,3557.4, 17-Jan-2013
607,Revenue,CCHD,Home Care - Elderly - North,Other Small Contracts,DoCare Ltd,5220.6, 17-Jan-2013
608,Revenue,CCHD,Day Care - South,Private & Voluntary Day Care,DoCare Ltd,101.64, 17-Jan-2013
609,Revenue,CCHD,Day Care - North,Private & Voluntary Day Care,DoCare Ltd,198.66, 17-Jan-2013
610,Revenue,CCHD,Home Care - Elderly - South,Other Small Contracts,DoCare Ltd,3136.98, 18-Jan-2013
611,Revenue,CCHD,Home Care - Elderly - North,Other Small Contracts,DoCare Ltd,3954.72, 18-Jan-2013
612,Revenue,CCHD,Day Care - South,Private & Voluntary Day Care,DoCare Ltd,55.44, 18-Jan-2013
613,Revenue,CCHD,Day Care - North,Private & Voluntary Day Care,DoCare Ltd,110.88, 18-Jan-2013
614,Revenue,CCHD,Bed Purchasing - Elderly - South,Nursing Homes,Dunkirk Memorial House,1158.2, 22-Jan-2013
615,Revenue,CCHD,MH Purchasing - Younger,Residential Homes,Dunraven House,1810.24, 22-Jan-2013
616,Revenue,CCHD,Bed and Breakfast,Bed & Breakfast,E J Bartlett,840, 10-Jan-2013
617,Revenue,CCHD,Bed and Breakfast,Bed & Breakfast,E J Bartlett,525, 10-Jan-2013
618,Revenue,CCHD,Bed and Breakfast,Bed & Breakfast,E J Bartlett,630, 10-Jan-2013
619,Revenue,CCHD,Bed and Breakfast,Bed & Breakfast,E J Bartlett,840, 10-Jan-2013
620,Revenue,CCHD,Bed and Breakfast,Bed & Breakfast,E J Bartlett,525, 11-Jan-2013
621,Revenue,CCHD,Bed and Breakfast,Bed & Breakfast,E J Bartlett,630, 10-Jan-2013
622,Revenue,CCHD,Bed and Breakfast,Bed & Breakfast,E J Bartlett,840, 22-Jan-2013
623,Revenue,CCHD,Bed and Breakfast,Bed & Breakfast,E J Bartlett,465, 22-Jan-2013
624,Revenue,CCHD,Bed and Breakfast,Bed & Breakfast,E J Bartlett,525, 22-Jan-2013
625,Revenue,CCHD,Bed and Breakfast,Bed & Breakfast,E J Bartlett,630, 22-Jan-2013
626,Revenue,CCHD,Bed and Breakfast,Bed & Breakfast,E J Bartlett,540, 24-Jan-2013
627,Revenue,CCHD,Bed and Breakfast,Bed & Breakfast,E J Bartlett,525, 24-Jan-2013
628,Revenue,CCHD,Bed and Breakfast,Bed & Breakfast,E J Bartlett,600, 24-Jan-2013
629,Revenue,CCHD,Bed and Breakfast,Bed & Breakfast,E J Bartlett,840, 24-Jan-2013
630,Revenue,CCHD,Swift Dump Code,Residential Homes,East Court,2160.8, 07-Jan-2013
631,Revenue,CCHD,Bed purchasing - Under 65s PWLD - North,Residential Homes,East Court,2160.8, 22-Jan-2013
632,Revenue,CCHD,Minor Adaptations Service,Operational Equipment,Eastman & Co (Timber) Limited,485.08, 18-Jan-2013
633,Revenue,CCHD,Bed purchasing - Under 65s PWLD - North,Residential Homes,Ebley House,7384.2, 22-Jan-2013
634,Revenue,CCHD,Bed Purchasing - PWLD S 117 Placements,Residential Homes,Eclipse Office Park,5716.52, 22-Jan-2013
635,Revenue,CCHD,Charlton,Electricity,EDF Energy 1 Limited,1028.9, 22-Jan-2013
636,Revenue,CCHD,Woodleaze,Electricity,EDF Energy 1 Limited,989.56, 22-Jan-2013
637,Revenue,CCHD,Alexandra Way,Electricity,EDF Energy 1 Limited,1242.87, 22-Jan-2013
638,Revenue,CCHD,Bed Purchasing - Elderly - North,Residential Homes,Edgecumbe Lodge,890, 22-Jan-2013
639,Revenue,CCHD,Southmead Hospital Purchasing,Residential Homes,Edgecumbe Lodge,1239.2, 22-Jan-2013
640,Revenue,CCHD,Bed Purchasing - Elderly - South,Residential Homes,Edgecumbe Lodge,2806.4, 22-Jan-2013
641,Revenue,CCHD,Bed Purchasing - Elderly - South,Residential Homes,Edgecumbe Lodge,1302.52, 22-Jan-2013
642,Revenue,CCHD,Bed Purchasing - Elderly - South,Residential Homes,Edgecumbe Lodge,1229.4, 22-Jan-2013
643,Revenue,CCHD,Bed Purchasing - Elderly - South,Residential Homes,Edgecumbe Lodge,993.76, 22-Jan-2013
644,Revenue,CCHD,Frenchay Hospital Purchasing,Residential Homes,Edgecumbe Lodge,1110.52, 22-Jan-2013
645,Revenue,CCHD,Frenchay Hospital Purchasing,Residential Homes,Edgecumbe Lodge,1056, 22-Jan-2013
646,Revenue,CCHD,Bed Purchasing - Elderly MH - South,Residential Homes,Edgecumbe Lodge,1147.84, 22-Jan-2013
647,Revenue,CCHD,Southmead Hospital Purchasing,Residential Homes,Edgemont House Ltd,1403.2, 22-Jan-2013
648,Revenue,CCHD,Bed Purchasing - Elderly - South,Residential Homes,Edgemont House Ltd,1243.44, 22-Jan-2013
649,Revenue,CCHD,Frenchay Hospital Purchasing,Residential Homes,Edgemont House Ltd,1361.56, 22-Jan-2013
650,Revenue,CCHD,Bed Purchasing - Elderly - South,Residential Homes,Edgemont House Ltd,1403.2, 22-Jan-2013
651,Revenue,CCHD,Bed Purchasing - Elderly - South,Nursing Homes,Edgemont View Nursing Home,1418.52, 22-Jan-2013
652,Revenue,CCHD,Frenchay Hospital Purchasing,Nursing Homes,Edgemont View Nursing Home,1341.28, 22-Jan-2013
653,Revenue,CCHD,Bed Purchasing - Elderly - South,Nursing Homes,Edgemont View Nursing Home,1295.2, 22-Jan-2013
654,Revenue,CCHD,Bed Purchasing - Elderly - South,Nursing Homes,Edgemont View Nursing Home,1602.76, 22-Jan-2013
655,Revenue,CCHD,Frenchay Hospital Purchasing,Nursing Homes,Edgemont View Nursing Home,606.84, 22-Jan-2013
656,Revenue,CCHD,Bed Purchasing - Under 65s PWLD - South,Residential Homes,Education & Services for People with Autism,10615.08, 28-Jan-2013
657,Revenue,CCHD,Supporting People Programme,Grants to Voluntary Bodies,Elim Housing Association Limited,4898.24, 02-Jan-2013
658,Revenue,CCHD,Home Care - Elderly - South,Other Small Contracts,Elite Home Care Ltd,2455.11, 02-Jan-2013
659,Revenue,CCHD,Under 65s -MH  Home Care Purch,Other Small Contracts,Elite Home Care Ltd,77.94, 02-Jan-2013
660,Revenue,CCHD,Home care - Elderly MH - North,Other Small Contracts,Elite Home Care Ltd,363.72, 02-Jan-2013
661,Revenue,CCHD,Home Care - Elderly - South,Other Small Contracts,Elite Home Care Ltd,2433.46, 14-Jan-2013
662,Revenue,CCHD,Under 65s -MH  Home Care Purch,Other Small Contracts,Elite Home Care Ltd,77.94, 14-Jan-2013
663,Revenue,CCHD,Home care - Elderly MH - North,Other Small Contracts,Elite Home Care Ltd,363.72, 14-Jan-2013
664,Revenue,CCHD,Home Care - Elderly - South,Other Small Contracts,Elite Home Care Ltd,2260.26, 14-Jan-2013
665,Revenue,CCHD,Under 65s -MH  Home Care Purch,Other Small Contracts,Elite Home Care Ltd,51.96, 14-Jan-2013
666,Revenue,CCHD,Home care - Elderly MH - North,Other Small Contracts,Elite Home Care Ltd,337.74, 14-Jan-2013
667,Revenue,CCHD,Home Care - Elderly - South,Other Small Contracts,Elite Home Care Ltd,2394.49, 24-Jan-2013
668,Revenue,CCHD,Under 65s -MH  Home Care Purch,Other Small Contracts,Elite Home Care Ltd,60.62, 24-Jan-2013
669,Revenue,CCHD,Home care - Elderly MH - North,Other Small Contracts,Elite Home Care Ltd,363.72, 24-Jan-2013
670,Revenue,CCHD,Home Care - Elderly - South,Other Small Contracts,Elite Home Care Ltd,2463.77, 21-Jan-2013
671,Revenue,CCHD,Under 65s -MH  Home Care Purch,Other Small Contracts,Elite Home Care Ltd,64.95, 21-Jan-2013
672,Revenue,CCHD,Home care - Elderly MH - North,Other Small Contracts,Elite Home Care Ltd,359.39, 21-Jan-2013
673,Revenue,CCHD,Bed Purchasing - Elderly - South,Residential Homes,Elmbridge Residential Home Ltd,1309.56, 22-Jan-2013
674,Revenue,CCHD,Frenchay Hospital Purchasing,Nursing Homes,Elmwood Nursing Home,2213.12, 22-Jan-2013
675,Revenue,CCHD,Supporting People Programme,Grants to Voluntary Bodies,English Churches Housing Group,2069, 02-Jan-2013
676,Revenue,CCHD,Younger MH non-res purchasing,Private & Voluntary Day Care,Enham,638.72, 11-Jan-2013
677,Revenue,CCHD,Southmead Hospital Purchasing,Nursing Homes,Epworth House,1327.2, 22-Jan-2013
678,Revenue,CCHD,Home Care - Elderly - South,Other Small Contracts,Everycare (Bristol) Ltd,2259.6, 23-Jan-2013
679,Revenue,CCHD,Home Care - Elderly - North,Other Small Contracts,Everycare (Bristol) Ltd,1331.4, 23-Jan-2013
680,Revenue,CCHD,Home Care - Elderly - South,Other Small Contracts,Everycare (Bristol) Ltd,2608.2, 21-Jan-2013
681,Revenue,CCHD,Home Care - Elderly - North,Other Small Contracts,Everycare (Bristol) Ltd,1604.4, 21-Jan-2013
682,Revenue,CCHD,Home Care - Elderly - South,Other Small Contracts,Everycare (Bristol) Ltd,2553.6, 02-Jan-2013
683,Revenue,CCHD,Home Care - Elderly - North,Other Small Contracts,Everycare (Bristol) Ltd,1617, 02-Jan-2013
684,Revenue,CCHD,Home Care - Elderly - South,Other Small Contracts,Everycare (Bristol) Ltd,2427.6, 21-Jan-2013
685,Revenue,CCHD,Home Care - Elderly - North,Other Small Contracts,Everycare (Bristol) Ltd,1516.2, 21-Jan-2013
686,Revenue,CCHD,Home Care - Elderly - South,Other Small Contracts,Everycare (Bristol) Ltd,3288.6, 24-Jan-2013
687,Revenue,CCHD,Home Care - Elderly - North,Other Small Contracts,Everycare (Bristol) Ltd,1541.4, 24-Jan-2013
688,Revenue,CCHD,Home Care - Elderly - South,Other Small Contracts,Everycare (Bristol) Ltd,3049.2, 29-Jan-2013
689,Revenue,CCHD,Home Care - Elderly - North,Other Small Contracts,Everycare (Bristol) Ltd,1860.6, 29-Jan-2013
690,Revenue,CCHD,Bed Purchasing - Elderly MH - South,Residential Homes,Exmouth House,1382.92, 22-Jan-2013
691,Revenue,CCHD,Southmead Hospital Purchasing,Residential Homes,Fairfield House Care Home,2497.6, 22-Jan-2013
692,Revenue,CCHD,Bed Purchasing - Elderly - South,Nursing Homes,Fairview Court,1182.44, 22-Jan-2013
693,Revenue,CCHD,Bed purchasing - Elderly MH - North,Nursing Homes,Fairview Court,1604.64, 22-Jan-2013
694,Revenue,CCHD,Bed Purchasing - Elderly MH - South,Nursing Homes,Fairview Court,1770.36, 22-Jan-2013
695,Revenue,CCHD,South Glos Users in South Glos Homes,Nursing Homes,Fairview Court,714.31, 22-Jan-2013
696,Revenue,CCHD,Bed Purchasing - Elderly MH - South,Residential Homes,Fairview Court,1403.2, 22-Jan-2013
697,Revenue,CCHD,Bed Purchasing - Elderly - South,Residential Homes,Fairview Court,2623.36, 22-Jan-2013
698,Revenue,CCHD,Bed Purchasing - Elderly - South,Residential Homes,Fairview Court,2118.56, 22-Jan-2013
699,Revenue,CCHD,Bed Purchasing - Elderly - North,Nursing Homes,Fairview Court,1094.64, 22-Jan-2013
700,Revenue,CCHD,Bed Purchasing - Elderly MH - South,Nursing Homes,Fairview Court,1988.4, 22-Jan-2013
701,Revenue,CCHD,Frenchay Hospital Purchasing,Nursing Homes,Fairview Court Care Home,1443.57, 02-Jan-2013
702,Revenue,CCHD,South Glos Users in South Glos Homes,Nursing Homes,Fairview Court Care Home,2795.14, 02-Jan-2013
703,Revenue,CCHD,Bed purchasing - Phys Dis - North,Nursing Homes,Fairview Court Care Home,1912.82, 02-Jan-2013
704,Revenue,CCHD,Bed Purchasing - Elderly MH - South,Nursing Homes,Fairview Court Care Home,2956.75, 02-Jan-2013
705,Revenue,CCHD,Bed purchasing - Elderly S117 - South,Nursing Homes,Fairview Court Care Home,2467.77, 02-Jan-2013
706,Revenue,CCHD,Bed Purchasing - Elderly - South,Residential Homes,Fairview House,634.12, 22-Jan-2013
707,Revenue,CCHD,Bed Purchasing - Elderly - South,Residential Homes,Fairview House,1255.24, 22-Jan-2013
708,Revenue,CCHD,Frenchay Hospital Purchasing,Residential Homes,Fairview House,995.44, 22-Jan-2013
709,Revenue,CCHD,Bed Purchasing - Elderly MH - South,Residential Homes,Fairview House,1188.77, 22-Jan-2013
710,Revenue,CCHD,Bed Purchasing - Elderly - South,Residential Homes,Fairview House,926.2, 22-Jan-2013
711,Revenue,CCHD,Bed purchasing - Elderly S117 - South,Residential Homes,Fairview House,1870.92, 22-Jan-2013
712,Revenue,CCHD,Southmead Hospital Purchasing,Residential Homes,Fairview House,1021.08, 22-Jan-2013
713,Revenue,CCHD,Southmead Hospital Purchasing,Residential Homes,Fairview House,1111.28, 22-Jan-2013
714,Revenue,CCHD,South Glos Users in South Glos Homes,Nursing Homes,Fairview House,2360.34, 22-Jan-2013
715,Revenue,CCHD,Bed Purchasing - Elderly MH - South,Residential Homes,Fairview House,1097.2, 22-Jan-2013
716,Revenue,CCHD,Frenchay Hospital Purchasing,Residential Homes,Fairview House,1239.2, 22-Jan-2013
717,Revenue,CCHD,Southmead Hospital Purchasing,Residential Homes,Fairview House,1056.12, 22-Jan-2013
718,Revenue,CCHD,Bed Purchasing - Elderly MH - South,Residential Homes,Fairview House,1038.44, 22-Jan-2013
719,Revenue,CCHD,Bed Purchasing - Elderly MH - South,Residential Homes,Fairview House,1198.68, 22-Jan-2013
720,Revenue,CCHD,Bed Purchasing - Elderly - North,Residential Homes,Faith House,871.16, 22-Jan-2013
721,Revenue,CCHD,Frenchay Hospital Purchasing,Residential Homes,Faith House,1302, 22-Jan-2013
722,Revenue,CCHD,Bed purchasing - Under 65s PWLD - North,Residential Homes,Fernbank,8479.4, 22-Jan-2013
723,Revenue,CCHD,Purchase of Non-Res Care - PS,Private & Voluntary Day Care,Firstpoint Homecare Ltd,1326.93, 07-Jan-2013
724,Revenue,CCHD,Purchase of Non-Res Care - PS,Private & Voluntary Day Care,Firstpoint Homecare Ltd,1273.07, 14-Jan-2013
725,Revenue,CCHD,Purchase of Non-Res Care - PS,Private & Voluntary Day Care,Firstpoint Homecare Ltd,1273.07, 31-Jan-2013
726,Revenue,CCHD,Purchase of Non-Res Care - PS,Private & Voluntary Day Care,Firstpoint Homecare Ltd,803.79, 14-Jan-2013
727,Revenue,CCHD,Purchase of Non-Res Care - PS,Private & Voluntary Day Care,Firstpoint Homecare Ltd,1038.43, 17-Jan-2013
728,Revenue,CCHD,Purchase of Non-Res Care - PS,Private & Voluntary Day Care,Firstpoint Homecare Ltd,1273.07, 25-Jan-2013
729,Revenue,CCHD,Home Care - Elderly - South,Other Small Contracts,Firstpoint Homecare Ltd,1884.8, 14-Jan-2013
730,Revenue,CCHD,Home Care - Elderly - North,Other Small Contracts,Firstpoint Homecare Ltd,748.6, 14-Jan-2013
731,Revenue,CCHD,Day Care - South,Private & Voluntary Day Care,Firstpoint Homecare Ltd,581.4, 14-Jan-2013
732,Revenue,CCHD,Day Care - North,Private & Voluntary Day Care,Firstpoint Homecare Ltd,304, 14-Jan-2013
733,Revenue,CCHD,Under 65s -MH  Home Care Purch,Other Small Contracts,Firstpoint Homecare Ltd,91.2, 14-Jan-2013
734,Revenue,CCHD,Younger MH non-res purchasing,Private & Voluntary Day Care,Firstpoint Homecare Ltd,68.4, 14-Jan-2013
735,Revenue,CCHD,Home care - Elderly MH - North,Other Small Contracts,Firstpoint Homecare Ltd,190, 14-Jan-2013
736,Revenue,CCHD,Elderly MH Day Care North,Private & Voluntary Day Care,Firstpoint Homecare Ltd,95, 14-Jan-2013
737,Revenue,CCHD,Home Care - Elderly - South,Other Small Contracts,Firstpoint Homecare Ltd,1884.8, 17-Jan-2013
738,Revenue,CCHD,Home Care - Elderly - North,Other Small Contracts,Firstpoint Homecare Ltd,737.2, 17-Jan-2013
739,Revenue,CCHD,Day Care - South,Private & Voluntary Day Care,Firstpoint Homecare Ltd,543.4, 17-Jan-2013
740,Revenue,CCHD,Day Care - North,Private & Voluntary Day Care,Firstpoint Homecare Ltd,262.2, 17-Jan-2013
741,Revenue,CCHD,Under 65s -MH  Home Care Purch,Other Small Contracts,Firstpoint Homecare Ltd,91.2, 17-Jan-2013
742,Revenue,CCHD,Younger MH non-res purchasing,Private & Voluntary Day Care,Firstpoint Homecare Ltd,129.2, 17-Jan-2013
743,Revenue,CCHD,Home care - Elderly MH - North,Other Small Contracts,Firstpoint Homecare Ltd,201.4, 17-Jan-2013
744,Revenue,CCHD,Elderly MH Day Care North,Private & Voluntary Day Care,Firstpoint Homecare Ltd,91.2, 17-Jan-2013
745,Revenue,CCHD,Home Care - Elderly - South,Other Small Contracts,Firstpoint Homecare Ltd,2021.6, 15-Jan-2013
746,Revenue,CCHD,Home Care - Elderly - North,Other Small Contracts,Firstpoint Homecare Ltd,779, 15-Jan-2013
747,Revenue,CCHD,Day Care - South,Private & Voluntary Day Care,Firstpoint Homecare Ltd,615.6, 15-Jan-2013
748,Revenue,CCHD,Day Care - North,Private & Voluntary Day Care,Firstpoint Homecare Ltd,258.4, 15-Jan-2013
749,Revenue,CCHD,Under 65s -MH  Home Care Purch,Other Small Contracts,Firstpoint Homecare Ltd,45.6, 15-Jan-2013
750,Revenue,CCHD,Younger MH non-res purchasing,Private & Voluntary Day Care,Firstpoint Homecare Ltd,68.4, 15-Jan-2013
751,Revenue,CCHD,Home care - Elderly MH - North,Other Small Contracts,Firstpoint Homecare Ltd,201.4, 15-Jan-2013
752,Revenue,CCHD,Elderly MH Day Care North,Private & Voluntary Day Care,Firstpoint Homecare Ltd,91.2, 15-Jan-2013
753,Revenue,CCHD,Home Care - Elderly - South,Other Small Contracts,Firstpoint Homecare Ltd,1630.2, 15-Jan-2013
754,Revenue,CCHD,Home Care - Elderly - North,Other Small Contracts,Firstpoint Homecare Ltd,657.4, 15-Jan-2013
755,Revenue,CCHD,Day Care - South,Private & Voluntary Day Care,Firstpoint Homecare Ltd,254.6, 15-Jan-2013
756,Revenue,CCHD,Day Care - North,Private & Voluntary Day Care,Firstpoint Homecare Ltd,167.2, 15-Jan-2013
757,Revenue,CCHD,Home care - Elderly MH - North,Other Small Contracts,Firstpoint Homecare Ltd,155.8, 15-Jan-2013
758,Revenue,CCHD,Elderly MH Day Care North,Private & Voluntary Day Care,Firstpoint Homecare Ltd,91.2, 15-Jan-2013
759,Revenue,CCHD,Home Care - Elderly - South,Other Small Contracts,Firstpoint Homecare Ltd,1835.4, 22-Jan-2013
760,Revenue,CCHD,Home Care - Elderly - North,Other Small Contracts,Firstpoint Homecare Ltd,763.8, 22-Jan-2013
761,Revenue,CCHD,Day Care - South,Private & Voluntary Day Care,Firstpoint Homecare Ltd,433.2, 22-Jan-2013
762,Revenue,CCHD,Day Care - North,Private & Voluntary Day Care,Firstpoint Homecare Ltd,197.6, 22-Jan-2013
763,Revenue,CCHD,Under 65s -MH  Home Care Purch,Other Small Contracts,Firstpoint Homecare Ltd,45.6, 22-Jan-2013
764,Revenue,CCHD,Younger MH non-res purchasing,Private & Voluntary Day Care,Firstpoint Homecare Ltd,68.4, 22-Jan-2013
765,Revenue,CCHD,Home care - Elderly MH - North,Other Small Contracts,Firstpoint Homecare Ltd,110.2, 22-Jan-2013
766,Revenue,CCHD,Elderly MH Day Care North,Private & Voluntary Day Care,Firstpoint Homecare Ltd,95, 22-Jan-2013
767,Revenue,CCHD,Home Care - Elderly - South,Other Small Contracts,Firstpoint Homecare Ltd,1869.6, 30-Jan-2013
768,Revenue,CCHD,Home Care - Elderly - North,Other Small Contracts,Firstpoint Homecare Ltd,741, 30-Jan-2013
769,Revenue,CCHD,Day Care - South,Private & Voluntary Day Care,Firstpoint Homecare Ltd,619.4, 30-Jan-2013
770,Revenue,CCHD,Day Care - North,Private & Voluntary Day Care,Firstpoint Homecare Ltd,304, 30-Jan-2013
771,Revenue,CCHD,Under 65s -MH  Home Care Purch,Other Small Contracts,Firstpoint Homecare Ltd,95, 30-Jan-2013
772,Revenue,CCHD,Younger MH non-res purchasing,Private & Voluntary Day Care,Firstpoint Homecare Ltd,129.2, 30-Jan-2013
773,Revenue,CCHD,Home care - Elderly MH - North,Other Small Contracts,Firstpoint Homecare Ltd,186.2, 30-Jan-2013
774,Revenue,CCHD,Elderly MH Day Care North,Private & Voluntary Day Care,Firstpoint Homecare Ltd,91.2, 30-Jan-2013
775,Revenue,CCHD,Bed Purchasing - Elderly - South,Nursing Homes,Four Seasons Health Care,921.96, 22-Jan-2013
776,Revenue,CCHD,Bed Purchasing - Elderly - South,Nursing Homes,Four Seasons Health Care,1281.72, 22-Jan-2013
777,Revenue,CCHD,Frenchay Hospital Purchasing,Residential Homes,Four Seasons Health Care,892.12, 22-Jan-2013
778,Revenue,CCHD,Bed Purchasing - Elderly MH - South,Nursing Homes,Four Seasons Health Care,1363.2, 22-Jan-2013
779,Revenue,CCHD,Frenchay Hospital Purchasing,Nursing Homes,Four Seasons Health Care,1363.2, 22-Jan-2013
780,Revenue,CCHD,Southmead Hospital Purchasing,Nursing Homes,Four Seasons Health Care,1363.2, 22-Jan-2013
781,Revenue,CCHD,Bed purchasing - Elderly MH - North,Residential Homes,Four Seasons Health Care,960.44, 22-Jan-2013
782,Revenue,CCHD,Southmead Hospital Purchasing,Nursing Homes,Four Seasons Health Care,818.68, 22-Jan-2013
783,Revenue,CCHD,Bed Purchasing - Elderly - North,Residential Homes,Four Seasons Health Care,1314.29, 22-Jan-2013
784,Revenue,CCHD,Bed Purchasing - Elderly - North,Residential Homes,Four Seasons Health Care,525.71, 22-Jan-2013
785,Revenue,CCHD,South Glos Users in South Glos Homes,Nursing Homes,Four Seasons Health Care,807.49, 22-Jan-2013
786,Revenue,CCHD,Frenchay Hospital Purchasing,Nursing Homes,Four Seasons Health Care,1335.92, 22-Jan-2013
787,Revenue,CCHD,Bed Purchasing - Elderly - South,Nursing Homes,Four Seasons Health Care,1365.04, 22-Jan-2013
788,Revenue,CCHD,Southmead Hospital Purchasing,Nursing Homes,Four Seasons Health Care,1363.2, 22-Jan-2013
789,Revenue,CCHD,Bed Purchasing - Elderly - South,Nursing Homes,Four Seasons Health Care,5235.19, 22-Jan-2013
790,Revenue,CCHD,Bed Purchasing - Elderly - South,Nursing Homes,Four Seasons Health Care,1201.52, 22-Jan-2013
791,Revenue,CCHD,Bed Purchasing - Elderly - South,Nursing Homes,Four Seasons Health Care,1361.64, 22-Jan-2013
792,Revenue,CCHD,Cash for Change Discharges,Nursing Homes,Four Seasons Health Care,1363.2, 22-Jan-2013
793,Revenue,CCHD,Bed Purchasing - Elderly - South,Nursing Homes,Four Seasons Health Care,1327.2, 22-Jan-2013
794,Revenue,CCHD,Southmead Hospital Purchasing,Nursing Homes,Four Seasons Health Care,1363.2, 22-Jan-2013
795,Revenue,CCHD,Bed Purchasing - Elderly - South,Nursing Homes,Four Seasons Health Care,1260.92, 22-Jan-2013
796,Revenue,CCHD,Southmead Hospital Purchasing,Residential Homes,Four Seasons Health Care,543.56, 22-Jan-2013
797,Revenue,CCHD,Bed Purchasing - Elderly - North,Residential Homes,Four Seasons Health Care,1239.2, 22-Jan-2013
798,Revenue,CCHD,Southmead Hospital Purchasing,Nursing Homes,Four Seasons Health Care,3436.03, 22-Jan-2013
799,Revenue,CCHD,Southmead Hospital Purchasing,Nursing Homes,Four Seasons Health Care,1081, 22-Jan-2013
800,Revenue,CCHD,Bed Purchasing - Elderly - North,Nursing Homes,Four Seasons Health Care,1363.2, 22-Jan-2013
801,Revenue,CCHD,Frenchay Hospital Purchasing,Nursing Homes,Four Seasons Health Care,1363.2, 22-Jan-2013
802,Revenue,CCHD,Southmead Hospital Purchasing,Nursing Homes,Four Seasons Health Care,1269.2, 22-Jan-2013
803,Revenue,CCHD,Frenchay Hospital Purchasing,Nursing Homes,Four Seasons Health Care,1159.2, 22-Jan-2013
804,Revenue,CCHD,Bed Purchasing - Elderly - South,Nursing Homes,Four Seasons Health Care,1363.2, 22-Jan-2013
805,Revenue,CCHD,Bed Purchasing - Elderly - South,Nursing Homes,Four Seasons Health Care,1308.24, 22-Jan-2013
806,Revenue,CCHD,Bed Purchasing - Elderly MH - South,Nursing Homes,Four Seasons Health Care,1363.2, 22-Jan-2013
807,Revenue,CCHD,Bed Purchasing - Elderly - South,Nursing Homes,Four Seasons Health Care,1067.16, 22-Jan-2013
808,Revenue,CCHD,Bed Purchasing - Elderly - South,Nursing Homes,Four Seasons Health Care,1327.2, 22-Jan-2013
809,Revenue,CCHD,Frenchay Hospital Purchasing,Nursing Homes,Four Seasons Health Care,1071.6, 22-Jan-2013
810,Revenue,CCHD,Bed Purchasing - Elderly MH - South,Residential Homes,Four Seasons Health Care,1084.52, 22-Jan-2013
811,Revenue,CCHD,Bed Purchasing - Elderly - South,Nursing Homes,Four Seasons Health Care,1363.2, 22-Jan-2013
812,Revenue,CCHD,Bed Purchasing - Elderly - South,Nursing Homes,Four Seasons Health Care,601.76, 22-Jan-2013
813,Revenue,CCHD,Bed Purchasing - Elderly - South,Nursing Homes,Four Seasons Health Care,1361.8, 22-Jan-2013
814,Revenue,CCHD,Southmead Hospital Purchasing,Nursing Homes,Four Seasons Health Care,609.23, 22-Jan-2013
815,Revenue,CCHD,Frenchay Hospital Purchasing,Nursing Homes,Four Seasons Health Care,1224.29, 22-Jan-2013
816,Revenue,CCHD,Bed Purchasing - Elderly MH - South,Nursing Homes,Four Seasons Health Care,1212.44, 22-Jan-2013
817,Revenue,CCHD,Bed purchasing - Elderly MH - North,Nursing Homes,Four Seasons Health Care,780.24, 22-Jan-2013
818,Revenue,CCHD,Bed Purchasing - Elderly - South,Nursing Homes,Four Seasons Health Care,995.44, 22-Jan-2013
819,Revenue,CCHD,Bed Purchasing - Elderly - North,Nursing Homes,Four Seasons Health Care,956.44, 22-Jan-2013
820,Revenue,CCHD,Frenchay Hospital Purchasing,Residential Homes,Four Seasons Health Care,1239.2, 22-Jan-2013
821,Revenue,CCHD,Southmead Hospital Purchasing,Residential Homes,Four Seasons Health Care,1230.28, 22-Jan-2013
822,Revenue,CCHD,Bed Purchasing - Elderly - South,Nursing Homes,Four Seasons Health Care,1535.2, 22-Jan-2013
823,Revenue,CCHD,Bed Purchasing - Elderly - North,Nursing Homes,Four Seasons Health Care,1535.2, 22-Jan-2013
824,Revenue,CCHD,Frenchay Hospital Purchasing,Nursing Homes,Four Seasons Health Care,1100.52, 22-Jan-2013
825,Revenue,CCHD,Frenchay Hospital Purchasing,Nursing Homes,Four Seasons Health Care,1363.2, 22-Jan-2013
826,Revenue,CCHD,Frenchay Hospital Purchasing,Nursing Homes,Four Seasons Health Care,1168.45, 22-Jan-2013
827,Revenue,CCHD,Bed Purchasing - Elderly - South,Residential Homes,Four Seasons Health Care,2389.89, 22-Jan-2013
828,Revenue,CCHD,Bed Purchasing - Elderly - South,Residential Homes,Four Seasons Health Care,1239.2, 22-Jan-2013
829,Revenue,CCHD,Frenchay Hospital Purchasing,Nursing Homes,Four Seasons Health Care,1535.2, 22-Jan-2013
830,Revenue,CCHD,Frenchay Hospital Purchasing,Nursing Homes,Four Seasons Health Care,1308.64, 22-Jan-2013
831,Revenue,CCHD,Bed Purchasing - Elderly - North,Nursing Homes,Four Seasons Health Care,1363.2, 22-Jan-2013
832,Revenue,CCHD,Southmead Hospital Purchasing,Nursing Homes,Four Seasons Health Care,1363.2, 22-Jan-2013
833,Revenue,CCHD,Bed Purchasing - Elderly - North,Nursing Homes,Four Seasons Health Care,1363.2, 22-Jan-2013
834,Revenue,CCHD,Bed Purchasing - Elderly - North,Nursing Homes,Four Seasons Health Care,1287.44, 22-Jan-2013
835,Revenue,CCHD,Bed purchasing - Elderly MH - North,Nursing Homes,Four Seasons Health Care,1457.48, 22-Jan-2013
836,Revenue,CCHD,Bed Purchasing - Elderly - North,Nursing Homes,Four Seasons Health Care,1264.2, 22-Jan-2013
837,Revenue,CCHD,Bed Purchasing - Elderly - North,Nursing Homes,Four Seasons Health Care,1096.56, 22-Jan-2013
838,Revenue,CCHD,Southmead Hospital Purchasing,Nursing Homes,Four Seasons Health Care,1356.56, 22-Jan-2013
839,Revenue,CCHD,Frenchay Hospital Purchasing,Nursing Homes,Four Seasons Health Care,1284.4, 22-Jan-2013
840,Revenue,CCHD,Frenchay Hospital Purchasing,Nursing Homes,Four Seasons Health Care,1343.4, 22-Jan-2013
841,Revenue,CCHD,Bed Purchasing - Elderly - North,Nursing Homes,Four Seasons Health Care,1027.36, 22-Jan-2013
842,Revenue,CCHD,Bed Purchasing - Elderly - North,Residential Homes,Four Seasons Health Care,670.04, 22-Jan-2013
843,Revenue,CCHD,Frenchay Hospital Purchasing,Nursing Homes,Four Seasons Health Care,1522.72, 22-Jan-2013
844,Revenue,CCHD,Bed purchasing - Elderly MH - North,Residential Homes,Four Seasons Health Care,1306.04, 22-Jan-2013
845,Revenue,CCHD,Bed Purchasing - Elderly - North,Nursing Homes,Four Seasons Health Care,1499.2, 22-Jan-2013
846,Revenue,CCHD,Southmead Hospital Purchasing,Nursing Homes,Four Seasons Health Care,1239.77, 22-Jan-2013
847,Revenue,CCHD,Southmead Hospital Purchasing,Nursing Homes,Four Seasons Health Care,578.56, 22-Jan-2013
848,Revenue,CCHD,Bed Purchasing - Elderly - North,Nursing Homes,Four Seasons Health Care,1363.2, 22-Jan-2013
849,Revenue,CCHD,Bed Purchasing - Elderly - North,Nursing Homes,Four Seasons Health Care,1431.8, 22-Jan-2013
850,Revenue,CCHD,Southmead Hospital Purchasing,Residential Homes,Four Seasons Health Care,705.16, 22-Jan-2013
851,Revenue,CCHD,Southmead Hospital Purchasing,Nursing Homes,Four Seasons Health Care,1442.32, 22-Jan-2013
852,Revenue,CCHD,Frenchay Hospital Purchasing,Nursing Homes,Four Seasons Health Care,1211.32, 22-Jan-2013
853,Revenue,CCHD,Southmead Hospital Purchasing,Nursing Homes,Four Seasons Health Care,1535.2, 22-Jan-2013
854,Revenue,CCHD,Southmead Hospital Purchasing,Nursing Homes,Four Seasons Health Care,1347.32, 22-Jan-2013
855,Revenue,CCHD,Bed Purchasing - Elderly - North,Nursing Homes,Four Seasons Health Care,1535.2, 22-Jan-2013
856,Revenue,CCHD,Bed purchasing - Elderly MH - North,Residential Homes,Four Seasons Health Care,1197.16, 22-Jan-2013
857,Revenue,CCHD,Southmead Hospital Purchasing,Residential Homes,Four Seasons Health Care,1239.2, 22-Jan-2013
858,Revenue,CCHD,Bed purchasing - Elderly MH - North,Residential Homes,Four Seasons Health Care,1366.04, 22-Jan-2013
859,Revenue,CCHD,Bed Purchasing - Elderly - North,Nursing Homes,Four Seasons Health Care,1346.6, 22-Jan-2013
860,Revenue,CCHD,Southmead Hospital Purchasing,Nursing Homes,Four Seasons Health Care,1207.08, 22-Jan-2013
861,Revenue,CCHD,Bed purchasing - Elderly MH - North,Nursing Homes,Four Seasons Health Care,1025.24, 22-Jan-2013
862,Revenue,CCHD,Bed Purchasing - Elderly - North,Nursing Homes,Four Seasons Health Care,1363.2, 22-Jan-2013
863,Revenue,CCHD,Bed Purchasing - Elderly - North,Residential Homes,Four Seasons Health Care,1263.2, 22-Jan-2013
864,Revenue,CCHD,Frenchay Hospital Purchasing,Residential Homes,Four Seasons Health Care,1239.2, 22-Jan-2013
865,Revenue,CCHD,Frenchay Hospital Purchasing,Nursing Homes,Four Seasons Health Care,1204.44, 22-Jan-2013
866,Revenue,CCHD,South Glos Users in South Glos Homes,Nursing Homes,Four Seasons Health Care,3307.59, 22-Jan-2013
867,Revenue,CCHD,Frenchay Hospital Purchasing,Nursing Homes,Four Seasons Health Care,1363.2, 22-Jan-2013
868,Revenue,CCHD,Frenchay Hospital Purchasing,Nursing Homes,Four Seasons Health Care,1704, 22-Jan-2013
869,Revenue,CCHD,Frenchay Hospital Purchasing,Nursing Homes,Four Seasons Health Care,1363.2, 22-Jan-2013
870,Revenue,CCHD,Bed Purchasing - Elderly - North,Nursing Homes,Four Seasons Health Care,1023.36, 22-Jan-2013
871,Revenue,CCHD,Bed Purchasing - Elderly - North,Nursing Homes,Four Seasons Health Care,876.35, 22-Jan-2013
872,Revenue,CCHD,Frenchay Hospital Purchasing,Nursing Homes,Four Seasons Health Care,876.35, 22-Jan-2013
873,Revenue,CCHD,South Glos Users in South Glos Homes,Nursing Homes,Four Seasons Health Care,1164.64, 22-Jan-2013
874,Revenue,CCHD,Frenchay Hospital Purchasing,Nursing Homes,Four Seasons Health Care,1363.2, 22-Jan-2013
875,Revenue,CCHD,South Glos Users in South Glos Homes,Nursing Homes,Four Seasons Health Care,2484.57, 22-Jan-2013
876,Revenue,CCHD,Frenchay Hospital Purchasing,Nursing Homes,Four Seasons Health Care,1363.2, 22-Jan-2013
877,Revenue,CCHD,Southmead Hospital Purchasing,Nursing Homes,Four Seasons Health Care,605.72, 22-Jan-2013
878,Revenue,CCHD,Bed Purchasing - Elderly - North,Nursing Homes,Four Seasons Health Care,1070.48, 22-Jan-2013
879,Revenue,CCHD,Frenchay Hospital Purchasing,Nursing Homes,Four Seasons Health Care,1363.2, 22-Jan-2013
880,Revenue,CCHD,South Glos Users in South Glos Homes,Nursing Homes,Four Seasons Health Care,4021.9, 22-Jan-2013
881,Revenue,CCHD,Southmead Hospital Purchasing,Nursing Homes,Four Seasons Health Care,758.2, 22-Jan-2013
882,Revenue,CCHD,Frenchay Hospital Purchasing,Nursing Homes,Four Seasons Health Care,1363.2, 22-Jan-2013
883,Revenue,CCHD,Frenchay Hospital Purchasing,Nursing Homes,Four Seasons Health Care,1379.2, 22-Jan-2013
884,Revenue,CCHD,Bed Purchasing - Elderly - South,Nursing Homes,Four Seasons Health Care,1060.72, 22-Jan-2013
885,Revenue,CCHD,Southmead Hospital Purchasing,Nursing Homes,Four Seasons Health Care,1286.4, 22-Jan-2013
886,Revenue,CCHD,Southmead Hospital Purchasing,Residential Homes,Four Seasons Health Care,1118.04, 22-Jan-2013
887,Revenue,CCHD,Southmead Hospital Purchasing,Nursing Homes,Four Seasons Health Care,1363.2, 22-Jan-2013
888,Revenue,CCHD,Frenchay Hospital Purchasing,Nursing Homes,Four Seasons Health Care,2718.4, 22-Jan-2013
889,Revenue,CCHD,Frenchay Hospital Purchasing,Nursing Homes,Four Seasons Health Care,1359.2, 22-Jan-2013
890,Revenue,CCHD,Frenchay Hospital Purchasing,Nursing Homes,Four Seasons Health Care,1329.52, 22-Jan-2013
891,Revenue,CCHD,Southmead Hospital Purchasing,Nursing Homes,Four Seasons Health Care,1336.84, 22-Jan-2013
892,Revenue,CCHD,Bed purchasing - Phys Dis - North,Nursing Homes,Four Seasons Health Care,1367.76, 22-Jan-2013
893,Revenue,CCHD,Frenchay Hospital Purchasing,Nursing Homes,Four Seasons Health Care,1363.2, 22-Jan-2013
894,Revenue,CCHD,South Glos Users in South Glos Homes,Nursing Homes,Four Seasons Health Care,838.54, 22-Jan-2013
895,Revenue,CCHD,Southmead Hospital Purchasing,Nursing Homes,Four Seasons Health Care,1292.36, 22-Jan-2013
896,Revenue,CCHD,Bed purchasing - Elderly MH - North,Residential Homes,Four Seasons Health Care,1396.2, 22-Jan-2013
897,Revenue,CCHD,Southmead Hospital Purchasing,Residential Homes,Four Seasons Health Care,1163.68, 22-Jan-2013
898,Revenue,CCHD,Frenchay Hospital Purchasing,Nursing Homes,Four Seasons Health Care,1225.56, 22-Jan-2013
899,Revenue,CCHD,Southmead Hospital Purchasing,Nursing Homes,Four Seasons Health Care,1840, 22-Jan-2013
900,Revenue,CCHD,Frenchay Hospital Purchasing,Residential Homes,Four Seasons Health Care,551.57, 22-Jan-2013
901,Revenue,CCHD,Bed purchasing - Elderly PWLD - South,Residential Homes,Four Seasons Health Care,1239.2, 22-Jan-2013
902,Revenue,CCHD,Frenchay Hospital Purchasing,Nursing Homes,Four Seasons Health Care,1363.2, 22-Jan-2013
903,Revenue,CCHD,Southmead Hospital Purchasing,Nursing Homes,Four Seasons Health Care,1103.76, 22-Jan-2013
904,Revenue,CCHD,Bed Purchasing - Elderly - South,Nursing Homes,Four Seasons Health Care,1286.52, 22-Jan-2013
905,Revenue,CCHD,Bed Purchasing - Elderly - North,Residential Homes,Four Seasons Health Care,1171.16, 22-Jan-2013
906,Revenue,CCHD,Bed Purchasing - Elderly - North,Residential Homes,Four Seasons Health Care,1099.98, 22-Jan-2013
907,Revenue,CCHD,Bed Purchasing - Elderly - South,Nursing Homes,Four Seasons Health Care,1352.48, 22-Jan-2013
908,Revenue,CCHD,Southmead Hospital Purchasing,Nursing Homes,Four Seasons Health Care,1138.92, 22-Jan-2013
909,Revenue,CCHD,Bed Purchasing - Elderly - South,Residential Homes,Four Seasons Health Care,865.28, 22-Jan-2013
910,Revenue,CCHD,Southmead Hospital Purchasing,Residential Homes,Four Seasons Health Care,1386, 22-Jan-2013
911,Revenue,CCHD,South Glos Users in South Glos Homes,Nursing Homes,Four Seasons Health Care,1692.61, 22-Jan-2013
912,Revenue,CCHD,Southmead Hospital Purchasing,Residential Homes,Four Seasons Health Care,1441.28, 22-Jan-2013
913,Revenue,CCHD,Frenchay Hospital Purchasing,Nursing Homes,Four Seasons Health Care,769.44, 22-Jan-2013
914,Revenue,CCHD,Bed Purchasing - Elderly - South,Nursing Homes,Four Seasons Health Care,947.2, 22-Jan-2013
915,Revenue,CCHD,Frenchay Hospital Purchasing,Nursing Homes,Four Seasons Health Care,722.86, 22-Jan-2013
916,Revenue,CCHD,Bed Purchasing - Elderly - South,Residential Homes,Four Seasons Health Care,1084.8, 22-Jan-2013
917,Revenue,CCHD,Bed purchasing - Elderly S117 - South,Nursing Homes,Four Seasons Health Care,1840, 22-Jan-2013
918,Revenue,CCHD,Frenchay Hospital Purchasing,Residential Homes,Four Seasons Health Care,1102.84, 22-Jan-2013
919,Revenue,CCHD,Southmead Hospital Purchasing,Residential Homes,Four Seasons Health Care,1323.96, 22-Jan-2013
920,Revenue,CCHD,Bed Purchasing - Elderly MH - South,Residential Homes,Four Seasons Health Care,936.64, 22-Jan-2013
921,Revenue,CCHD,Southmead Hospital Purchasing,Nursing Homes,Four Seasons Health Care,1363.2, 22-Jan-2013
922,Revenue,CCHD,Frenchay Hospital Purchasing,Nursing Homes,Four Seasons Health Care,1109.56, 22-Jan-2013
923,Revenue,CCHD,South Glos Users in South Glos Homes,Nursing Homes,Four Seasons Health Care,543.5, 22-Jan-2013
924,Revenue,CCHD,Frenchay Hospital Purchasing,Nursing Homes,Four Seasons Health Care,1768.39, 22-Jan-2013
925,Revenue,CCHD,Frenchay Hospital Purchasing,Nursing Homes,Four Seasons Health Care,1031.56, 22-Jan-2013
926,Revenue,CCHD,Frenchay Hospital Purchasing,Nursing Homes,Four Seasons Health Care,1063.96, 22-Jan-2013
927,Revenue,CCHD,Southmead Hospital Purchasing,Nursing Homes,Four Seasons Health Care,991.8, 22-Jan-2013
928,Revenue,CCHD,Southmead Hospital Purchasing,Nursing Homes,Four Seasons Health Care,871.84, 22-Jan-2013
929,Revenue,CCHD,Southmead Hospital Purchasing,Residential Homes,Four Seasons Health Care,1239.2, 22-Jan-2013
930,Revenue,CCHD,Southmead Hospital Purchasing,Residential Homes,Four Seasons Health Care,1062.17, 22-Jan-2013
931,Revenue,CCHD,Bed Purchasing - Elderly - North,Nursing Homes,Four Seasons Health Care,949.29, 22-Jan-2013
932,Revenue,CCHD,Frenchay Hospital Purchasing,Residential Homes,Four Seasons Health Care,1232.16, 22-Jan-2013
933,Revenue,CCHD,Bed Purchasing - Elderly - North,Nursing Homes,Four Seasons Health Care,1263.48, 22-Jan-2013
934,Revenue,CCHD,Bed Purchasing - Elderly - South,Residential Homes,Four Seasons Health Care,1206.36, 22-Jan-2013
935,Revenue,CCHD,Bed Purchasing - Elderly - South,Nursing Homes,Four Seasons Health Care,1171.6, 22-Jan-2013
936,Revenue,CCHD,Bed Purchasing - Elderly S117- North,Residential Homes,Four Seasons Health Care,2011.04, 22-Jan-2013
937,Revenue,CCHD,Frenchay Hospital Purchasing,Residential Homes,Four Seasons Health Care,1515.84, 22-Jan-2013
938,Revenue,CCHD,Bed purchasing - Phys Dis - North,Nursing Homes,Four Seasons Health Care,845.76, 22-Jan-2013
939,Revenue,CCHD,Home Care - Elderly - North,Other Small Contracts,Freedom Social Care Recruitment,1113.7, 31-Jan-2013
940,Revenue,CCHD,Home Care - Elderly - South,Other Small Contracts,Freedom Social Care Recruitment,782.1, 22-Jan-2013
941,Revenue,CCHD,Home Care - Elderly - North,Other Small Contracts,Freedom Social Care Recruitment,2587.96, 22-Jan-2013
942,Revenue,CCHD,Home care - Elderly MH - North,Other Small Contracts,Freedom Social Care Recruitment,15.8, 22-Jan-2013
943,Revenue,CCHD,Home Care - Elderly - South,Other Small Contracts,Freedom Social Care Recruitment,951.95, 22-Jan-2013
944,Revenue,CCHD,Home Care - Elderly - North,Other Small Contracts,Freedom Social Care Recruitment,2485.26, 22-Jan-2013
945,Revenue,CCHD,Home care - Elderly MH - North,Other Small Contracts,Freedom Social Care Recruitment,15.8, 22-Jan-2013
946,Revenue,CCHD,Freeways,Residential Homes,Freeways Trust Limited,44356.49, 17-Jan-2013
947,Revenue,CCHD,Purchase of Non-Res Care - KD,Private & Voluntary Day Care,Freeways Trust Limited,631.32, 08-Jan-2013
948,Revenue,CCHD,Purchase of Non-Res Care - KD,Private & Voluntary Day Care,Freeways Trust Limited,631.32, 15-Jan-2013
949,Revenue,CCHD,Supported Living - PS,Private & Voluntary Home Care,Freeways Trust Limited,1476.64, 18-Jan-2013
950,Revenue,CCHD,Bed purchasing - Under 65s PWLD - North,Residential Homes,Freeways Trust Ltd,2791.88, 22-Jan-2013
951,Revenue,CCHD,Bed purchasing - S28A Under 65 - South,Residential Homes,Freeways Trust Ltd,2876.4, 22-Jan-2013
952,Revenue,CCHD,Bed purchasing - Under 65s PWLD - North,Residential Homes,Freeways Trust Ltd,2657.64, 22-Jan-2013
953,Revenue,CCHD,Bed purchasing - Under 65s PWLD - North,Residential Homes,Freeways Trust Ltd,2232.52, 22-Jan-2013
954,Revenue,CCHD,Bed purchasing - Under 65s PWLD - North,Residential Homes,Freeways Trust Ltd,2666.28, 22-Jan-2013
955,Revenue,CCHD,Bed Purchasing - Under 65s PWLD - South,Residential Homes,Freeways Trust Ltd,3259.12, 22-Jan-2013
956,Revenue,CCHD,Bed purchasing - Elderly PWLD - North,Residential Homes,Freeways Trust Ltd,2219.24, 22-Jan-2013
957,Revenue,CCHD,Bed Purchasing - Under 65s PWLD - South,Residential Homes,Freeways Trust Ltd,2364.28, 22-Jan-2013
958,Revenue,CCHD,Bed purchasing - Under 65s PWLD - North,Residential Homes,Freeways Trust Ltd,2666.28, 22-Jan-2013
959,Revenue,CCHD,Bed purchasing - Elderly PWLD - North,Residential Homes,Freeways Trust Ltd,2492.24, 22-Jan-2013
960,Revenue,CCHD,Section 117 Placements MH Younger,Residential Homes,Freeways Trust Ltd,3292.4, 22-Jan-2013
961,Revenue,CCHD,Bed Purchasing - Under 65s PWLD - South,Residential Homes,Freeways Trust Ltd,6060.6, 22-Jan-2013
962,Revenue,CCHD,Enabling Activities,Other Premises Costs,Geo Testing Services Limited,3085, 21-Jan-2013
963,Revenue,CCHD,Bed Purchasing - Under 65s PWLD - South,Residential Homes,Glasallt Fawr,4505.4, 22-Jan-2013
964,Revenue,CCHD,Bed Purchasing - Elderly - North,Nursing Homes,Glebe House Nursing Home,1381.88, 22-Jan-2013
965,Revenue,CCHD,Bed purchasing - Elderly MH - North,Residential Homes,Glebe House Nursing Home,782.8, 22-Jan-2013
966,Revenue,CCHD,South Glos Users in South Glos Homes,Nursing Homes,Glebe House Nursing Home,1878.96, 22-Jan-2013
967,Revenue,CCHD,Bed Purchasing - Elderly - South,Residential Homes,Glebe House Nursing Home,1963.52, 22-Jan-2013
968,Revenue,CCHD,Southmead Hospital Purchasing,Nursing Homes,Glebe House Nursing Home,1295.2, 22-Jan-2013
969,Revenue,CCHD,Bed Purchasing - Elderly - North,Residential Homes,Glebe House Nursing Home,2529.76, 22-Jan-2013
970,Revenue,CCHD,Bed Purchasing - Under 65s PWLD - South,Residential Homes,Gordena Care Home,2063.36, 22-Jan-2013
971,Revenue,CCHD,Bed purchasing - Elderly PWLD - South,Residential Homes,Gordena Care Home,4691.96, 22-Jan-2013
972,Revenue,CCHD,Bed purchasing - Elderly PWLD - South,Residential Homes,Gordena Care Home,2904.2, 22-Jan-2013
973,Revenue,CCHD,Bed Purchasing - Under 65s PWLD - South,Residential Homes,Gordena Care Home,1894.04, 22-Jan-2013
974,Revenue,CCHD,Bed Purchasing - Under 65s PWLD - South,Residential Homes,Gordena Care Limited,4119.84, 22-Jan-2013
975,Revenue,CCHD,Bed purchasing - S28A Under 65 - South,Residential Homes,Gordena Care Limited,4018.24, 22-Jan-2013
976,Revenue,CCHD,Bed purchasing - Under 65s PWLD - North,Residential Homes,Gordena Care Limited,3762.44, 22-Jan-2013
977,Revenue,CCHD,Bed Purchasing - Elderly - South,Residential Homes,Gwendoline House,1480.12, 22-Jan-2013
978,Revenue,CCHD,Bed Purchasing - Elderly - South,Residential Homes,Gwendoline House,1158.88, 22-Jan-2013
979,Revenue,CCHD,Bed Purchasing - Elderly MH - South,Residential Homes,Gwendoline House,1263.36, 22-Jan-2013
980,Revenue,CCHD,Bed Purchasing - Elderly - North,Residential Homes,Gwendoline House,1821.86, 22-Jan-2013
981,Revenue,CCHD,Southmead Hospital Purchasing,Residential Homes,Gwendoline House,1675.2, 22-Jan-2013
982,Revenue,CCHD,Bed Purchasing - Elderly - South,Residential Homes,Gwendoline House,856.43, 22-Jan-2013
983,Revenue,CCHD,Bed Purchasing - Elderly - South,Residential Homes,Gwendoline House,1123.12, 22-Jan-2013
984,Revenue,CCHD,Bed Purchasing - Elderly - South,Residential Homes,Gwendoline House,1558.44, 22-Jan-2013
985,Revenue,CCHD,Supporting People Programme,Grants to Voluntary Bodies,Habinteg Housing Association,1326, 02-Jan-2013
986,Revenue,CCHD,Bed Purchasing - Elderly - South,Residential Homes,Harefield Hall,1317.48, 22-Jan-2013
987,Revenue,CCHD,Bed Purchasing - Elderly - South,Residential Homes,Harefield Hall,1115.96, 22-Jan-2013
988,Revenue,CCHD,Bed Purchasing - Elderly - South,Residential Homes,Harefield Hall,1766.16, 22-Jan-2013
989,Revenue,CCHD,Bed Purchasing - Elderly MH - South,Residential Homes,Harefield Hall,1091.48, 22-Jan-2013
990,Revenue,CCHD,Better Support for Older People,Other Supplies & Services,Harvey Servicing & Engineering Limited,435, 11-Jan-2013
991,Revenue,CCHD,Woodleaze,Prop.Serv. General Repairs,Harvey Servicing & Engineering Limited,3495, 11-Jan-2013
992,Revenue,CCHD,Southmead Hospital Purchasing,Nursing Homes,Haven Lodge,1371.08, 22-Jan-2013
993,Revenue,CCHD,Southmead Hospital Purchasing,Nursing Homes,Hc-One Ltd,1602.76, 22-Jan-2013
994,Revenue,CCHD,Bed Purchasing - Elderly - North,Nursing Homes,Hc-One Ltd,972.84, 22-Jan-2013
995,Revenue,CCHD,Bed purchasing - Elderly PWLD - South,Nursing Homes,Hc-One Ltd,1916.2, 22-Jan-2013
996,Revenue,CCHD,Bed purchasing - Elderly MH - North,Nursing Homes,Hc-One Ltd,1467.2, 22-Jan-2013
997,Revenue,CCHD,Bed purchasing - Elderly MH - North,Nursing Homes,Hc-One Ltd,1209.16, 22-Jan-2013
998,Revenue,CCHD,Bed purchasing - Elderly MH - North,Nursing Homes,Hc-One Ltd,1467.2, 22-Jan-2013
999,Revenue,CCHD,Bed purchasing - Elderly MH - North,Nursing Homes,Hc-One Ltd,1156.84, 22-Jan-2013
1000,Revenue,CCHD,Frenchay Hospital Purchasing,Nursing Homes,Hc-One Ltd,2934.4, 22-Jan-2013
1001,Revenue,CCHD,Bed Purchasing - Elderly S117- North,Nursing Homes,Hc-One Ltd,1929.2, 22-Jan-2013
1002,Revenue,CCHD,Frenchay Hospital Purchasing,Nursing Homes,Hc-One Ltd,1481.4, 22-Jan-2013
1003,Revenue,CCHD,Frenchay Hospital Purchasing,Residential Homes,Hc-One Ltd,1479.76, 22-Jan-2013
1004,Revenue,CCHD,Frenchay Hospital Purchasing,Nursing Homes,Hc-One Ltd,1175.76, 22-Jan-2013
1005,Revenue,CCHD,Day Care - North,Private & Voluntary Day Care,Headway Bristol,750.33, 28-Jan-2013
1006,Revenue,CCHD,Day Care - South,Private & Voluntary Day Care,Headway Bristol,786.06, 28-Jan-2013
1007,Revenue,CCHD,Day Care - South,Private & Voluntary Day Care,Headway Bristol,1373.84, 28-Jan-2013
1008,Revenue,CCHD,Day Care - North,Private & Voluntary Day Care,Headway Bristol,786.06, 28-Jan-2013
1009,Revenue,CCHD,Day Care - South,Private & Voluntary Day Care,Headway Bristol,857.52, 28-Jan-2013
1010,Revenue,CCHD,Day Care - South,Private & Voluntary Day Care,Headway Bristol,2467.89, 28-Jan-2013
1011,Revenue,CCHD,Day Care - North,Private & Voluntary Day Care,Headway Bristol,786.06, 28-Jan-2013
1012,Revenue,CCHD,Supported Living - PS,Private & Voluntary Home Care,HFT,3722.08, 25-Jan-2013
1013,Revenue,CCHD,Southmead Hospital Purchasing,Residential Homes,Highgate Studios,1167.44, 22-Jan-2013
1014,Revenue,CCHD,Bed purchasing - Under 65s PWLD - North,Residential Homes,Holmleigh Care Homes Ltd,3962.92, 22-Jan-2013
1015,Revenue,CCHD,Bed Purchasing - Under 65s PWLD - South,Residential Homes,Holmleigh Care Homes Ltd,4980.72, 22-Jan-2013
1016,Revenue,CCHD,Southmead Hospital Purchasing,Nursing Homes,Holmwood House,2515.36, 22-Jan-2013
1017,Revenue,CCHD,Southmead Hospital Purchasing,Nursing Homes,Holmwood House,1257.68, 22-Jan-2013
1018,Revenue,CCHD,South Glos Users in South Glos Homes,Nursing Homes,Holmwood House,4363.53, 22-Jan-2013
1019,Revenue,CCHD,Southmead Hospital Purchasing,Nursing Homes,Holmwood House,1295.2, 22-Jan-2013
1020,Revenue,CCHD,Southmead Hospital Purchasing,Nursing Homes,Holmwood House,971.4, 22-Jan-2013
1021,Revenue,CCHD,Bed purchasing - Under 65s PWLD - North,Residential Homes,Home Farm Trust Ltd  5-6 Brook Office Pa,2784.12, 22-Jan-2013
1022,Revenue,CCHD,Bed purchasing - Elderly PWLD - South,Residential Homes,Home Farm Trust Ltd  5-6 Brook Office Pa,4285, 22-Jan-2013
1023,Revenue,CCHD,Bed purchasing - Under 65s PWLD - North,Residential Homes,Home Farm Trust Ltd  5-6 Brook Office Pa,3367.08, 22-Jan-2013
1024,Revenue,CCHD,Bed Purchasing - Under 65s PWLD - South,Residential Homes,Home Farm Trust Ltd  5-6 Brook Office Pa,4463, 22-Jan-2013
1025,Revenue,CCHD,Bed purchasing - Under 65s PWLD - North,Residential Homes,Home From Home Care Ltd,5483, 22-Jan-2013
1026,Revenue,CCHD,Bed purchasing - Under 65s PWLD - North,Residential Homes,Homes Caring For Autism Ltd  Churchill H,9662.72, 22-Jan-2013
1027,Revenue,CCHD,Bed Purchasing - Under 65s PWLD - South,Residential Homes,Homes Caring For Autism Ltd  Churchill H,12596.88, 22-Jan-2013
1028,Revenue,CCHD,Bed Purchasing - Elderly - South,Nursing Homes,Horfield Care Limited,4043.98, 09-Jan-2013
1029,Revenue,CCHD,Bed Purchasing - Elderly - North,Nursing Homes,Horfield Care Limited,3279.97, 09-Jan-2013
1030,Revenue,CCHD,Frenchay Hospital Purchasing,Nursing Homes,Horfield Care Limited,3010.84, 09-Jan-2013
1031,Revenue,CCHD,Southmead Hospital Purchasing,Nursing Homes,Horfield Care Limited,7836.84, 09-Jan-2013
1032,Revenue,CCHD,Home Care - Elderly - North,Private & Voluntary Home Care,Housing 21,35812.8, 10-Jan-2013
1033,Revenue,CCHD,Supporting People Programme,Grants to Voluntary Bodies,Housing 21,912.61, 02-Jan-2013
1034,Revenue,CCHD,Supporting People Programme,Grants to Voluntary Bodies,Housing 21,601.61, 02-Jan-2013
1035,Revenue,CCHD,Home Care - Elderly - South,Private & Voluntary Home Care,Housing 21,22605.08, 02-Jan-2013
1036,Revenue,CCHD,Home Care - Elderly - South,Private & Voluntary Home Care,Housing 21,5432.1, 02-Jan-2013
1037,Revenue,CCHD,Training - Adult Services,Training Expenses,Inky Little Fingers,1215, 18-Jan-2013
1038,Revenue,CCHD,Care Management Team - South,Agency Staff (Operational)/PCT Pay,IPE,2445.64, 07-Jan-2013
1039,Revenue,CCHD,Southmead Hospital Purchasing,Nursing Homes,Jasmine Court,1025.78, 22-Jan-2013
1040,Revenue,CCHD,Bed Purchasing - Elderly - South,Residential Homes,Karenza Ltd,2022.43, 14-Jan-2013
1041,Revenue,CCHD,Bed Purchasing - Elderly - South,Residential Homes,Karenza Ltd,1716, 22-Jan-2013
1042,Revenue,CCHD,Bed Purchasing - Elderly - North,Residential Homes,Katherine House,1192.12, 22-Jan-2013
1043,Revenue,CCHD,User Involvement,Other Supplies & Services,Kee Pad Ltd,3605, 07-Jan-2013
1044,Revenue,CCHD,Bed purchasing - Elderly S117 - South,Residential Homes,Kenver House Residential Home,1879.04, 22-Jan-2013
1045,Revenue,CCHD,Frenchay Hospital Purchasing,Residential Homes,Kenver House Residential Home,2114.96, 22-Jan-2013
1046,Revenue,CCHD,Bed Purchasing - Elderly MH - South,Residential Homes,Kenver House Residential Home,1354.08, 22-Jan-2013
1047,Revenue,CCHD,Southmead Hospital Purchasing,Residential Homes,Kenver House Residential Home,1638.16, 22-Jan-2013
1048,Revenue,CCHD,Southmead Hospital Purchasing,Residential Homes,Kenver House Residential Home,1462.65, 22-Jan-2013
1049,Revenue,CCHD,Bed purchasing - Elderly S117 - South,Residential Homes,Kenver House Residential Home,1879.04, 22-Jan-2013
1050,Revenue,CCHD,Bed Purchasing - Elderly MH - South,Residential Homes,Kenver House Residential Home,1273.72, 22-Jan-2013
1051,Revenue,CCHD,Bed Purchasing - Elderly S117- North,Residential Homes,Kenver House Residential Home,1880, 22-Jan-2013
1052,Revenue,CCHD,Southmead Hospital Purchasing,Residential Homes,Kenver House Residential Home,1638.16, 22-Jan-2013
1053,Revenue,CCHD,Bed Purchasing - Elderly - South,Residential Homes,Kenver House Residential Home,1638.16, 22-Jan-2013
1054,Revenue,CCHD,Southmead Hospital Purchasing,Residential Homes,Kenver House Residential Home,1638.16, 22-Jan-2013
1055,Revenue,CCHD,Frenchay Hospital Purchasing,Residential Homes,Kenver House Residential Home,1638.16, 22-Jan-2013
1056,Revenue,CCHD,Bed Purchasing - Elderly MH - South,Residential Homes,Kenver House Residential Home,1184.36, 22-Jan-2013
1057,Revenue,CCHD,Frenchay Hospital Purchasing,Residential Homes,Kenver House Residential Home,1410.6, 22-Jan-2013
1058,Revenue,CCHD,Bed Purchasing - Elderly MH - South,Residential Homes,Kenver House Residential Home,1167.88, 22-Jan-2013
1059,Revenue,CCHD,Bed Purchasing - Elderly MH - South,Residential Homes,Kenver House Residential Home,2348.58, 22-Jan-2013
1060,Revenue,CCHD,Bed Purchasing - Elderly MH - South,Residential Homes,Kenver House Residential Home,1402.24, 22-Jan-2013
1061,Revenue,CCHD,Bed Purchasing - Elderly - South,Residential Homes,Kenver House Residential Home,1529.44, 22-Jan-2013
1062,Revenue,CCHD,Frenchay Hospital Purchasing,Residential Homes,Kenver House Residential Home,1561.28, 22-Jan-2013
1063,Revenue,CCHD,Bed Purchasing - Elderly MH - South,Residential Homes,Kenver House Residential Home,2904.42, 22-Jan-2013
1064,Revenue,CCHD,Bed Purchasing - Elderly - South,Residential Homes,Kenver House Residential Home,3217.82, 22-Jan-2013
1065,Revenue,CCHD,Bed Purchasing - Elderly - South,Residential Homes,Kenver House Residential Home,1638.16, 22-Jan-2013
1066,Revenue,CCHD,Frenchay Hospital Purchasing,Residential Homes,Kenver House Residential Home,1522, 22-Jan-2013
1067,Revenue,CCHD,Supporting People Programme,Grants to Voluntary Bodies,Keyring Living Support Networks,2847.11, 02-Jan-2013
1068,Revenue,CCHD,Supporting People Programme,Grants to Voluntary Bodies,Kingswood Young Homeless Project,17125, 02-Jan-2013
1069,Revenue,CCHD,Bed purchasing - Under 65s PWLD - North,Residential Homes,Kisimul Group,11255.24, 22-Jan-2013
1070,Revenue,CCHD,Supporting People Programme,Grants to Voluntary Bodies,Knightstone Housing Association Limited,1433.33, 02-Jan-2013
1071,Revenue,CCHD,Supporting People Programme,Grants to Voluntary Bodies,Knightstone Housing Association Limited,28936.03, 02-Jan-2013
1072,Revenue,CCHD,Supporting People Programme,Grants to Voluntary Bodies,Knightstone Housing Association Limited,2173.77, 02-Jan-2013
1073,Revenue,CCHD,Supporting People Programme,Grants to Voluntary Bodies,Knightstone Housing Association Limited,4847.07, 02-Jan-2013
1074,Revenue,CCHD,Supporting People Programme,Grants to Voluntary Bodies,Knightstone Housing Association Limited,1866, 02-Jan-2013
1075,Revenue,CCHD,Home Care - Elderly - South,Other Small Contracts,Kumari Care Limited,3816.18, 15-Jan-2013
1076,Revenue,CCHD,Home Care - Elderly - North,Other Small Contracts,Kumari Care Limited,768.05, 15-Jan-2013
1077,Revenue,CCHD,Day Care - South,Private & Voluntary Day Care,Kumari Care Limited,294.14, 15-Jan-2013
1078,Revenue,CCHD,Under 65s -MH  Home Care Purch,Other Small Contracts,Kumari Care Limited,148.98, 15-Jan-2013
1079,Revenue,CCHD,PWLD Home Care - Under 65 - KH,Private & Voluntary Home Care,Kumari Care Limited,259.76, 15-Jan-2013
1080,Revenue,CCHD,Home Care - Elderly - South,Other Small Contracts,Kumari Care Limited,3516.86, 17-Jan-2013
1081,Revenue,CCHD,Home Care - Elderly - North,Other Small Contracts,Kumari Care Limited,409.85, 17-Jan-2013
1082,Revenue,CCHD,Day Care - South,Private & Voluntary Day Care,Kumari Care Limited,49.66, 17-Jan-2013
1083,Revenue,CCHD,Under 65s -MH  Home Care Purch,Other Small Contracts,Kumari Care Limited,122.24, 17-Jan-2013
1084,Revenue,CCHD,PWLD Home Care - Under 65 - KH,Private & Voluntary Home Care,Kumari Care Limited,311.91, 17-Jan-2013
1085,Revenue,CCHD,Home Care - Elderly - South,Other Small Contracts,Kumari Care Limited,3756.1, 21-Jan-2013
1086,Revenue,CCHD,Home Care - Elderly - North,Other Small Contracts,Kumari Care Limited,827.13, 21-Jan-2013
1087,Revenue,CCHD,Day Care - South,Private & Voluntary Day Care,Kumari Care Limited,122.24, 21-Jan-2013
1088,Revenue,CCHD,Under 65s -MH  Home Care Purch,Other Small Contracts,Kumari Care Limited,152.18, 21-Jan-2013
1089,Revenue,CCHD,PWLD Home Care - Under 65 - KH,Private & Voluntary Home Care,Kumari Care Limited,322.73, 21-Jan-2013
1090,Revenue,CCHD,Home Care - Elderly - South,Other Small Contracts,Kumari Care Limited,3999.54, 22-Jan-2013
1091,Revenue,CCHD,Home Care - Elderly - North,Other Small Contracts,Kumari Care Limited,827.19, 22-Jan-2013
1092,Revenue,CCHD,Day Care - South,Private & Voluntary Day Care,Kumari Care Limited,168.08, 22-Jan-2013
1093,Revenue,CCHD,Under 65s -MH  Home Care Purch,Other Small Contracts,Kumari Care Limited,148.98, 22-Jan-2013
1094,Revenue,CCHD,PWLD Home Care - Under 65 - KH,Private & Voluntary Home Care,Kumari Care Limited,300.46, 22-Jan-2013
1095,Revenue,CCHD,Social Lettings Agency,Other Supplies & Services,Individual,565, 07-Jan-2013
1096,Revenue,CCHD,Tenancy Start Up Scheme,Other Supplies & Services,Individual,625, 24-Jan-2013
1097,Revenue,CCHD,Bed purchasing - Phys Dis - North,Nursing Homes,Leonard Cheshire  National Account Centr,2631.76, 22-Jan-2013
1098,Revenue,CCHD,Bed purchasing - Phys Dis - North,Residential Homes,Leonard Cheshire  National Account Centr,2330.6, 22-Jan-2013
1099,Revenue,CCHD,Bed Purchasing - Under 65s PWLD - South,Residential Homes,Leonard Cheshire  National Account Centr,2932.12, 22-Jan-2013
1100,Revenue,CCHD,Bed Purchasing - Elderly - North,Nursing Homes,Leonard Cheshire  National Account Centr,3436.6, 22-Jan-2013
1101,Revenue,CCHD,Bed purchasing - Phys Dis - North,Nursing Homes,Leonard Cheshire  National Account Centr,2736.6, 22-Jan-2013
1102,Revenue,CCHD,Bed Purchasing - Elderly - North,Residential Homes,Leonard Cheshire  National Account Centr,3122.24, 22-Jan-2013
1103,Revenue,CCHD,Bed purchasing - Under 65s PWLD - North,Residential Homes,Leonard Cheshire  National Account Centr,5817.08, 22-Jan-2013
1104,Revenue,CCHD,Bed purchasing - Under 65s PWLD - North,Residential Homes,Leonard Cheshire  National Account Centr,5815.56, 22-Jan-2013
1105,Revenue,CCHD,Bed Purchasing - Elderly - South,Residential Homes,Leonard Cheshire  National Account Centr,4398.92, 22-Jan-2013
1106,Revenue,CCHD,Bed purchasing - Phys Dis - North,Nursing Homes,Leonard Cheshire  National Account Centr,2812.44, 22-Jan-2013
1107,Revenue,CCHD,Bed purchasing - Phys Dis - North,Nursing Homes,Leonard Cheshire  National Account Centr,3183.12, 22-Jan-2013
1108,Revenue,CCHD,Bed purchasing - Phys Dis - North,Residential Homes,Leonard Cheshire  National Account Centr,2862.72, 22-Jan-2013
1109,Revenue,CCHD,Bed Purchasing - Elderly - North,Nursing Homes,Leonard Cheshire  National Account Centr,3521.32, 22-Jan-2013
1110,Revenue,CCHD,Bed purchasing - Phys Dis - North,Nursing Homes,Leonard Cheshire  National Account Centr,3193.16, 22-Jan-2013
1111,Revenue,CCHD,Bed purchasing - Phys Dis - South,Nursing Homes,Leonard Cheshire  National Account Centr,6056.64, 22-Jan-2013
1112,Revenue,CCHD,Bed purchasing - Phys Dis - North,Nursing Homes,Leonard Cheshire  National Account Centr,5468.84, 22-Jan-2013
1113,Revenue,CCHD,Bed Purchasing - Elderly - South,Nursing Homes,Leonard Cheshire  National Account Centr,2841.24, 22-Jan-2013
1114,Revenue,CCHD,Southmead Hospital Purchasing,Nursing Homes,Leonard Cheshire  National Account Centr,2977.88, 22-Jan-2013
1115,Revenue,CCHD,South Glos Users in all other LA Homes,Nursing Homes,Leonard Cheshire  National Account Centr,598.4, 22-Jan-2013
1116,Revenue,CCHD,Bed purchasing - Phys Dis - North,Nursing Homes,Leonard Cheshire  National Account Centr,3278.52, 22-Jan-2013
1117,Revenue,CCHD,Frenchay Hospital Purchasing,Residential Homes,Leonard Cheshire  National Account Centr,3738.32, 22-Jan-2013
1118,Revenue,CCHD,Bed Purchasing - Elderly - South,Nursing Homes,Leonard Cheshire  National Account Centr,4327.48, 22-Jan-2013
1119,Revenue,CCHD,Bed Purchasing - LD S28A- Over 65- South,Residential Homes,Leonard Cheshire  National Account Centr,565.21, 22-Jan-2013
1120,Revenue,CCHD,Bed Purchasing - Elderly - South,Nursing Homes,Leonard Elms Care Home,1528.76, 22-Jan-2013
1121,Revenue,CCHD,Tenancy Start Up Scheme,Other Supplies & Services,Lets Direct,1500, 22-Jan-2013
1122,Revenue,CCHD,Tenancy Start Up Scheme,Other Supplies & Services,Lifestyle Lettings (Deposit),1050, 30-Jan-2013
1123,Revenue,CCHD,Supported Living - KD,Private & Voluntary Home Care,Lifeways Community Care (Gloucester) Ltd,10990, 21-Jan-2013
1124,Revenue,CCHD,Supported Living - KD,Private & Voluntary Home Care,Lifeways Community Care (Gloucester) Ltd,8792, 21-Jan-2013
1125,Revenue,CCHD,Supported Living - KD,Private & Voluntary Home Care,Lifeways Community Care (Gloucester) Ltd,11373, 15-Jan-2013
1126,Revenue,CCHD,Bed Purchasing - Elderly - South,Residential Homes,Little Croft,1239.2, 22-Jan-2013
1127,Revenue,CCHD,Bed Purchasing - Elderly - South,Residential Homes,Little Croft,1418.6, 22-Jan-2013
1128,Revenue,CCHD,Bed Purchasing - Elderly - South,Residential Homes,Little Croft,1431.48, 22-Jan-2013
1129,Revenue,CCHD,Bed Purchasing - Elderly - South,Residential Homes,Little Croft,1838.36, 22-Jan-2013
1130,Revenue,CCHD,Bed Purchasing - Elderly - South,Residential Homes,Little Croft,1250.72, 22-Jan-2013
1131,Revenue,CCHD,Frenchay Hospital Purchasing,Residential Homes,Little Croft,1059.32, 22-Jan-2013
1132,Revenue,CCHD,Bed Purchasing - Elderly MH - South,Residential Homes,Little Croft,1172.88, 22-Jan-2013
1133,Revenue,CCHD,Southmead Hospital Purchasing,Residential Homes,Little Croft,1202.52, 22-Jan-2013
1134,Revenue,CCHD,Bed Purchasing - Elderly - South,Residential Homes,Little Croft,1596.08, 22-Jan-2013
1135,Revenue,CCHD,Bed purchasing - Under 65s PWLD - North,Residential Homes,Littlecroft Residential Homes  Longcroft,6524.44, 22-Jan-2013
1136,Revenue,CCHD,Supported Living - KD,Private & Voluntary Home Care,Lloyds TSB Commercial Finance Limited,5563.64, 07-Jan-2013
1137,Revenue,CCHD,Supported Living - PS,Private & Voluntary Home Care,Lloyds TSB Commercial Finance Limited,3890.2, 11-Jan-2013
1138,Revenue,CCHD,Supported Living - PS,Private & Voluntary Home Care,Lloyds TSB Commercial Finance Limited,3833.86, 11-Jan-2013
1139,Revenue,CCHD,Supported Living - PS,Private & Voluntary Home Care,Lloyds TSB Commercial Finance Limited,3741.94, 11-Jan-2013
1140,Revenue,CCHD,Supported Living - PS,Private & Voluntary Home Care,Lloyds TSB Commercial Finance Limited,6163.34, 11-Jan-2013
1141,Revenue,CCHD,Supported Living - PS,Private & Voluntary Home Care,Lloyds TSB Commercial Finance Limited,3824.98, 11-Jan-2013
1142,Revenue,CCHD,Supported Living - PS,Private & Voluntary Home Care,Lloyds TSB Commercial Finance Limited,4183.34, 11-Jan-2013
1143,Revenue,CCHD,Home Care - Elderly - South,Other Small Contracts,Lloyds TSB Commercial Finance Limited,774, 15-Jan-2013
1144,Revenue,CCHD,Home Care - Elderly - North,Other Small Contracts,Lloyds TSB Commercial Finance Limited,6323.58, 15-Jan-2013
1145,Revenue,CCHD,Day Care - South,Private & Voluntary Day Care,Lloyds TSB Commercial Finance Limited,201.24, 15-Jan-2013
1146,Revenue,CCHD,Day Care - North,Private & Voluntary Day Care,Lloyds TSB Commercial Finance Limited,425.7, 15-Jan-2013
1147,Revenue,CCHD,Home Care - Elderly - South,Other Small Contracts,Lloyds TSB Commercial Finance Limited,762.39, 15-Jan-2013
1148,Revenue,CCHD,Home Care - Elderly - North,Other Small Contracts,Lloyds TSB Commercial Finance Limited,6017.85, 15-Jan-2013
1149,Revenue,CCHD,Day Care - South,Private & Voluntary Day Care,Lloyds TSB Commercial Finance Limited,193.5, 15-Jan-2013
1150,Revenue,CCHD,Day Care - North,Private & Voluntary Day Care,Lloyds TSB Commercial Finance Limited,429.57, 15-Jan-2013
1151,Revenue,CCHD,Home Care - Elderly - South,Other Small Contracts,Lloyds TSB Commercial Finance Limited,766.26, 21-Jan-2013
1152,Revenue,CCHD,Home Care - Elderly - North,Other Small Contracts,Lloyds TSB Commercial Finance Limited,5971.41, 21-Jan-2013
1153,Revenue,CCHD,Day Care - South,Private & Voluntary Day Care,Lloyds TSB Commercial Finance Limited,220.59, 21-Jan-2013
1154,Revenue,CCHD,Day Care - North,Private & Voluntary Day Care,Lloyds TSB Commercial Finance Limited,375.39, 21-Jan-2013
1155,Revenue,CCHD,Home Care - Elderly - South,Other Small Contracts,Lloyds TSB Commercial Finance Limited,804.96, 11-Jan-2013
1156,Revenue,CCHD,Home Care - Elderly - North,Other Small Contracts,Lloyds TSB Commercial Finance Limited,6102.99, 11-Jan-2013
1157,Revenue,CCHD,Day Care - South,Private & Voluntary Day Care,Lloyds TSB Commercial Finance Limited,247.68, 11-Jan-2013
1158,Revenue,CCHD,Day Care - North,Private & Voluntary Day Care,Lloyds TSB Commercial Finance Limited,205.11, 11-Jan-2013
1159,Revenue,CCHD,Home Care - Elderly - South,Other Small Contracts,Lloyds TSB Commercial Finance Limited,433.44, 11-Jan-2013
1160,Revenue,CCHD,Home Care - Elderly - North,Other Small Contracts,Lloyds TSB Commercial Finance Limited,5534.1, 11-Jan-2013
1161,Revenue,CCHD,Day Care - South,Private & Voluntary Day Care,Lloyds TSB Commercial Finance Limited,239.94, 11-Jan-2013
1162,Revenue,CCHD,Day Care - North,Private & Voluntary Day Care,Lloyds TSB Commercial Finance Limited,193.5, 11-Jan-2013
1163,Revenue,CCHD,Home Care - Elderly - South,Other Small Contracts,Lloyds TSB Commercial Finance Limited,727.56, 11-Jan-2013
1164,Revenue,CCHD,Home Care - Elderly - North,Other Small Contracts,Lloyds TSB Commercial Finance Limited,5003.91, 11-Jan-2013
1165,Revenue,CCHD,Day Care - South,Private & Voluntary Day Care,Lloyds TSB Commercial Finance Limited,77.4, 11-Jan-2013
1166,Revenue,CCHD,Day Care - North,Private & Voluntary Day Care,Lloyds TSB Commercial Finance Limited,158.67, 11-Jan-2013
1167,Revenue,CCHD,Home Care - Elderly - South,Other Small Contracts,Lloyds TSB Commercial Finance Limited,770.13, 29-Jan-2013
1168,Revenue,CCHD,Home Care - Elderly - North,Other Small Contracts,Lloyds TSB Commercial Finance Limited,5754.69, 29-Jan-2013
1169,Revenue,CCHD,Day Care - South,Private & Voluntary Day Care,Lloyds TSB Commercial Finance Limited,170.28, 29-Jan-2013
1170,Revenue,CCHD,Day Care - North,Private & Voluntary Day Care,Lloyds TSB Commercial Finance Limited,150.93, 29-Jan-2013
1171,Revenue,CCHD,Supported Living - PS,Private & Voluntary Home Care,Lloyds TSB Commercial Finance Limited,4060.47, 18-Jan-2013
1172,Revenue,CCHD,Supported Living - PS,Private & Voluntary Home Care,Lloyds TSB Commercial Finance Limited,3790.36, 11-Jan-2013
1173,Revenue,CCHD,Supported Living - PS,Private & Voluntary Home Care,Lloyds TSB Commercial Finance Limited,3763.78, 11-Jan-2013
1174,Revenue,CCHD,Supported Living - PS,Private & Voluntary Home Care,Lloyds TSB Commercial Finance Limited,3447.56, 11-Jan-2013
1175,Revenue,CCHD,Supported Living - PS,Private & Voluntary Home Care,Lloyds TSB Commercial Finance Limited,3575.38, 11-Jan-2013
1176,Revenue,CCHD,Supported Living - PS,Private & Voluntary Home Care,Lloyds TSB Commercial Finance Limited,3399.94, 11-Jan-2013
1177,Revenue,CCHD,Supported Living - PS,Private & Voluntary Home Care,Loga Care Ltd T/A Logacre,3795.33, 14-Jan-2013
1178,Revenue,CCHD,Bed Purchasing - Under 65s PWLD - South,Residential Homes,Longton Court,9508.88, 22-Jan-2013
1179,Revenue,CCHD,Social Lettings Agency,Other Supplies & Services,Individual,565, 02-Jan-2013
1180,Revenue,CCHD,Southmead Hospital Purchasing,Nursing Homes,Majestic 3 Limited,1001.96, 22-Jan-2013
1181,Revenue,CCHD,Planning and Partnerships procurement,Conference Expenses,Making the Connections Ltd,1113, 17-Jan-2013
1182,Revenue,CCHD,Frenchay Hospital Purchasing,Residential Homes,Manor Cottage,696.6, 22-Jan-2013
1183,Revenue,CCHD,Bed Purchasing - Elderly - South,Residential Homes,Manor Cottage,1190.88, 22-Jan-2013
1184,Revenue,CCHD,Bed Purchasing - Elderly - South,Residential Homes,Manor Cottage,1424.84, 22-Jan-2013
1185,Revenue,CCHD,Bed Purchasing - Elderly - South,Residential Homes,Manor Cottage,1437.28, 22-Jan-2013
1186,Revenue,CCHD,Bed Purchasing - Elderly - North,Residential Homes,Manton Hall Residential Home,1484.32, 22-Jan-2013
1187,Revenue,CCHD,Supporting People Programme,Grants to Voluntary Bodies,Maples Community Housing Limited,2652.15, 02-Jan-2013
1188,Revenue,CCHD,Social Lettings Agency,Other Supplies & Services,Individual,655.41, 18-Jan-2013
1189,Revenue,CCHD,Bed Purchasing - Under 65s PWLD - South,Residential Homes,Marsden Healthcare Limited,894.48, 02-Jan-2013
1190,Revenue,CCHD,Bed Purchasing - Under 65s PWLD - South,Residential Homes,Marsden Healthcare Limited,894.48, 18-Jan-2013
1191,Revenue,CCHD,Bed purchasing - Elderly PWLD - South,Residential Homes,Marsden Healthcare Limited,3177.12, 02-Jan-2013
1192,Revenue,CCHD,Bed purchasing - Elderly PWLD - South,Residential Homes,Marsden Healthcare Limited,3177.12, 18-Jan-2013
1193,Revenue,CCHD,Bed purchasing - Elderly PWLD - South,Residential Homes,Marsden Healthcare Limited,1496.2, 02-Jan-2013
1194,Revenue,CCHD,Bed purchasing - Elderly PWLD - South,Residential Homes,Marsden Healthcare Limited,1496.2, 18-Jan-2013
1195,Revenue,CCHD,Bed Purchasing - Elderly MH - South,Nursing Homes,Meadow Care Home,1467.28, 22-Jan-2013
1196,Revenue,CCHD,Home Care - Elderly - South,Private & Voluntary Home Care,Mears Care,48154.25, 28-Jan-2013
1197,Revenue,CCHD,Home Care - Elderly - South,Other Small Contracts,Mears Care,538.02, 15-Jan-2013
1198,Revenue,CCHD,Home Care - Elderly - North,Other Small Contracts,Mears Care,6771, 15-Jan-2013
1199,Revenue,CCHD,Day Care - South,Private & Voluntary Day Care,Mears Care,91.5, 15-Jan-2013
1200,Revenue,CCHD,Day Care - North,Private & Voluntary Day Care,Mears Care,248.88, 15-Jan-2013
1201,Revenue,CCHD,Under 65s -MH  Home Care Purch,Other Small Contracts,Mears Care,109.8, 15-Jan-2013
1202,Revenue,CCHD,Home care - Elderly MH - North,Other Small Contracts,Mears Care,699.06, 15-Jan-2013
1203,Revenue,CCHD,Home Care - Elderly LD - KH,Private & Voluntary Home Care,Mears Care,54.9, 15-Jan-2013
1204,Revenue,CCHD,Home Care - Elderly - South,Other Small Contracts,Mears Care,479.46, 15-Jan-2013
1205,Revenue,CCHD,Home Care - Elderly - North,Other Small Contracts,Mears Care,6544.08, 15-Jan-2013
1206,Revenue,CCHD,Day Care - South,Private & Voluntary Day Care,Mears Care,95.16, 15-Jan-2013
1207,Revenue,CCHD,Day Care - North,Private & Voluntary Day Care,Mears Care,248.88, 15-Jan-2013
1208,Revenue,CCHD,Under 65s -MH  Home Care Purch,Other Small Contracts,Mears Care,109.8, 15-Jan-2013
1209,Revenue,CCHD,Home care - Elderly MH - North,Other Small Contracts,Mears Care,695.4, 15-Jan-2013
1210,Revenue,CCHD,Home Care - Elderly LD - KH,Private & Voluntary Home Care,Mears Care,51.24, 15-Jan-2013
1211,Revenue,CCHD,Home Care - Elderly - South,Other Small Contracts,Mears Care,461.16, 17-Jan-2013
1212,Revenue,CCHD,Home Care - Elderly - North,Other Small Contracts,Mears Care,5918.22, 17-Jan-2013
1213,Revenue,CCHD,Day Care - South,Private & Voluntary Day Care,Mears Care,43.92, 17-Jan-2013
1214,Revenue,CCHD,Day Care - North,Private & Voluntary Day Care,Mears Care,128.1, 17-Jan-2013
1215,Revenue,CCHD,Under 65s -MH  Home Care Purch,Other Small Contracts,Mears Care,80.52, 17-Jan-2013
1216,Revenue,CCHD,Home care - Elderly MH - North,Other Small Contracts,Mears Care,699.06, 17-Jan-2013
1217,Revenue,CCHD,Home Care - Elderly LD - KH,Private & Voluntary Home Care,Mears Care,29.28, 17-Jan-2013
1218,Revenue,CCHD,Home Care - Elderly - South,Other Small Contracts,Mears Care,545.34, 15-Jan-2013
1219,Revenue,CCHD,Home Care - Elderly - North,Other Small Contracts,Mears Care,6533.1, 15-Jan-2013
1220,Revenue,CCHD,Day Care - South,Private & Voluntary Day Care,Mears Care,87.84, 15-Jan-2013
1221,Revenue,CCHD,Day Care - North,Private & Voluntary Day Care,Mears Care,245.22, 15-Jan-2013
1222,Revenue,CCHD,Under 65s -MH  Home Care Purch,Other Small Contracts,Mears Care,102.48, 15-Jan-2013
1223,Revenue,CCHD,Home care - Elderly MH - North,Other Small Contracts,Mears Care,699.06, 15-Jan-2013
1224,Revenue,CCHD,Home Care - Elderly LD - KH,Private & Voluntary Home Care,Mears Care,51.24, 15-Jan-2013
1225,Revenue,CCHD,Home Care - Elderly - North,Other Small Contracts,Medacs Home Care,698.92, 17-Jan-2013
1226,Revenue,CCHD,Home care - Elderly MH - North,Other Small Contracts,Medacs Home Care,117.64, 17-Jan-2013
1227,Revenue,CCHD,NRS Contract,Daily Living Equipment,Medequip Assistive Technology Ltd,26420.57, 14-Jan-2013
1228,Revenue,CCHD,NRS Contract,Daily Living Equipment,Medequip Assistive Technology Ltd,77244.06, 14-Jan-2013
1229,Revenue,CCHD,Homelessness Grant,Other Supplies & Services,Medics on the Move,2240, 09-Jan-2013
1230,Revenue,CCHD,Bed Purchasing - Under 65s PWLD - South,Residential Homes,Mencap,2198.88, 22-Jan-2013
1231,Revenue,CCHD,Supported Living (S28a) South,Private & Voluntary Home Care,Mencap - PS North,3751.02, 15-Jan-2013
1232,Revenue,CCHD,Supported Living (S28a) South,Private & Voluntary Home Care,Mencap - PS North,3751.02, 15-Jan-2013
1233,Revenue,CCHD,Supported Living (S28a) South,Private & Voluntary Home Care,Mencap - PS North,3751.02, 22-Jan-2013
1234,Revenue,CCHD,Supported Living (S28a) South,Private & Voluntary Home Care,Mencap - PS North,3751.02, 22-Jan-2013
1235,Revenue,CCHD,Supporting People Programme,Grants to Voluntary Bodies,Merlin Housing Society,1016.8, 02-Jan-2013
1236,Revenue,CCHD,Supporting People Programme,Grants to Voluntary Bodies,Merlin Housing Society,15252, 02-Jan-2013
1237,Revenue,CCHD,Supporting People Programme,Grants to Voluntary Bodies,Merlin Housing Society,2399.99, 02-Jan-2013
1238,Revenue,CCHD,Supporting People Programme,Grants to Voluntary Bodies,Merlin Housing Society,50840, 02-Jan-2013
1239,Revenue,CCHD,Intermediate Care Accommodation,Other Supplies & Services,Merlin Housing Society,969.93, 11-Jan-2013
1240,Revenue,CCHD,Intermediate Care Accommodation,Other Supplies & Services,Merlin Housing Society,969.93, 24-Jan-2013
1241,Revenue,CCHD,Frenchay Hospital Purchasing,Residential Homes,Milburn Finance,1035.6, 22-Jan-2013
1242,Revenue,CCHD,Home Care - Elderly - South,Other Small Contracts,Milestones Outreach Dementia Services,1352.28, 14-Jan-2013
1243,Revenue,CCHD,Home Care - Elderly - North,Other Small Contracts,Milestones Outreach Dementia Services,485.14, 14-Jan-2013
1244,Revenue,CCHD,Day Care - South,Private & Voluntary Day Care,Milestones Outreach Dementia Services,126.06, 14-Jan-2013
1245,Revenue,CCHD,Day Care - North,Private & Voluntary Day Care,Milestones Outreach Dementia Services,164.16, 14-Jan-2013
1246,Revenue,CCHD,Home care - Elderly MH - North,Other Small Contracts,Milestones Outreach Dementia Services,240.66, 14-Jan-2013
1247,Revenue,CCHD,Elderly MH Day Care North,Private & Voluntary Day Care,Milestones Outreach Dementia Services,198.64, 14-Jan-2013
1248,Revenue,CCHD,Home Care - Elderly - South,Other Small Contracts,Milestones Outreach Dementia Services,1256.78, 14-Jan-2013
1249,Revenue,CCHD,Home Care - Elderly - North,Other Small Contracts,Milestones Outreach Dementia Services,473.68, 14-Jan-2013
1250,Revenue,CCHD,Day Care - South,Private & Voluntary Day Care,Milestones Outreach Dementia Services,61.12, 14-Jan-2013
1251,Revenue,CCHD,Day Care - North,Private & Voluntary Day Care,Milestones Outreach Dementia Services,109.44, 14-Jan-2013
1252,Revenue,CCHD,Home care - Elderly MH - North,Other Small Contracts,Milestones Outreach Dementia Services,267.4, 14-Jan-2013
1253,Revenue,CCHD,Elderly MH Day Care North,Private & Voluntary Day Care,Milestones Outreach Dementia Services,244.48, 14-Jan-2013
1254,Revenue,CCHD,Home Care - Elderly - South,Other Small Contracts,Milestones Outreach Dementia Services,1218.58, 22-Jan-2013
1255,Revenue,CCHD,Home Care - Elderly - North,Other Small Contracts,Milestones Outreach Dementia Services,408.74, 22-Jan-2013
1256,Revenue,CCHD,Day Care - South,Private & Voluntary Day Care,Milestones Outreach Dementia Services,61.12, 22-Jan-2013
1257,Revenue,CCHD,Day Care - North,Private & Voluntary Day Care,Milestones Outreach Dementia Services,150.48, 22-Jan-2013
1258,Revenue,CCHD,Home care - Elderly MH - North,Other Small Contracts,Milestones Outreach Dementia Services,259.76, 22-Jan-2013
1259,Revenue,CCHD,Elderly MH Day Care North,Private & Voluntary Day Care,Milestones Outreach Dementia Services,183.36, 22-Jan-2013
1260,Revenue,CCHD,Home Care - Elderly - South,Other Small Contracts,Milestones Outreach Dementia Services,1356.1, 22-Jan-2013
1261,Revenue,CCHD,Home Care - Elderly - North,Other Small Contracts,Milestones Outreach Dementia Services,466.04, 22-Jan-2013
1262,Revenue,CCHD,Day Care - South,Private & Voluntary Day Care,Milestones Outreach Dementia Services,122.24, 22-Jan-2013
1263,Revenue,CCHD,Day Care - North,Private & Voluntary Day Care,Milestones Outreach Dementia Services,164.16, 22-Jan-2013
1264,Revenue,CCHD,Home care - Elderly MH - North,Other Small Contracts,Milestones Outreach Dementia Services,271.22, 22-Jan-2013
1265,Revenue,CCHD,Elderly MH Day Care North,Private & Voluntary Day Care,Milestones Outreach Dementia Services,244.48, 22-Jan-2013
1266,Revenue,CCHD,Home Care - Elderly - South,Other Small Contracts,Milestones Outreach Dementia Services,1363.74, 14-Jan-2013
1267,Revenue,CCHD,Home Care - Elderly - North,Other Small Contracts,Milestones Outreach Dementia Services,481.32, 14-Jan-2013
1268,Revenue,CCHD,Day Care - South,Private & Voluntary Day Care,Milestones Outreach Dementia Services,122.24, 14-Jan-2013
1269,Revenue,CCHD,Day Care - North,Private & Voluntary Day Care,Milestones Outreach Dementia Services,164.16, 14-Jan-2013
1270,Revenue,CCHD,Home care - Elderly MH - North,Other Small Contracts,Milestones Outreach Dementia Services,263.58, 14-Jan-2013
1271,Revenue,CCHD,Elderly MH Day Care North,Private & Voluntary Day Care,Milestones Outreach Dementia Services,152.8, 14-Jan-2013
1272,Revenue,CCHD,Home Care - Elderly - South,Other Small Contracts,Milestones Outreach Dementia Services,1344.64, 14-Jan-2013
1273,Revenue,CCHD,Home Care - Elderly - North,Other Small Contracts,Milestones Outreach Dementia Services,511.88, 14-Jan-2013
1274,Revenue,CCHD,Day Care - South,Private & Voluntary Day Care,Milestones Outreach Dementia Services,122.24, 14-Jan-2013
1275,Revenue,CCHD,Day Care - North,Private & Voluntary Day Care,Milestones Outreach Dementia Services,164.16, 14-Jan-2013
1276,Revenue,CCHD,Home care - Elderly MH - North,Other Small Contracts,Milestones Outreach Dementia Services,259.76, 14-Jan-2013
1277,Revenue,CCHD,Elderly MH Day Care North,Private & Voluntary Day Care,Milestones Outreach Dementia Services,106.96, 14-Jan-2013
1278,Revenue,CCHD,Home Care - Elderly - South,Other Small Contracts,Milestones Outreach Dementia Services,1149.82, 25-Jan-2013
1279,Revenue,CCHD,Home Care - Elderly - North,Other Small Contracts,Milestones Outreach Dementia Services,511.88, 25-Jan-2013
1280,Revenue,CCHD,Day Care - South,Private & Voluntary Day Care,Milestones Outreach Dementia Services,61.12, 25-Jan-2013
1281,Revenue,CCHD,Day Care - North,Private & Voluntary Day Care,Milestones Outreach Dementia Services,168.72, 25-Jan-2013
1282,Revenue,CCHD,Home care - Elderly MH - North,Other Small Contracts,Milestones Outreach Dementia Services,267.4, 25-Jan-2013
1283,Revenue,CCHD,Elderly MH Day Care North,Private & Voluntary Day Care,Milestones Outreach Dementia Services,152.8, 25-Jan-2013
1284,Revenue,CCHD,Home Care - Elderly - South,Other Small Contracts,Milestones Outreach Dementia Services,1039.04, 25-Jan-2013
1285,Revenue,CCHD,Home Care - Elderly - North,Other Small Contracts,Milestones Outreach Dementia Services,313.24, 25-Jan-2013
1286,Revenue,CCHD,Day Care - South,Private & Voluntary Day Care,Milestones Outreach Dementia Services,68.76, 25-Jan-2013
1287,Revenue,CCHD,Day Care - North,Private & Voluntary Day Care,Milestones Outreach Dementia Services,109.44, 25-Jan-2013
1288,Revenue,CCHD,Home care - Elderly MH - North,Other Small Contracts,Milestones Outreach Dementia Services,244.48, 25-Jan-2013
1289,Revenue,CCHD,Elderly MH Day Care North,Private & Voluntary Day Care,Milestones Outreach Dementia Services,45.84, 25-Jan-2013
1290,Revenue,CCHD,Home Care - Elderly - South,Other Small Contracts,Milestones Outreach Dementia Services,1165.1, 23-Jan-2013
1291,Revenue,CCHD,Home Care - Elderly - North,Other Small Contracts,Milestones Outreach Dementia Services,401.1, 23-Jan-2013
1292,Revenue,CCHD,Day Care - South,Private & Voluntary Day Care,Milestones Outreach Dementia Services,126.06, 23-Jan-2013
1293,Revenue,CCHD,Day Care - North,Private & Voluntary Day Care,Milestones Outreach Dementia Services,164.16, 23-Jan-2013
1294,Revenue,CCHD,Home care - Elderly MH - North,Other Small Contracts,Milestones Outreach Dementia Services,84.04, 23-Jan-2013
1295,Revenue,CCHD,Elderly MH Day Care North,Private & Voluntary Day Care,Milestones Outreach Dementia Services,57.3, 23-Jan-2013
1296,Revenue,CCHD,Home Care - Elderly - South,Other Small Contracts,Milestones Outreach Dementia Services,1249.14, 25-Jan-2013
1297,Revenue,CCHD,Home Care - Elderly - North,Other Small Contracts,Milestones Outreach Dementia Services,424.02, 25-Jan-2013
1298,Revenue,CCHD,Day Care - South,Private & Voluntary Day Care,Milestones Outreach Dementia Services,122.24, 25-Jan-2013
1299,Revenue,CCHD,Day Care - North,Private & Voluntary Day Care,Milestones Outreach Dementia Services,168.72, 25-Jan-2013
1300,Revenue,CCHD,Home care - Elderly MH - North,Other Small Contracts,Milestones Outreach Dementia Services,80.22, 25-Jan-2013
1301,Revenue,CCHD,Elderly MH Day Care North,Private & Voluntary Day Care,Milestones Outreach Dementia Services,152.8, 25-Jan-2013
1302,Revenue,CCHD,Supported Living (S28a) North,Private & Voluntary Home Care,Milestones Trust,1395, 07-Jan-2013
1303,Revenue,CCHD,Purchase of Non-Res Care - KD,Private & Voluntary Day Care,Milestones Trust,1161.27, 08-Jan-2013
1304,Revenue,CCHD,Stibbs and Fairburn,Private & Voluntary Respite Care,Milestones Trust,124798.38, 15-Jan-2013
1305,Revenue,CCHD,Supported Living - PS,Private & Voluntary Home Care,Milestones Trust,17958.53, 07-Jan-2013
1306,Revenue,CCHD,Supported Living (S28a) North,Private & Voluntary Home Care,Milestones Trust,4919, 15-Jan-2013
1307,Revenue,CCHD,Supported Living (S28a) North,Private & Voluntary Home Care,Milestones Trust,4349, 15-Jan-2013
1308,Revenue,CCHD,Supported Living (S28a) North,Private & Voluntary Home Care,Milestones Trust,4349, 15-Jan-2013
1309,Revenue,CCHD,Supported Living - PS,Private & Voluntary Home Care,Milestones Trust,753.77, 07-Jan-2013
1310,Revenue,CCHD,Purchase of Non-Res Care - PS,Private & Voluntary Day Care,Milestones Trust,713.24, 07-Jan-2013
1311,Revenue,CCHD,Supported Living (S28a) South,Private & Voluntary Home Care,Milestones Trust,6288.98, 15-Jan-2013
1312,Revenue,CCHD,Supported Living - PS,Private & Voluntary Home Care,Milestones Trust,1651.5, 08-Jan-2013
1313,Revenue,CCHD,Supported Living - PS,Private & Voluntary Home Care,Milestones Trust,532.5, 07-Jan-2013
1314,Revenue,CCHD,Supported Living (S28a) South,Private & Voluntary Home Care,Milestones Trust,763.84, 15-Jan-2013
1315,Revenue,CCHD,Supported Living - PS,Private & Voluntary Home Care,Milestones Trust,583.88, 08-Jan-2013
1316,Revenue,CCHD,Supported Living (S28a) North,Private & Voluntary Home Care,Milestones Trust,4920.25, 15-Jan-2013
1317,Revenue,CCHD,Supported Living (S28a) North,Private & Voluntary Home Care,Milestones Trust,4920.25, 15-Jan-2013
1318,Revenue,CCHD,Supported Living - PS,Private & Voluntary Home Care,Milestones Trust,843.35, 08-Jan-2013
1319,Revenue,CCHD,Purchase of Non-Res Care - PS,Private & Voluntary Day Care,Milestones Trust,629.2, 14-Jan-2013
1320,Revenue,CCHD,Supported Living - PS,Private & Voluntary Home Care,Milestones Trust,1134.7, 08-Jan-2013
1321,Revenue,CCHD,Purchase of Non-Res Care - PS,Private & Voluntary Day Care,Milestones Trust,630, 08-Jan-2013
1322,Revenue,CCHD,Supported Living (S28a) South,Private & Voluntary Home Care,Milestones Trust,5221.4, 15-Jan-2013
1323,Revenue,CCHD,Supported Living (S28a) North,Private & Voluntary Home Care,Milestones Trust,11052.65, 15-Jan-2013
1324,Revenue,CCHD,Supported Living - KD,Private & Voluntary Home Care,Milestones Trust,4813.56, 08-Jan-2013
1325,Revenue,CCHD,Supported Living (S28a) South,Private & Voluntary Home Care,Milestones Trust,4419.96, 15-Jan-2013
1326,Revenue,CCHD,Supported Living - PS,Private & Voluntary Home Care,Milestones Trust,4146.76, 08-Jan-2013
1327,Revenue,CCHD,Supported Living (S28a) South,Private & Voluntary Home Care,Milestones Trust,3891.33, 15-Jan-2013
1328,Revenue,CCHD,Supported Living (S28a) South,Private & Voluntary Home Care,Milestones Trust,3693.3, 15-Jan-2013
1329,Revenue,CCHD,Supported Living - PS,Private & Voluntary Home Care,Milestones Trust,2441.17, 08-Jan-2013
1330,Revenue,CCHD,Supported Living - PS,Private & Voluntary Home Care,Milestones Trust,2025.48, 08-Jan-2013
1331,Revenue,CCHD,Supported Living - PS,Private & Voluntary Home Care,Milestones Trust,798.86, 08-Jan-2013
1332,Revenue,CCHD,Supported Living (S28a) South,Private & Voluntary Home Care,Milestones Trust,690.95, 15-Jan-2013
1333,Revenue,CCHD,Supported Living - PS,Private & Voluntary Home Care,Milestones Trust,810.5, 11-Jan-2013
1334,Revenue,CCHD,Supported Living - KD,Private & Voluntary Home Care,Milestones Trust,1739.43, 14-Jan-2013
1335,Revenue,CCHD,Supported Living - PS,Private & Voluntary Home Care,Milestones Trust,1105.92, 14-Jan-2013
1336,Revenue,CCHD,Purchase of Non-Res Care - PS,Private & Voluntary Day Care,Milestones Trust,2120.56, 15-Jan-2013
1337,Revenue,CCHD,Purchase of Non-Res Care - PS,Private & Voluntary Day Care,Milestones Trust,660.01, 15-Jan-2013
1338,Revenue,CCHD,Purchase of Non-Res Care - PS,Private & Voluntary Day Care,Milestones Trust,1537.52, 15-Jan-2013
1339,Revenue,CCHD,Purchase of Non-Res Care - PS,Private & Voluntary Day Care,Milestones Trust,1416.9, 15-Jan-2013
1340,Revenue,CCHD,Purchase of Non-Res Care - PS,Private & Voluntary Day Care,Milestones Trust,2174.43, 15-Jan-2013
1341,Revenue,CCHD,Supported Living - PS,Private & Voluntary Home Care,Milestones Trust,660.01, 15-Jan-2013
1342,Revenue,CCHD,Purchase of Non-Res Care - PS,Private & Voluntary Day Care,Milestones Trust,1779.25, 15-Jan-2013
1343,Revenue,CCHD,Purchase of Non-Res Care - PS,Private & Voluntary Day Care,Milestones Trust,2287.14, 15-Jan-2013
1344,Revenue,CCHD,Purchase of Non-Res Care - PS,Private & Voluntary Day Care,Milestones Trust,2684, 15-Jan-2013
1345,Revenue,CCHD,Purchase of Non-Res Care - PS,Private & Voluntary Day Care,Milestones Trust,716.24, 15-Jan-2013
1346,Revenue,CCHD,Purchase of Non-Res Care - PS,Private & Voluntary Day Care,Milestones Trust,1945.22, 15-Jan-2013
1347,Revenue,CCHD,Purchase of Non-Res Care - PS,Private & Voluntary Day Care,Milestones Trust,651.75, 15-Jan-2013
1348,Revenue,CCHD,Purchase of Non-Res Care - PS,Private & Voluntary Day Care,Milestones Trust,2689.85, 15-Jan-2013
1349,Revenue,CCHD,Purchase of Non-Res Care - PS,Private & Voluntary Day Care,Milestones Trust,1877.62, 15-Jan-2013
1350,Revenue,CCHD,Purchase of Non-Res Care - PS,Private & Voluntary Day Care,Milestones Trust,1471.21, 15-Jan-2013
1351,Revenue,CCHD,Supported Living - PS,Private & Voluntary Home Care,Milestones Trust,2295, 15-Jan-2013
1352,Revenue,CCHD,Purchase of Non-Res Care - PS,Private & Voluntary Day Care,Milestones Trust,1684.03, 15-Jan-2013
1353,Revenue,CCHD,Supported Living - PS,Private & Voluntary Home Care,Milestones Trust,14442.74, 18-Jan-2013
1354,Revenue,CCHD,Supported Living (S28a) South,Private & Voluntary Home Care,Milestones Trust,6498.61, 30-Jan-2013
1355,Revenue,CCHD,Supported Living - PS,Private & Voluntary Home Care,Milestones Trust,1317.94, 30-Jan-2013
1356,Revenue,CCHD,Supported Living - PS,Private & Voluntary Home Care,Milestones Trust,527.6, 30-Jan-2013
1357,Revenue,CCHD,Supported Living - PS,Private & Voluntary Home Care,Milestones Trust,511.05, 30-Jan-2013
1358,Revenue,CCHD,Supported Living - PS,Private & Voluntary Home Care,Milestones Trust,907.76, 30-Jan-2013
1359,Revenue,CCHD,Supported Living - PS,Private & Voluntary Home Care,Milestones Trust,1260.31, 08-Jan-2013
1360,Revenue,CCHD,Bed purchasing - Elderly S117 - South,Nursing Homes,Mimosa Healthcare Holdings Ltd,1919.72, 22-Jan-2013
1361,Revenue,CCHD,Frenchay Hospital Purchasing,Nursing Homes,Mimosa Healthcare Holdings Ltd,1295.2, 22-Jan-2013
1362,Revenue,CCHD,Bed purchasing - Elderly MH - North,Nursing Homes,Mimosa Healthcare Holdings Ltd,862.52, 22-Jan-2013
1363,Revenue,CCHD,Bed Purchasing - Elderly - South,Nursing Homes,Mimosa Healthcare Holdings Ltd,959.72, 22-Jan-2013
1364,Revenue,CCHD,Frenchay Hospital Purchasing,Nursing Homes,Mimosa Healthcare Holdings Ltd,1295.2, 22-Jan-2013
1365,Revenue,CCHD,Southmead Hospital Purchasing,Residential Homes,Mimosa Healthcare Holdings Ltd,1403.2, 22-Jan-2013
1366,Revenue,CCHD,Southmead Hospital Purchasing,Nursing Homes,Mimosa Healthcare Holdings Ltd,1366.88, 22-Jan-2013
1367,Revenue,CCHD,Frenchay Hospital Purchasing,Nursing Homes,Mimosa Healthcare Holdings Ltd,1467.2, 22-Jan-2013
1368,Revenue,CCHD,Frenchay Hospital Purchasing,Nursing Homes,Mimosa Healthcare Holdings Ltd,890.8, 22-Jan-2013
1369,Revenue,CCHD,Tenancy Start Up Scheme,Other Supplies & Services,Individual,1350, 11-Jan-2013
1370,Revenue,CCHD,Bed Purchasing - LD S28A- Over 65- South,Nursing Homes,Mortimer House Nursing Home,2996.52, 02-Jan-2013
1371,Revenue,CCHD,Bed Purchasing - LD S28A- Over 65- South,Nursing Homes,Mortimer House Nursing Home,2996.52, 18-Jan-2013
1372,Revenue,CCHD,Bed Purchasing - LD S28A- Over 65- South,Nursing Homes,Mortimer House Nursing Home,2553.84, 02-Jan-2013
1373,Revenue,CCHD,Bed Purchasing - LD S28A- Over 65- South,Nursing Homes,Mortimer House Nursing Home,2553.84, 18-Jan-2013
1374,Revenue,CCHD,Bed Purchasing - LD S28A- Over 65- South,Nursing Homes,Mortimer House Nursing Home,3271.92, 02-Jan-2013
1375,Revenue,CCHD,Bed Purchasing - LD S28A- Over 65- South,Nursing Homes,Mortimer House Nursing Home,3271.92, 18-Jan-2013
1376,Revenue,CCHD,Bed Purchasing - S28A - Over 65- North,Nursing Homes,Mortimer House Nursing Home,3619.2, 02-Jan-2013
1377,Revenue,CCHD,Bed Purchasing - S28A - Over 65- North,Nursing Homes,Mortimer House Nursing Home,3619.2, 18-Jan-2013
1378,Revenue,CCHD,Bed Purchasing - S28A - Over 65- North,Nursing Homes,Mortimer House Nursing Home,3619.2, 02-Jan-2013
1379,Revenue,CCHD,Bed Purchasing - S28A - Over 65- North,Nursing Homes,Mortimer House Nursing Home,3619.2, 18-Jan-2013
1380,Revenue,CCHD,Bed purchasing - Elderly S117 - South,Residential Homes,Mostyn Lodge Residential Home,1880, 22-Jan-2013
1381,Revenue,CCHD,Frenchay Hospital Purchasing,Residential Homes,Mostyn Lodge Residential Home,622.96, 22-Jan-2013
1382,Revenue,CCHD,Supported Living - PS,Private & Voluntary Home Care,Moving On,3711.51, 14-Jan-2013
1383,Revenue,CCHD,Supported Living - PS,Private & Voluntary Home Care,Moving On,6549.77, 14-Jan-2013
1384,Revenue,CCHD,Social Lettings Agency,Other Supplies & Services,Individual,565, 22-Jan-2013
1385,Revenue,CCHD,Social Lettings Agency,Other Supplies & Services,Individual,850, 11-Jan-2013
1386,Revenue,CCHD,Tenancy Start Up Scheme,Fees & Charges Income - General,Individual,725, 07-Jan-2013
1387,Revenue,CCHD,Tenancy Start Up Scheme,Other Supplies & Services,Individual,625, 18-Jan-2013
1388,Revenue,CCHD,Under 65s PWLD - KH,Residential Homes,Mr J Davis & Mrs S Davis,1870.91, 02-Jan-2013
1389,Revenue,CCHD,Bed Purchasing - Under 65s PWLD - South,Residential Homes,Mr J Davis & Mrs S Davis,958.76, 29-Jan-2013
1390,Revenue,CCHD,Social Lettings Agency,Other Supplies & Services,Individual,565, 08-Jan-2013
1391,Revenue,CCHD,Non Priority Bond Scheme,Other Supplies & Services,Mr Martin Weaver,990, 09-Jan-2013
1392,Revenue,CCHD,Social Lettings Agency,Other Supplies & Services,Individual,632.81, 18-Jan-2013
1393,Revenue,CCHD,Social Lettings Agency,Other Supplies & Services,Individual,551.44, 08-Jan-2013
1394,Revenue,CCHD,Social Lettings Agency,Other Supplies & Services,Individual,565, 02-Jan-2013
1395,Revenue,CCHD,Social Lettings Agency,Other Supplies & Services,Individual,632.81, 11-Jan-2013
1396,Revenue,CCHD,Elderly MH Day Care South,Private & Voluntary Day Care,Mrs B Kimber,517.16, 09-Jan-2013
1397,Revenue,CCHD,Purchase of Non-Res Care - PS,Private & Voluntary Day Care,Mrs B Kimber,939.9, 07-Jan-2013
1398,Revenue,CCHD,Day Care - North,Private & Voluntary Day Care,Mrs B Kimber,538.68, 08-Jan-2013
1399,Revenue,CCHD,Purchase of Non-Res Care - KD,Private & Voluntary Day Care,Mrs B Kimber,719.04, 07-Jan-2013
1400,Revenue,CCHD,Supported Living - PS,Private & Voluntary Home Care,Mrs B Kimber,10832.69, 21-Jan-2013
1401,Revenue,CCHD,Supported Living - PS,Private & Voluntary Home Care,Mrs B Kimber,8680.76, 15-Jan-2013
1402,Revenue,CCHD,Elderly MH Day Care South,Private & Voluntary Day Care,Mrs B Kimber,535.63, 25-Jan-2013
1403,Revenue,CCHD,Purchase of Non-Res Care - PS,Private & Voluntary Day Care,Mrs B Kimber,1349.58, 25-Jan-2013
1404,Revenue,CCHD,Day Care - South,Private & Voluntary Day Care,Mrs B Kimber,637.24, 15-Jan-2013
1405,Revenue,CCHD,Purchase of Non-Res Care - KD,Private & Voluntary Day Care,Mrs B Kimber,732.57, 21-Jan-2013
1406,Revenue,CCHD,Supported Living - KD,Private & Voluntary Home Care,Mrs B Kimber,1203.84, 21-Jan-2013
1407,Revenue,CCHD,Home Care - Elderly - South,Other Small Contracts,Mrs B Kimber - Stepping Stones,4218.52, 02-Jan-2013
1408,Revenue,CCHD,Home Care - Elderly - North,Other Small Contracts,Mrs B Kimber - Stepping Stones,3889.7, 02-Jan-2013
1409,Revenue,CCHD,Day Care - South,Private & Voluntary Day Care,Mrs B Kimber - Stepping Stones,810.02, 02-Jan-2013
1410,Revenue,CCHD,Day Care - North,Private & Voluntary Day Care,Mrs B Kimber - Stepping Stones,144.36, 02-Jan-2013
1411,Revenue,CCHD,Under 65s -MH  Home Care Purch,Other Small Contracts,Mrs B Kimber - Stepping Stones,232.58, 02-Jan-2013
1412,Revenue,CCHD,Home care - Elderly MH - North,Other Small Contracts,Mrs B Kimber - Stepping Stones,120.3, 02-Jan-2013
1413,Revenue,CCHD,Elderly MH Day Care North,Private & Voluntary Day Care,Mrs B Kimber - Stepping Stones,96.24, 02-Jan-2013
1414,Revenue,CCHD,Home care - Elderly MH - South,Other Small Contracts,Mrs B Kimber - Stepping Stones,212.53, 02-Jan-2013
1415,Revenue,CCHD,Supported Living - KD,Private & Voluntary Home Care,Mrs B Kimber - Stepping Stones,846.11, 02-Jan-2013
1416,Revenue,CCHD,Home Care - LD Under 65 - South,Private & Voluntary Home Care,Mrs B Kimber - Stepping Stones,112.28, 02-Jan-2013
1417,Revenue,CCHD,Home Care - LD Under 65 - North,Private & Voluntary Home Care,Mrs B Kimber - Stepping Stones,48.12, 02-Jan-2013
1418,Revenue,CCHD,PWLD Home Care - Under 65 - KH,Private & Voluntary Home Care,Mrs B Kimber - Stepping Stones,96.24, 02-Jan-2013
1419,Revenue,CCHD,Home Care - Elderly LD - North,Private & Voluntary Home Care,Mrs B Kimber - Stepping Stones,902.25, 02-Jan-2013
1420,Revenue,CCHD,Home Care - Elderly - South,Other Small Contracts,Mrs B Kimber - Stepping Stones,4226.54, 21-Jan-2013
1421,Revenue,CCHD,Home Care - Elderly - North,Other Small Contracts,Mrs B Kimber - Stepping Stones,3637.07, 21-Jan-2013
1422,Revenue,CCHD,Day Care - South,Private & Voluntary Day Care,Mrs B Kimber - Stepping Stones,509.27, 21-Jan-2013
1423,Revenue,CCHD,Day Care - North,Private & Voluntary Day Care,Mrs B Kimber - Stepping Stones,144.36, 21-Jan-2013
1424,Revenue,CCHD,Under 65s -MH  Home Care Purch,Other Small Contracts,Mrs B Kimber - Stepping Stones,204.51, 21-Jan-2013
1425,Revenue,CCHD,Home care - Elderly MH - North,Other Small Contracts,Mrs B Kimber - Stepping Stones,120.3, 21-Jan-2013
1426,Revenue,CCHD,Elderly MH Day Care North,Private & Voluntary Day Care,Mrs B Kimber - Stepping Stones,96.24, 21-Jan-2013
1427,Revenue,CCHD,Home care - Elderly MH - South,Other Small Contracts,Mrs B Kimber - Stepping Stones,220.55, 21-Jan-2013
1428,Revenue,CCHD,Supported Living - KD,Private & Voluntary Home Care,Mrs B Kimber - Stepping Stones,781.95, 21-Jan-2013
1429,Revenue,CCHD,Home Care - LD Under 65 - South,Private & Voluntary Home Care,Mrs B Kimber - Stepping Stones,64.16, 21-Jan-2013
1430,Revenue,CCHD,Home Care - LD Under 65 - North,Private & Voluntary Home Care,Mrs B Kimber - Stepping Stones,48.12, 21-Jan-2013
1431,Revenue,CCHD,PWLD Home Care - Under 65 - KH,Private & Voluntary Home Care,Mrs B Kimber - Stepping Stones,92.23, 21-Jan-2013
1432,Revenue,CCHD,Home Care - Elderly LD - North,Private & Voluntary Home Care,Mrs B Kimber - Stepping Stones,954.38, 21-Jan-2013
1433,Revenue,CCHD,Home Care - Elderly - South,Other Small Contracts,Mrs B Kimber - Stepping Stones,4226.54, 21-Jan-2013
1434,Revenue,CCHD,Home Care - Elderly - North,Other Small Contracts,Mrs B Kimber - Stepping Stones,3669.15, 21-Jan-2013
1435,Revenue,CCHD,Day Care - South,Private & Voluntary Day Care,Mrs B Kimber - Stepping Stones,545.36, 21-Jan-2013
1436,Revenue,CCHD,Day Care - North,Private & Voluntary Day Care,Mrs B Kimber - Stepping Stones,140.35, 21-Jan-2013
1437,Revenue,CCHD,Under 65s -MH  Home Care Purch,Other Small Contracts,Mrs B Kimber - Stepping Stones,132.33, 21-Jan-2013
1438,Revenue,CCHD,Home care - Elderly MH - North,Other Small Contracts,Mrs B Kimber - Stepping Stones,112.28, 21-Jan-2013
1439,Revenue,CCHD,Elderly MH Day Care North,Private & Voluntary Day Care,Mrs B Kimber - Stepping Stones,96.24, 21-Jan-2013
1440,Revenue,CCHD,Home care - Elderly MH - South,Other Small Contracts,Mrs B Kimber - Stepping Stones,216.54, 21-Jan-2013
1441,Revenue,CCHD,Supported Living - KD,Private & Voluntary Home Care,Mrs B Kimber - Stepping Stones,810.02, 21-Jan-2013
1442,Revenue,CCHD,Home Care - LD Under 65 - North,Private & Voluntary Home Care,Mrs B Kimber - Stepping Stones,44.11, 21-Jan-2013
1443,Revenue,CCHD,PWLD Home Care - Under 65 - KH,Private & Voluntary Home Care,Mrs B Kimber - Stepping Stones,88.22, 21-Jan-2013
1444,Revenue,CCHD,Home Care - Elderly LD - North,Private & Voluntary Home Care,Mrs B Kimber - Stepping Stones,926.31, 21-Jan-2013
1445,Revenue,CCHD,Home Care - Elderly - South,Other Small Contracts,Mrs B Kimber - Stepping Stones,3344.34, 21-Jan-2013
1446,Revenue,CCHD,Home Care - Elderly - North,Other Small Contracts,Mrs B Kimber - Stepping Stones,2686.7, 21-Jan-2013
1447,Revenue,CCHD,Day Care - South,Private & Voluntary Day Care,Mrs B Kimber - Stepping Stones,232.58, 21-Jan-2013
1448,Revenue,CCHD,Day Care - North,Private & Voluntary Day Care,Mrs B Kimber - Stepping Stones,36.09, 21-Jan-2013
1449,Revenue,CCHD,Home care - Elderly MH - North,Other Small Contracts,Mrs B Kimber - Stepping Stones,108.27, 21-Jan-2013
1450,Revenue,CCHD,Elderly MH Day Care North,Private & Voluntary Day Care,Mrs B Kimber - Stepping Stones,48.12, 21-Jan-2013
1451,Revenue,CCHD,Home care - Elderly MH - South,Other Small Contracts,Mrs B Kimber - Stepping Stones,144.36, 21-Jan-2013
1452,Revenue,CCHD,Supported Living - KD,Private & Voluntary Home Care,Mrs B Kimber - Stepping Stones,870.17, 21-Jan-2013
1453,Revenue,CCHD,Home Care - LD Under 65 - North,Private & Voluntary Home Care,Mrs B Kimber - Stepping Stones,48.12, 21-Jan-2013
1454,Revenue,CCHD,PWLD Home Care - Under 65 - KH,Private & Voluntary Home Care,Mrs B Kimber - Stepping Stones,24.06, 21-Jan-2013
1455,Revenue,CCHD,Home Care - Elderly LD - North,Private & Voluntary Home Care,Mrs B Kimber - Stepping Stones,858.14, 21-Jan-2013
1456,Revenue,CCHD,Home Care - Elderly - South,Other Small Contracts,Mrs B Kimber - Stepping Stones,3933.81, 21-Jan-2013
1457,Revenue,CCHD,Home Care - Elderly - North,Other Small Contracts,Mrs B Kimber - Stepping Stones,3055.62, 21-Jan-2013
1458,Revenue,CCHD,Day Care - South,Private & Voluntary Day Care,Mrs B Kimber - Stepping Stones,521.3, 21-Jan-2013
1459,Revenue,CCHD,Day Care - North,Private & Voluntary Day Care,Mrs B Kimber - Stepping Stones,40.1, 21-Jan-2013
1460,Revenue,CCHD,Home care - Elderly MH - North,Other Small Contracts,Mrs B Kimber - Stepping Stones,120.3, 21-Jan-2013
1461,Revenue,CCHD,Elderly MH Day Care North,Private & Voluntary Day Care,Mrs B Kimber - Stepping Stones,48.12, 21-Jan-2013
1462,Revenue,CCHD,Home care - Elderly MH - South,Other Small Contracts,Mrs B Kimber - Stepping Stones,192.48, 21-Jan-2013
1463,Revenue,CCHD,Supported Living - KD,Private & Voluntary Home Care,Mrs B Kimber - Stepping Stones,882.2, 21-Jan-2013
1464,Revenue,CCHD,Home Care - LD Under 65 - North,Private & Voluntary Home Care,Mrs B Kimber - Stepping Stones,48.12, 21-Jan-2013
1465,Revenue,CCHD,PWLD Home Care - Under 65 - KH,Private & Voluntary Home Care,Mrs B Kimber - Stepping Stones,56.14, 21-Jan-2013
1466,Revenue,CCHD,Home Care - Elderly LD - North,Private & Voluntary Home Care,Mrs B Kimber - Stepping Stones,882.2, 21-Jan-2013
1467,Revenue,CCHD,Home Care - Elderly - South,Other Small Contracts,Mrs B Kimber - Stepping Stones,4687.69, 29-Jan-2013
1468,Revenue,CCHD,Home Care - Elderly - North,Other Small Contracts,Mrs B Kimber - Stepping Stones,3412.51, 29-Jan-2013
1469,Revenue,CCHD,Day Care - South,Private & Voluntary Day Care,Mrs B Kimber - Stepping Stones,549.37, 29-Jan-2013
1470,Revenue,CCHD,Day Care - North,Private & Voluntary Day Care,Mrs B Kimber - Stepping Stones,92.23, 29-Jan-2013
1471,Revenue,CCHD,Home care - Elderly MH - North,Other Small Contracts,Mrs B Kimber - Stepping Stones,132.33, 29-Jan-2013
1472,Revenue,CCHD,Elderly MH Day Care North,Private & Voluntary Day Care,Mrs B Kimber - Stepping Stones,96.24, 29-Jan-2013
1473,Revenue,CCHD,Home care - Elderly MH - South,Other Small Contracts,Mrs B Kimber - Stepping Stones,216.54, 29-Jan-2013
1474,Revenue,CCHD,Supported Living - KD,Private & Voluntary Home Care,Mrs B Kimber - Stepping Stones,793.98, 29-Jan-2013
1475,Revenue,CCHD,Home Care - LD Under 65 - North,Private & Voluntary Home Care,Mrs B Kimber - Stepping Stones,48.12, 29-Jan-2013
1476,Revenue,CCHD,PWLD Home Care - Under 65 - KH,Private & Voluntary Home Care,Mrs B Kimber - Stepping Stones,92.23, 29-Jan-2013
1477,Revenue,CCHD,Home Care - Elderly LD - North,Private & Voluntary Home Care,Mrs B Kimber - Stepping Stones,938.34, 29-Jan-2013
1478,Revenue,CCHD,Social Lettings Agency,Other Supplies & Services,Individual,625, 17-Jan-2013
1479,Revenue,CCHD,Social Lettings Agency,Other Supplies & Services,Individual,632.81, 11-Jan-2013
1480,Revenue,CCHD,Social Lettings Agency,Other Supplies & Services,Individual,565, 24-Jan-2013
1481,Revenue,CCHD,Social Lettings Agency,Other Supplies & Services,Individual,565, 02-Jan-2013
1482,Revenue,CCHD,Supported Living - KD,Residential Homes,Mrs I M Bowerman,1179.2, 22-Jan-2013
1483,Revenue,CCHD,Social Lettings Agency,Other Supplies & Services,Individual,565, 11-Jan-2013
1484,Revenue,CCHD,Training - Adult Services,Training Expenses,Mrs Mary Webb,566, 23-Jan-2013
1485,Revenue,CCHD,Social Lettings Agency,Other Supplies & Services,Individual,655.41, 17-Jan-2013
1486,Revenue,CCHD,Purchase of Non-Res Care - KD,Private & Voluntary Day Care,Mrs W Thompson,1484.4, 15-Jan-2013
1487,Revenue,CCHD,Purchase of Non-Res Care - KD,Private & Voluntary Day Care,Mrs W Thompson,563.28, 15-Jan-2013
1488,Revenue,CCHD,Social Lettings Agency,Other Supplies & Services,Individual,858.8, 11-Jan-2013
1489,Revenue,CCHD,Alexandra Way,Cleaning & Domestic Services,Muzzell Healthcare,895.3, 10-Jan-2013
1490,Revenue,CCHD,Younger MH non-res purchasing,Private & Voluntary Day Care,NAS Services Limited,1852.71, 08-Jan-2013
1491,Revenue,CCHD,Younger MH non-res purchasing,Private & Voluntary Day Care,NAS Services Limited,687.6, 07-Jan-2013
1492,Revenue,CCHD,Younger MH non-res purchasing,Private & Voluntary Day Care,NAS Services Limited,2555.7, 07-Jan-2013
1493,Revenue,CCHD,Younger MH non-res purchasing,Private & Voluntary Day Care,NAS Services Limited,608.09, 08-Jan-2013
1494,Revenue,CCHD,Younger MH non-res purchasing,Private & Voluntary Day Care,NAS Services Limited,764, 10-Jan-2013
1495,Revenue,CCHD,Younger MH non-res purchasing,Private & Voluntary Day Care,NAS Services Limited,630.3, 18-Jan-2013
1496,Revenue,CCHD,Younger MH non-res purchasing,Private & Voluntary Day Care,NAS Services Limited,611.2, 29-Jan-2013
1497,Revenue,CCHD,Younger MH non-res purchasing,Private & Voluntary Day Care,NAS Services Limited,592.1, 17-Jan-2013
1498,Revenue,CCHD,Younger MH non-res purchasing,Private & Voluntary Day Care,NAS Services Limited,606.5, 18-Jan-2013
1499,Revenue,CCHD,Younger MH non-res purchasing,Private & Voluntary Day Care,NAS Services Limited,652.58, 18-Jan-2013
1500,Revenue,CCHD,Younger MH non-res purchasing,Private & Voluntary Day Care,NAS Services Limited,2333.14, 30-Jan-2013
1501,Revenue,CCHD,Bed Purchasing - Under 65s PWLD - South,Residential Homes,National Star College,4547.72, 22-Jan-2013
1502,Revenue,CCHD,Younger MH non-res purchasing,Private & Voluntary Day Care,Natureworks Training Community Interest,1710, 29-Jan-2013
1503,Revenue,CCHD,Training - Adult Services,Training Expenses,Nelson Training Limited,1116.5, 30-Jan-2013
1504,Revenue,CCHD,Home Care - Elderly - South,Other Small Contracts,Network Health & Social Care,1081.85, 21-Jan-2013
1505,Revenue,CCHD,Home Care - Elderly - North,Other Small Contracts,Network Health & Social Care,5692.05, 21-Jan-2013
1506,Revenue,CCHD,Day Care - North,Private & Voluntary Day Care,Network Health & Social Care,30.8, 21-Jan-2013
1507,Revenue,CCHD,Home Care - Elderly - South,Other Small Contracts,Network Health & Social Care,989.45, 21-Jan-2013
1508,Revenue,CCHD,Home Care - Elderly - North,Other Small Contracts,Network Health & Social Care,5765.2, 21-Jan-2013
1509,Revenue,CCHD,Day Care - North,Private & Voluntary Day Care,Network Health & Social Care,26.95, 21-Jan-2013
1510,Revenue,CCHD,Social Lettings Agency,Other Supplies & Services,Individual,565, 04-Jan-2013
1511,Revenue,CCHD,Assessment Team,"Holidays, Outings & Visits",Neville Williams,576, 11-Jan-2013
1512,Revenue,CCHD,Bed Purchasing - Under 65s PWLD - South,Residential Homes,Nightingale Nursing Home,3076.64, 22-Jan-2013
1513,Revenue,CCHD,Delayed Transfers of Care Gran,Other Supplies & Services,North Bristol NHS Trust,1000, 28-Jan-2013
1514,Revenue,CCHD,Information Systems - Software,Other Supplies & Services,Northgate Information Solutions UK Limited,8200, 11-Jan-2013
1515,Revenue,CCHD,Bed Purchasing - Under 65s PWLD - South,Residential Homes,Norwood   Broadway House,4853.64, 22-Jan-2013
1516,Revenue,CCHD,Bed Purchasing - Elderly MH - South,Residential Homes,Notaro Homes Ltd  Queensmead Court,1839.64, 22-Jan-2013
1517,Revenue,CCHD,Southmead Hospital Purchasing,Residential Homes,Notaro Homes Ltd  Queensmead Court,1362.84, 22-Jan-2013
1518,Revenue,CCHD,Home Care - Elderly - South,Other Small Contracts,Nursing Solutions Limited,1092.38, 07-Jan-2013
1519,Revenue,CCHD,Home Care - Elderly - South,Other Small Contracts,Nursing Solutions Limited,999.74, 14-Jan-2013
1520,Revenue,CCHD,Home Care - Elderly - South,Other Small Contracts,Nursing Solutions Limited,845.34, 14-Jan-2013
1521,Revenue,CCHD,Home Care - Elderly - South,Other Small Contracts,Nursing Solutions Limited,648.48, 25-Jan-2013
1522,Revenue,CCHD,Home Care - Elderly - South,Other Small Contracts,Nursing Solutions Limited,826.04, 25-Jan-2013
1523,Revenue,CCHD,Bed Purchasing - Elderly - South,Residential Homes,Oaktree Lodge,1267.76, 22-Jan-2013
1524,Revenue,CCHD,Home Care - Elderly - South,Other Small Contracts,On the Up,577.2, 23-Jan-2013
1525,Revenue,CCHD,Day Care - South,Private & Voluntary Day Care,On the Up,500.24, 23-Jan-2013
1526,Revenue,CCHD,Day Care - North,Private & Voluntary Day Care,On the Up,506.16, 23-Jan-2013
1527,Revenue,CCHD,Younger MH non-res purchasing,Private & Voluntary Day Care,On the Up,282.72, 23-Jan-2013
1528,Revenue,CCHD,Elderly MH Day Care North,Private & Voluntary Day Care,On the Up,61.12, 23-Jan-2013
1529,Revenue,CCHD,Home Care - Elderly - South,Other Small Contracts,On the Up,500.8, 14-Jan-2013
1530,Revenue,CCHD,Day Care - South,Private & Voluntary Day Care,On the Up,545.96, 14-Jan-2013
1531,Revenue,CCHD,Day Care - North,Private & Voluntary Day Care,On the Up,524.4, 14-Jan-2013
1532,Revenue,CCHD,Younger MH non-res purchasing,Private & Voluntary Day Care,On the Up,200.64, 14-Jan-2013
1533,Revenue,CCHD,Elderly MH Day Care North,Private & Voluntary Day Care,On the Up,122.24, 14-Jan-2013
1534,Revenue,CCHD,Home Care - Elderly - South,Other Small Contracts,On the Up,498.08, 22-Jan-2013
1535,Revenue,CCHD,Day Care - South,Private & Voluntary Day Care,On the Up,459.32, 22-Jan-2013
1536,Revenue,CCHD,Day Care - North,Private & Voluntary Day Care,On the Up,533.52, 22-Jan-2013
1537,Revenue,CCHD,Younger MH non-res purchasing,Private & Voluntary Day Care,On the Up,373.92, 22-Jan-2013
1538,Revenue,CCHD,Elderly MH Day Care North,Private & Voluntary Day Care,On the Up,122.24, 22-Jan-2013
1539,Revenue,CCHD,Home Care - Elderly - South,Other Small Contracts,On the Up,550.46, 14-Jan-2013
1540,Revenue,CCHD,Day Care - South,Private & Voluntary Day Care,On the Up,596.12, 14-Jan-2013
1541,Revenue,CCHD,Day Care - North,Private & Voluntary Day Care,On the Up,451.44, 14-Jan-2013
1542,Revenue,CCHD,Younger MH non-res purchasing,Private & Voluntary Day Care,On the Up,364.8, 14-Jan-2013
1543,Revenue,CCHD,Elderly MH Day Care North,Private & Voluntary Day Care,On the Up,122.24, 14-Jan-2013
1544,Revenue,CCHD,Home Care - Elderly - South,Other Small Contracts,On the Up,565.74, 22-Jan-2013
1545,Revenue,CCHD,Day Care - South,Private & Voluntary Day Care,On the Up,545.96, 22-Jan-2013
1546,Revenue,CCHD,Day Care - North,Private & Voluntary Day Care,On the Up,460.56, 22-Jan-2013
1547,Revenue,CCHD,Younger MH non-res purchasing,Private & Voluntary Day Care,On the Up,159.6, 22-Jan-2013
1548,Revenue,CCHD,Elderly MH Day Care North,Private & Voluntary Day Care,On the Up,45.84, 22-Jan-2013
1549,Revenue,CCHD,Home Care - Elderly - South,Other Small Contracts,On the Up,481.32, 22-Jan-2013
1550,Revenue,CCHD,Day Care - South,Private & Voluntary Day Care,On the Up,555.08, 22-Jan-2013
1551,Revenue,CCHD,Day Care - North,Private & Voluntary Day Care,On the Up,451.44, 22-Jan-2013
1552,Revenue,CCHD,Younger MH non-res purchasing,Private & Voluntary Day Care,On the Up,328.32, 22-Jan-2013
1553,Revenue,CCHD,Elderly MH Day Care North,Private & Voluntary Day Care,On the Up,42.02, 22-Jan-2013
1554,Revenue,CCHD,Home Care - Elderly - South,Other Small Contracts,On the Up,171.9, 22-Jan-2013
1555,Revenue,CCHD,Day Care - South,Private & Voluntary Day Care,On the Up,323.76, 22-Jan-2013
1556,Revenue,CCHD,Day Care - North,Private & Voluntary Day Care,On the Up,287.28, 22-Jan-2013
1557,Revenue,CCHD,Younger MH non-res purchasing,Private & Voluntary Day Care,On the Up,95.76, 22-Jan-2013
1558,Revenue,CCHD,Elderly MH Day Care North,Private & Voluntary Day Care,On the Up,61.12, 22-Jan-2013
1559,Revenue,CCHD,Home Care - Elderly - South,Other Small Contracts,On the Up,297.96, 25-Jan-2013
1560,Revenue,CCHD,Day Care - South,Private & Voluntary Day Care,On the Up,460.56, 25-Jan-2013
1561,Revenue,CCHD,Day Care - North,Private & Voluntary Day Care,On the Up,460.56, 25-Jan-2013
1562,Revenue,CCHD,Younger MH non-res purchasing,Private & Voluntary Day Care,On the Up,54.72, 25-Jan-2013
1563,Revenue,CCHD,Elderly MH Day Care North,Private & Voluntary Day Care,On the Up,61.12, 25-Jan-2013
1564,Revenue,CCHD,Home Care - Elderly - South,Other Small Contracts,On the Up,470.24, 23-Jan-2013
1565,Revenue,CCHD,Day Care - South,Private & Voluntary Day Care,On the Up,533.64, 23-Jan-2013
1566,Revenue,CCHD,Day Care - North,Private & Voluntary Day Care,On the Up,446.88, 23-Jan-2013
1567,Revenue,CCHD,Younger MH non-res purchasing,Private & Voluntary Day Care,On the Up,168.72, 23-Jan-2013
1568,Revenue,CCHD,Elderly MH Day Care North,Private & Voluntary Day Care,On the Up,122.24, 23-Jan-2013
1569,Revenue,CCHD,Bed purchasing - Under 65s PWLD - North,Residential Homes,Option Holidays Limited,1586, 28-Jan-2013
1570,Revenue,CCHD,Housing Advice,Grants to Voluntary Bodies,Orchard & Shipman PLC,13333.25, 30-Jan-2013
1571,Revenue,CCHD,Bed purchasing -S28A  Under 65 - North,Residential Homes,Orchard End Limited,7580.16, 22-Jan-2013
1572,Revenue,CCHD,Turnberries,"Provisions (Food, etc)",Origin Cafe,683.4, 28-Jan-2013
1573,Revenue,CCHD,Bed Purchasing - Elderly - South,Residential Homes,Osbourne Court,1202.14, 22-Jan-2013
1574,Revenue,CCHD,Bed Purchasing - Elderly S117- North,Residential Homes,Osbourne Court,1879.04, 22-Jan-2013
1575,Revenue,CCHD,Bed Purchasing - Elderly - North,Residential Homes,Osbourne Court,2619.2, 22-Jan-2013
1576,Revenue,CCHD,Bed Purchasing - Elderly - North,Residential Homes,Osbourne Court,2395.2, 22-Jan-2013
1577,Revenue,CCHD,Bed Purchasing - Elderly S117- North,Residential Homes,Osbourne Court,1716, 22-Jan-2013
1578,Revenue,CCHD,Bed Purchasing - Elderly - North,Residential Homes,Osbourne Court,1639.29, 22-Jan-2013
1579,Revenue,CCHD,Bed Purchasing - Elderly S117- North,Residential Homes,Osbourne Court,1880, 22-Jan-2013
1580,Revenue,CCHD,Southmead Hospital Purchasing,Residential Homes,Osbourne Court,860.6, 22-Jan-2013
1581,Revenue,CCHD,Bed Purchasing - Elderly - North,Residential Homes,Osbourne Court,2417.76, 22-Jan-2013
1582,Revenue,CCHD,Bed Purchasing - Elderly - North,Residential Homes,Osbourne Court,653.66, 22-Jan-2013
1583,Revenue,CCHD,Bed Purchasing - Under 65s PWLD - South,Residential Homes,Osprey Court,7564.96, 22-Jan-2013
1584,Revenue,CCHD,Bed purchasing - S28A Under 65 - South,Residential Homes,Osprey Court,4219.68, 22-Jan-2013
1585,Revenue,CCHD,Bed purchasing - S28A Under 65 - South,Residential Homes,Osprey Court,6249.96, 22-Jan-2013
1586,Revenue,CCHD,Management & Support costs,Other Supplies & Services,Oxford Brookes Enterprises Limited,1726.67, 15-Jan-2013
1587,Revenue,CCHD,Bed Purchasing - Elderly MH - South,Residential Homes,Park Farm House,1330.8, 22-Jan-2013
1588,Revenue,CCHD,Bed Purchasing - Elderly - South,Residential Homes,Park Farm House,1769.4, 22-Jan-2013
1589,Revenue,CCHD,Bed Purchasing - Elderly - South,Residential Homes,Park Farm House,1880, 22-Jan-2013
1590,Revenue,CCHD,Bed Purchasing - Elderly MH - South,Residential Homes,Park Farm House,1582.64, 22-Jan-2013
1591,Revenue,CCHD,Bed Purchasing - Under 65s PWLD - South,Residential Homes,Park Hall,5500, 22-Jan-2013
1592,Revenue,CCHD,Bed purchasing - Under 65s PWLD - North,Residential Homes,Park Hall,5082.32, 22-Jan-2013
1593,Revenue,CCHD,Bed Purchasing - Under 65s PWLD - South,Residential Homes,Park Hall,4894.68, 22-Jan-2013
1594,Revenue,CCHD,Bed Purchasing - Under 65s PWLD - South,Residential Homes,Park Hall,2173.96, 22-Jan-2013
1595,Revenue,CCHD,Bed purchasing - Elderly PWLD - South,Residential Homes,Park Hall,2501.56, 22-Jan-2013
1596,Revenue,CCHD,Bed Purchasing - Under 65s PWLD - South,Residential Homes,Park Hall,3788.6, 22-Jan-2013
1597,Revenue,CCHD,Bed purchasing - Elderly PWLD - North,Residential Homes,Park Hall,4855.8, 22-Jan-2013
1598,Revenue,CCHD,Bed purchasing - S28A Under 65 - South,Residential Homes,Park Hall,4571.08, 22-Jan-2013
1599,Revenue,CCHD,Bed Purchasing - Under 65s PWLD - South,Residential Homes,Park Hall,4871.2, 22-Jan-2013
1600,Revenue,CCHD,Bed purchasing - Under 65s PWLD - North,Residential Homes,Park Hall,4274.52, 22-Jan-2013
1601,Revenue,CCHD,Bed Purchasing - S28A - Over 65- North,Residential Homes,Park Hall,5240.84, 22-Jan-2013
1602,Revenue,CCHD,Bed Purchasing - Under 65s PWLD - South,Residential Homes,Park Hall,10510.04, 22-Jan-2013
1603,Revenue,CCHD,Bed purchasing -S28A  Under 65 - North,Residential Homes,Park Hall,5789.4, 22-Jan-2013
1604,Revenue,CCHD,Bed purchasing - S28A Under 65 - South,Residential Homes,Park Hall,5529.44, 22-Jan-2013
1605,Revenue,CCHD,Bed Purchasing - Under 65s PWLD - South,Residential Homes,Penleigh House Care Home,4451.6, 22-Jan-2013
1606,Revenue,CCHD,Bed Purchasing - Under 65s PWLD - South,Residential Homes,Penleigh House Care Home,5175.52, 22-Jan-2013
1607,Revenue,CCHD,Bed purchasing - Elderly PWLD - South,Residential Homes,Penleigh House Care Home,4222.56, 22-Jan-2013
1608,Revenue,CCHD,Bed Purchasing - Under 65s PWLD - South,Residential Homes,Penleigh House Care Home,4599.76, 22-Jan-2013
1609,Revenue,CCHD,Bed purchasing - S28A Under 65 - South,Residential Homes,Penleigh House Care Home,5366.32, 22-Jan-2013
1610,Revenue,CCHD,Bed Purchasing - Under 65s PWLD - South,Residential Homes,Penleigh House Care Home,4847.56, 22-Jan-2013
1611,Revenue,CCHD,Supporting People Programme,Grants to Voluntary Bodies,Places for People,1107, 02-Jan-2013
1612,Revenue,CCHD,Bed and Breakfast,Bed & Breakfast,Pleasant Bed & Breakfast Limited,560, 04-Jan-2013
1613,Revenue,CCHD,Bed and Breakfast,Bed & Breakfast,Pleasant Bed & Breakfast Limited,588, 24-Jan-2013
1614,Revenue,CCHD,Bed and Breakfast,Bed & Breakfast,Pleasant Bed & Breakfast Limited,588, 24-Jan-2013
1615,Revenue,CCHD,Bed and Breakfast,Bed & Breakfast,Pleasant Bed & Breakfast Limited,588, 25-Jan-2013
1616,Revenue,CCHD,Home Care - Elderly - South,Other Small Contracts,Premier Homecare Limited,1068.87, 07-Jan-2013
1617,Revenue,CCHD,Home Care - Elderly - North,Other Small Contracts,Premier Homecare Limited,4212.34, 07-Jan-2013
1618,Revenue,CCHD,Day Care - North,Private & Voluntary Day Care,Premier Homecare Limited,94.71, 07-Jan-2013
1619,Revenue,CCHD,Younger MH non-res purchasing,Private & Voluntary Day Care,Premier Homecare Limited,27.06, 07-Jan-2013
1620,Revenue,CCHD,Home care - Elderly MH - North,Other Small Contracts,Premier Homecare Limited,284.13, 07-Jan-2013
1621,Revenue,CCHD,Elderly MH Day Care North,Private & Voluntary Day Care,Premier Homecare Limited,171.38, 07-Jan-2013
1622,Revenue,CCHD,Home Care - Elderly - South,Other Small Contracts,Premier Homecare Limited,974.16, 09-Jan-2013
1623,Revenue,CCHD,Home Care - Elderly - North,Other Small Contracts,Premier Homecare Limited,3734.28, 09-Jan-2013
1624,Revenue,CCHD,Day Care - North,Private & Voluntary Day Care,Premier Homecare Limited,36.08, 09-Jan-2013
1625,Revenue,CCHD,Home care - Elderly MH - North,Other Small Contracts,Premier Homecare Limited,202.95, 09-Jan-2013
1626,Revenue,CCHD,Elderly MH Day Care North,Private & Voluntary Day Care,Premier Homecare Limited,72.16, 09-Jan-2013
1627,Revenue,CCHD,Home Care - Elderly - South,Other Small Contracts,Premier Homecare Limited,771.21, 15-Jan-2013
1628,Revenue,CCHD,Home Care - Elderly - North,Other Small Contracts,Premier Homecare Limited,4268.32, 15-Jan-2013
1629,Revenue,CCHD,Day Care - North,Private & Voluntary Day Care,Premier Homecare Limited,90.2, 15-Jan-2013
1630,Revenue,CCHD,Home care - Elderly MH - North,Other Small Contracts,Premier Homecare Limited,207.46, 15-Jan-2013
1631,Revenue,CCHD,Elderly MH Day Care North,Private & Voluntary Day Care,Premier Homecare Limited,126.28, 15-Jan-2013
1632,Revenue,CCHD,Home Care - Elderly - South,Other Small Contracts,Premier Homecare Limited,757.68, 22-Jan-2013
1633,Revenue,CCHD,Home Care - Elderly - North,Other Small Contracts,Premier Homecare Limited,5087.28, 22-Jan-2013
1634,Revenue,CCHD,Day Care - North,Private & Voluntary Day Care,Premier Homecare Limited,126.28, 22-Jan-2013
1635,Revenue,CCHD,Younger MH non-res purchasing,Private & Voluntary Day Care,Premier Homecare Limited,27.06, 22-Jan-2013
1636,Revenue,CCHD,Home care - Elderly MH - North,Other Small Contracts,Premier Homecare Limited,162.36, 22-Jan-2013
1637,Revenue,CCHD,Elderly MH Day Care North,Private & Voluntary Day Care,Premier Homecare Limited,207.46, 22-Jan-2013
1638,Revenue,CCHD,Home Care - Elderly - South,Other Small Contracts,Premier Homecare Limited,730.62, 30-Jan-2013
1639,Revenue,CCHD,Home Care - Elderly - North,Other Small Contracts,Premier Homecare Limited,5060.22, 30-Jan-2013
1640,Revenue,CCHD,Day Care - North,Private & Voluntary Day Care,Premier Homecare Limited,126.28, 30-Jan-2013
1641,Revenue,CCHD,Younger MH non-res purchasing,Private & Voluntary Day Care,Premier Homecare Limited,27.06, 30-Jan-2013
1642,Revenue,CCHD,Home care - Elderly MH - North,Other Small Contracts,Premier Homecare Limited,162.36, 30-Jan-2013
1643,Revenue,CCHD,Elderly MH Day Care North,Private & Voluntary Day Care,Premier Homecare Limited,153.34, 30-Jan-2013
1644,Revenue,CCHD,Home Care - Elderly - South,Other Small Contracts,Prestige Nursing,555.1, 21-Jan-2013
1645,Revenue,CCHD,Home Care - Elderly - North,Other Small Contracts,Prestige Nursing,1088.85, 21-Jan-2013
1646,Revenue,CCHD,Day Care - South,Private & Voluntary Day Care,Prestige Nursing,273.28, 21-Jan-2013
1647,Revenue,CCHD,Day Care - North,Private & Voluntary Day Care,Prestige Nursing,700.28, 21-Jan-2013
1648,Revenue,CCHD,Home care - Elderly MH - North,Other Small Contracts,Prestige Nursing,392.84, 21-Jan-2013
1649,Revenue,CCHD,Elderly MH Day Care North,Private & Voluntary Day Care,Prestige Nursing,102.48, 21-Jan-2013
1650,Revenue,CCHD,Home Care - Elderly - South,Other Small Contracts,Prestige Nursing,640.5, 23-Jan-2013
1651,Revenue,CCHD,Home Care - Elderly - North,Other Small Contracts,Prestige Nursing,982.1, 23-Jan-2013
1652,Revenue,CCHD,Day Care - South,Private & Voluntary Day Care,Prestige Nursing,320.25, 23-Jan-2013
1653,Revenue,CCHD,Day Care - North,Private & Voluntary Day Care,Prestige Nursing,858.27, 23-Jan-2013
1654,Revenue,CCHD,Home care - Elderly MH - North,Other Small Contracts,Prestige Nursing,397.11, 23-Jan-2013
1655,Revenue,CCHD,Elderly MH Day Care North,Private & Voluntary Day Care,Prestige Nursing,290.36, 23-Jan-2013
1656,Revenue,CCHD,Home Care - Elderly - South,Other Small Contracts,Prestige Nursing,597.8, 21-Jan-2013
1657,Revenue,CCHD,Home Care - Elderly - North,Other Small Contracts,Prestige Nursing,1191.33, 21-Jan-2013
1658,Revenue,CCHD,Day Care - South,Private & Voluntary Day Care,Prestige Nursing,269.01, 21-Jan-2013
1659,Revenue,CCHD,Day Care - North,Private & Voluntary Day Care,Prestige Nursing,495.32, 21-Jan-2013
1660,Revenue,CCHD,Home care - Elderly MH - North,Other Small Contracts,Prestige Nursing,388.57, 21-Jan-2013
1661,Revenue,CCHD,Elderly MH Day Care North,Private & Voluntary Day Care,Prestige Nursing,290.36, 21-Jan-2013
1662,Revenue,CCHD,Home Care - Elderly - South,Other Small Contracts,Prestige Nursing,627.69, 21-Jan-2013
1663,Revenue,CCHD,Home Care - Elderly - North,Other Small Contracts,Prestige Nursing,1101.66, 21-Jan-2013
1664,Revenue,CCHD,Day Care - South,Private & Voluntary Day Care,Prestige Nursing,324.52, 21-Jan-2013
1665,Revenue,CCHD,Day Care - North,Private & Voluntary Day Care,Prestige Nursing,683.2, 21-Jan-2013
1666,Revenue,CCHD,Home care - Elderly MH - North,Other Small Contracts,Prestige Nursing,380.03, 21-Jan-2013
1667,Revenue,CCHD,Elderly MH Day Care North,Private & Voluntary Day Care,Prestige Nursing,286.09, 21-Jan-2013
1668,Revenue,CCHD,Home Care - Elderly - South,Other Small Contracts,Prestige Nursing,452.62, 25-Jan-2013
1669,Revenue,CCHD,Home Care - Elderly - North,Other Small Contracts,Prestige Nursing,785.68, 25-Jan-2013
1670,Revenue,CCHD,Day Care - South,Private & Voluntary Day Care,Prestige Nursing,153.72, 25-Jan-2013
1671,Revenue,CCHD,Day Care - North,Private & Voluntary Day Care,Prestige Nursing,333.06, 25-Jan-2013
1672,Revenue,CCHD,Home care - Elderly MH - North,Other Small Contracts,Prestige Nursing,294.63, 25-Jan-2013
1673,Revenue,CCHD,Elderly MH Day Care North,Private & Voluntary Day Care,Prestige Nursing,136.64, 25-Jan-2013
1674,Revenue,CCHD,Home Care - Elderly - South,Other Small Contracts,Prestige Nursing,512.4, 25-Jan-2013
1675,Revenue,CCHD,Home Care - Elderly - North,Other Small Contracts,Prestige Nursing,1067.5, 25-Jan-2013
1676,Revenue,CCHD,Day Care - South,Private & Voluntary Day Care,Prestige Nursing,239.12, 25-Jan-2013
1677,Revenue,CCHD,Day Care - North,Private & Voluntary Day Care,Prestige Nursing,409.92, 25-Jan-2013
1678,Revenue,CCHD,Home care - Elderly MH - North,Other Small Contracts,Prestige Nursing,337.33, 25-Jan-2013
1679,Revenue,CCHD,Elderly MH Day Care North,Private & Voluntary Day Care,Prestige Nursing,209.23, 25-Jan-2013
1680,Revenue,CCHD,Older People's Commissioned Se,Grants to Voluntary Bodies,Princess Royal Trust Carers Centre,38130, 07-Jan-2013
1681,Revenue,CCHD,User Involvement,Conference Expenses,Quantum Property Partnership,454.23, 14-Jan-2013
1682,Revenue,CCHD,Kingswood Centre - Maples Suite,"Provisions (Food, etc)",R Jays Cafe,510, 10-Jan-2013
1683,Revenue,CCHD,Kingswood Centre - Maples Suite,"Provisions (Food, etc)",R Jays Cafe,795, 10-Jan-2013
1684,Revenue,CCHD,Bed purchasing - Elderly MH - North,Nursing Homes,Ravenswood,1265.84, 22-Jan-2013
1685,Revenue,CCHD,Bed Purchasing - Elderly - South,Residential Homes,Ravenswood,3781.68, 22-Jan-2013
1686,Revenue,CCHD,Bed Purchasing - Elderly - North,Nursing Homes,Ravenswood,1534.96, 22-Jan-2013
1687,Revenue,CCHD,Bed Purchasing - PWLD S 117 Placements,Residential Homes,Real Life Options,7904.04, 22-Jan-2013
1688,Revenue,CCHD,Bed Purchasing - Elderly S117- North,Nursing Homes,Redholme Memory Care Limited,1944.12, 22-Jan-2013
1689,Revenue,CCHD,Supporting People Programme,Grants to Voluntary Bodies,Redland Housing Association Ltd,720.16, 02-Jan-2013
1690,Revenue,CCHD,Bed Purchasing - Elderly - South,Nursing Homes,Regent House,1637.96, 22-Jan-2013
1691,Revenue,CCHD,Bed Purchasing - Elderly MH - South,Nursing Homes,Regent House,1980.12, 22-Jan-2013
1692,Revenue,CCHD,Bed Purchasing - Elderly - South,Nursing Homes,Regent House,1686.16, 22-Jan-2013
1693,Revenue,CCHD,Bed Purchasing - Elderly - South,Nursing Homes,Regent House,2029.8, 22-Jan-2013
1694,Revenue,CCHD,Bed Purchasing - Elderly - South,Nursing Homes,Regent House,1961.92, 22-Jan-2013
1695,Revenue,CCHD,South Glos Users in South Glos Homes,Nursing Homes,Regent House,621.14, 22-Jan-2013
1696,Revenue,CCHD,Bed Purchasing - Elderly - South,Nursing Homes,Regent House,1796.8, 22-Jan-2013
1697,Revenue,CCHD,Bed Purchasing - Elderly - South,Nursing Homes,Regent House,1637.96, 22-Jan-2013
1698,Revenue,CCHD,Bed Purchasing - Elderly - South,Nursing Homes,Regent House,632.92, 22-Jan-2013
1699,Revenue,CCHD,Southmead Hospital Purchasing,Nursing Homes,Regent House,1379.88, 22-Jan-2013
1700,Revenue,CCHD,Bed Purchasing - Elderly - South,Nursing Homes,Regent House,1423.28, 22-Jan-2013
1701,Revenue,CCHD,Bed Purchasing - Elderly - South,Nursing Homes,Regent House,1635.28, 22-Jan-2013
1702,Revenue,CCHD,Bed Purchasing - Elderly MH - South,Nursing Homes,Regent House,1195.08, 22-Jan-2013
1703,Revenue,CCHD,Bed purchasing - Elderly MH - North,Nursing Homes,Regent House,1276.8, 22-Jan-2013
1704,Revenue,CCHD,Bed Purchasing - Elderly - South,Nursing Homes,Regent House,2581.2, 22-Jan-2013
1705,Revenue,CCHD,Community Support ACM - South,Preventative Assistance,Reliance Secure Task Management Limited,500.96, 07-Jan-2013
1706,Revenue,CCHD,Bed Purchasing - Under 65s PWLD - South,Residential Homes,Ridgeway House,3418.56, 22-Jan-2013
1707,Revenue,CCHD,Bed Purchasing - Under 65s PWLD - South,Residential Homes,Riverside House,3524.88, 22-Jan-2013
1708,Revenue,CCHD,Bed Purchasing - Elderly - South,Nursing Homes,Riversway Nursing Home,1156.6, 22-Jan-2013
1709,Revenue,CCHD,Bed Purchasing - Elderly - South,Nursing Homes,Riversway Nursing Home,1953.92, 22-Jan-2013
1710,Revenue,CCHD,Bed purchasing - Elderly PWLD - South,Residential Homes,Rockleaze,2159.92, 22-Jan-2013
1711,Revenue,CCHD,Bed purchasing - Elderly PWLD - South,Residential Homes,Rockleaze,1399.76, 22-Jan-2013
1712,Revenue,CCHD,Bed Purchasing - LD S28A- Over 65- South,Residential Homes,Rockleaze,2039.28, 22-Jan-2013
1713,Revenue,CCHD,Bed Purchasing - Under 65s PWLD - South,Residential Homes,Rockleaze,2364.24, 22-Jan-2013
1714,Revenue,CCHD,Bed purchasing - Elderly PWLD - South,Residential Homes,Rockleaze,1399.76, 22-Jan-2013
1715,Revenue,CCHD,Bed Purchasing - Under 65s PWLD - South,Residential Homes,Rosewood Lodge & Brook House,4460.6, 22-Jan-2013
1716,Revenue,CCHD,Bed Purchasing - Elderly MH - South,Residential Homes,Ross Healthcare,1280.12, 22-Jan-2013
1717,Revenue,CCHD,Bed Purchasing - Under 65s PWLD - South,Residential Homes,Salters Hill Barn,1995.2, 22-Jan-2013
1718,Revenue,CCHD,Southmead Hospital Purchasing,Residential Homes,Sanctuary Care Limited,1868.13, 22-Jan-2013
1719,Revenue,CCHD,Learning Difficulties PSL,Rent,Individual,1400, 02-Jan-2013
1720,Revenue,CCHD,Woodleaze,"Provisions (Food, etc)",School Milk Services Limited,784.11, 02-Jan-2013
1721,Revenue,CCHD,Woodleaze,"Provisions (Food, etc)",School Milk Services Limited,846.33, 30-Jan-2013
1722,Revenue,CCHD,Bed purchasing - Under 65s PWLD - North,Residential Homes,Scope   Accounts Dept,19640.8, 22-Jan-2013
1723,Revenue,CCHD,Bed Purchasing - Under 65s PWLD - South,Residential Homes,Scope   Accounts Dept,11999.52, 22-Jan-2013
1724,Revenue,CCHD,Supported Living - KD,Private & Voluntary Home Care,SeeAbility,4633.57, 30-Jan-2013
1725,Revenue,CCHD,Day Care - North,Private & Voluntary Day Care,SeeAbility,1924.22, 30-Jan-2013
1726,Revenue,CCHD,Supported Living - KD,Private & Voluntary Home Care,SeeAbility,1329.72, 30-Jan-2013
1727,Revenue,CCHD,Supported Living - KD,Private & Voluntary Home Care,SeeAbility,6628.38, 30-Jan-2013
1728,Revenue,CCHD,Southmead Hospital Purchasing,Nursing Homes,Sefton Hall Res. & Nursing Home,1944, 22-Jan-2013
1729,Revenue,CCHD,Supported Living - PS,Private & Voluntary Home Care,Selborne Care Ltd,1734.8, 07-Jan-2013
1730,Revenue,CCHD,Purchase of Non-Res Care - KD,Private & Voluntary Day Care,Selborne Care Ltd,1423.44, 08-Jan-2013
1731,Revenue,CCHD,Purchase of Non-Res Care - KD,Private & Voluntary Day Care,Selborne Care Ltd,892.64, 07-Jan-2013
1732,Revenue,CCHD,Purchase of Non-Res Care - KD,Private & Voluntary Day Care,Selborne Care Ltd,842.72, 18-Jan-2013
1733,Revenue,CCHD,Supported Living - PS,Private & Voluntary Home Care,Selborne Care Ltd,510.08, 07-Jan-2013
1734,Revenue,CCHD,Purchase of Non-Res Care - KD,Private & Voluntary Day Care,Selborne Care Ltd,779.76, 08-Jan-2013
1735,Revenue,CCHD,Supported Living - PS,Private & Voluntary Home Care,Selborne Care Ltd,549.4, 07-Jan-2013
1736,Revenue,CCHD,Purchase of Non-Res Care - KD,Private & Voluntary Day Care,Selborne Care Ltd,552.08, 08-Jan-2013
1737,Revenue,CCHD,Supported Living - PS,Private & Voluntary Home Care,Selborne Care Ltd,1593.2, 18-Jan-2013
1738,Revenue,CCHD,Supported Living - PS,Private & Voluntary Home Care,Selborne Care Ltd,2682.71, 18-Jan-2013
1739,Revenue,CCHD,Supported Living - PS,Private & Voluntary Home Care,Selborne Care Ltd,940.46, 18-Jan-2013
1740,Revenue,CCHD,Purchase of Non-Res Care - KD,Private & Voluntary Day Care,Selborne Care Ltd,1214.38, 31-Jan-2013
1741,Revenue,CCHD,Supported Living - PS,Private & Voluntary Home Care,Selborne Care Ltd,4842.2, 18-Jan-2013
1742,Revenue,CCHD,Purchase of Non-Res Care - KD,Private & Voluntary Day Care,Selborne Care Ltd,669.48, 31-Jan-2013
1743,Revenue,CCHD,Supported Living - PS,Private & Voluntary Home Care,Selborne Care Ltd,1081.21, 18-Jan-2013
1744,Revenue,CCHD,Purchase of Non-Res Care - KD,Private & Voluntary Day Care,Selborne Care Ltd,718.76, 31-Jan-2013
1745,Revenue,CCHD,Supported Living - KD,Private & Voluntary Home Care,Selborne Care Ltd,524.08, 29-Jan-2013
1746,Revenue,CCHD,Supported Living - PS,Private & Voluntary Home Care,Selborne Care Ltd,510.08, 18-Jan-2013
1747,Revenue,CCHD,Supported Living - PS,Private & Voluntary Home Care,Selborne Care Ltd,4569.04, 18-Jan-2013
1748,Revenue,CCHD,Purchase of Non-Res Care - KD,Private & Voluntary Day Care,Selborne Care Ltd,604.42, 31-Jan-2013
1749,Revenue,CCHD,Supported Living - PS,Private & Voluntary Home Care,Selborne Care Ltd,549.4, 18-Jan-2013
1750,Revenue,CCHD,Supported Living - PS,Private & Voluntary Home Care,Selborne Care Ltd,1837.78, 18-Jan-2013
1751,Revenue,CCHD,Purchase of Non-Res Care - KD,Private & Voluntary Day Care,Selborne Care Ltd,521.68, 18-Jan-2013
1752,Revenue,CCHD,Bed purchasing - Elderly PWLD - South,Nursing Homes,Shaw Healthcare Limited,21717.26, 22-Jan-2013
1753,Revenue,CCHD,Southmead Hospital Purchasing,Nursing Homes,Shaw Healthcare Ltd,1467.2, 22-Jan-2013
1754,Revenue,CCHD,Bed Purchasing - Elderly S117- North,Nursing Homes,Shaw Healthcare Ltd,1944, 22-Jan-2013
1755,Revenue,CCHD,Bed purchasing - Elderly S117 - South,Nursing Homes,Shaw Healthcare Ltd,1973.2, 22-Jan-2013
1756,Revenue,CCHD,Bed purchasing - Elderly MH - North,Nursing Homes,Shaw Healthcare Ltd,1226.36, 22-Jan-2013
1757,Revenue,CCHD,Bed purchasing - S28A Under 65 - South,Residential Homes,Shaw Healthcare Ltd,10408.68, 22-Jan-2013
1758,Revenue,CCHD,Bed purchasing - S28A Under 65 - South,Residential Homes,Shaw Healthcare Ltd,10410.04, 22-Jan-2013
1759,Revenue,CCHD,Bed purchasing - S28A Under 65 - South,Residential Homes,Shaw Healthcare Ltd,10243.28, 22-Jan-2013
1760,Revenue,CCHD,S117 Placements PCT,Residential Homes,Shaw Healthcare Ltd,15360.76, 22-Jan-2013
1761,Revenue,CCHD,Bed Purchasing - Under 65s PWLD - South,Nursing Homes,Shaw Healthcare Ltd,9662.08, 22-Jan-2013
1762,Revenue,CCHD,Bed Purchasing - Under 65s PWLD - South,Residential Homes,Shaw Healthcare Ltd,8892.88, 22-Jan-2013
1763,Revenue,CCHD,Bed purchasing - Elderly PWLD - South,Residential Homes,Shaw Healthcare Ltd,3875.12, 22-Jan-2013
1764,Revenue,CCHD,Bed purchasing - S28A Under 65 - South,Residential Homes,Shaw Healthcare Ltd,10295.84, 22-Jan-2013
1765,Revenue,CCHD,Bed purchasing - S28A Under 65 - South,Residential Homes,Shaw Healthcare Ltd,11942.52, 22-Jan-2013
1766,Revenue,CCHD,Bed Purchasing - S28A - Over 65- North,Residential Homes,Shaw Healthcare Ltd,4203.2, 22-Jan-2013
1767,Revenue,CCHD,Bed purchasing -S28A  Under 65 - North,Residential Homes,Shaw Healthcare Ltd,4218.4, 22-Jan-2013
1768,Revenue,CCHD,Bed Purchasing - LD S28A- Over 65- South,Residential Homes,Shaw Healthcare Ltd,4722.48, 22-Jan-2013
1769,Revenue,CCHD,Bed Purchasing - Under 65s PWLD - South,Nursing Homes,Shaw Healthcare Ltd,9995.92, 22-Jan-2013
1770,Revenue,CCHD,Bed Purchasing - LD S28A- Over 65- South,Residential Homes,Shaw Healthcare Ltd,4412.12, 22-Jan-2013
1771,Revenue,CCHD,Bed Purchasing - LD S28A- Over 65- South,Residential Homes,Shaw Healthcare Ltd,4404, 22-Jan-2013
1772,Revenue,CCHD,Bed Purchasing - LD S28A- Over 65- South,Residential Homes,Shaw Healthcare Ltd,4411.68, 22-Jan-2013
1773,Revenue,CCHD,Bed purchasing -S28A  Under 65 - North,Residential Homes,Shaw Healthcare Ltd,9087.56, 22-Jan-2013
1774,Revenue,CCHD,Bed Purchasing - S28A - Over 65- North,Residential Homes,Shaw Healthcare Ltd,8894.24, 22-Jan-2013
1775,Revenue,CCHD,Southmead Hospital Purchasing,Residential Homes,Shaw Healthcare Ltd,874.8, 22-Jan-2013
1776,Revenue,CCHD,Bed Purchasing - Elderly - North,Residential Homes,Shaw Healthcare Ltd,1271.56, 22-Jan-2013
1777,Revenue,CCHD,Frenchay Hospital Purchasing,Residential Homes,Shaw Healthcare Ltd,1117.2, 22-Jan-2013
1778,Revenue,CCHD,Bed purchasing - Under 65s PWLD - North,Residential Homes,Shaw Healthcare Specialist Services Limited,2548.56, 10-Jan-2013
1779,Revenue,CCHD,Purchase of Non-Res Care - KD,Private & Voluntary Day Care,Shaw Healthcare Specialist Services Limited,515.38, 09-Jan-2013
1780,Revenue,CCHD,Day Care - North,Private & Voluntary Day Care,Silva Care Limited,642.35, 18-Jan-2013
1781,Revenue,CCHD,Supported Living - PS,Private & Voluntary Home Care,Silva Care Limited,4415.44, 14-Jan-2013
1782,Revenue,CCHD,Day Care - North,Private & Voluntary Day Care,Silva Care Limited,859.42, 24-Jan-2013
1783,Revenue,CCHD,Bed purchasing - Under 65s PWLD - North,Residential Homes,Small House Homes Limited,17585.6, 22-Jan-2013
1784,Revenue,CCHD,Day Care - South,Private & Voluntary Day Care,Smile Independent Living Support Limited,598.23, 14-Jan-2013
1785,Revenue,CCHD,Purchase of Non-Res Care - PS,Private & Voluntary Day Care,Smile Independent Living Support Limited,546.38, 14-Jan-2013
1786,Revenue,CCHD,Purchase of Non-Res Care - KD,Private & Voluntary Day Care,Smile Independent Living Support Limited,972.92, 24-Jan-2013
1787,Revenue,CCHD,Purchase of Non-Res Care - KD,Private & Voluntary Day Care,Smile Independent Living Support Limited,838.36, 15-Jan-2013
1788,Revenue,CCHD,Purchase of Non-Res Care - KD,Private & Voluntary Day Care,Smile Independent Living Support Limited,873.93, 15-Jan-2013
